Workbook

Sheet PONDERACIONES (hidden)
A1: TABLA DE PESOS DEFINITIVA
A2: CASO | B2: 1 | C2: 2 | D2: 3 | E2: 4 | F2: 5 | G2: 6 | H2: 7 | I2: 8
A3: IOC | B3: 0.6666666667 | D3: 0.9230769231 | E3: 0.7058823529 | F3: 1 | J3: ÍndiceObligacionesComunes | K3: 0.6
A4: IOEG | B4: 0.2777777778 | C4: 0.8333333333 | E4: 0.2941176471 | G4: 1 | J4: ÍndiceObligacionesEspecificasLeyGeneral-LeyLocal | K4: 0.35
A5: IOA | B5: 0.05555555556 | C5: 0.1666666667 | D5: 0.07692307692 | H5: 1 | J5: ÍndiceObligacionesEspecificasLG-LL | K5: 0.05
B6: =SUM(B3:B5) -> 1 | C6: =SUM(C3:C5) -> 1 | D6: 1 | E6: 1 | F6: 1 | G6: 1 | H6: 1 | I6: 0 | K6: =SUM(K3:K5) -> 1
A8: GRUPO | B8: EXPLICACIÓN
A9: 1 | B9: Aplican los tres componentes
A10: 2 | B10: Aplica solo segundo y tercer componente
A11: 3 | B11: Aplica solo primer y tercer componente
A12: 4 | B12: Aplica solo primer y segundo componente
A13: 5 | B13: Solo aplica primer componente
A14: 6 | B14: Solo aplica segundo componente
A15: 7 | B15: Solo aplica el tercer componente
A16: 8 | B16: Ningún componente aplica
C49: PERSONALIZADO LIC. JULIO CESAR VARGAS AYALA

Sheet ÍNDICE
B1: =Resultados!D2 -> Ayuntamiento de Mexicali, Baja California
B2: ÍNDICE
A3: Aplicabilidad Específicos | B3: Aplicación de obligaciones específicas
A4: Aplicabilidad Art.81 | B4: Configuración de la tabla de aplicabilidad
A5: Art 81 | B5: Art. 81 - Obligaciones comunes para todos los sujetos obligados del Estado de Baja California
A6: Art 82 | B6: Art. 82 - Obligaciones comunes para todos los sujetos obligados del Estado de Baja California
A7: Art 83 IV | B7: Art. 83 - Fracc. IV - Municipios - obligaciones específicas
A8: Resultado Verificación | B8: Índice cumplimiento en portales de transparencia
A9: Reporte | B9: Recomendaciones y observaciones derivadas de la verificación diagnóstica de las obligaciones de transparencia establecidas en el título quinto de la LGT.
A10: Total Recomendaciones | B10: Información Estadística (Requerimientos,Fracciones aplicables, no aplicables)
A11: Índices X Fracción | B11: Información Estadística (Índice obtenido por cada fracción)
A12: Justificadas | B12: Información Estadística (número de criterios Justificados por fracción)

Sheet Cat. SO (hidden)
A1: Volver al índice | B1: Clave de SO | C1: Nombre de SO
A2: Ayuntamiento Ensenada | B2: 1 | C2: Ayuntamiento de Ensenada, Baja California
A3: Ayuntamiento Ensenada | B3: 2 | C3: Centro Social, Cívico y Cultural Riviera de Ensenada, B.C.
A4: Ayuntamiento Ensenada | B4: 3 | C4: Comité de Festejos de Ensenada, B.C.
A5: Ayuntamiento Ensenada | B5: 4 | C5: Comité de Planeación para el Desarrollo Municipal de Ensenada, B.C.
A6: Ayuntamiento Ensenada | B6: 5 | C6: Consejo de Urbanización Municipal de Ensenada
A7: Ayuntamiento Ensenada | B7: 6 | C7: Fideicomiso Municipal para el Desarrollo Urbano de Ensenada
A8: Ayuntamiento Ensenada | B8: 7 | C8: Fideicomiso para la Construcción y Administración del Proyecto "La Bufadora"
A9: Ayuntamiento Ensenada | B9: 8 | C9: Instituto Metropolitano de Investigación y Planeación de Ensenada, B.C.
A10: Ayuntamiento Ensenada | B10: 9 | C10: Instituto Municipal de la Cultura y Desarrollo Humano de Ensenada, B.C.
A11: Ayuntamiento Ensenada | B11: 10 | C11: Instituto Municipal de la Juventud de Ensenada, B.C.
A12: Ayuntamiento Ensenada | B12: 11 | C12: Instituto Municipal de la Mujer de Ensenada, B.C.
A13: Ayuntamiento Ensenada | B13: 12 | C13: Instituto Municipal del Deporte y Recreación de Ensenada, B.C.
A14: Ayuntamiento Ensenada | B14: 13 | C14: Proturismo de Ensenada, Baja California
A15: Ayuntamiento Ensenada | B15: 14 | C15: Sistema para el Desarrollo Integral de la Familia de Ensenada, Baja California
A16: Ayuntamiento Mexicali | B16: 15 | C16: Ayuntamiento de Mexicali, Baja California
A17: Ayuntamiento Mexicali | B17: 16 | C17: Alianza Empresarial para Seguridad Publica
A18: Ayuntamiento Mexicali | B18: 17 | C18: Centro de Atención para Jóvenes en Riesgo "Misión San Carlos"
A19: Ayuntamiento Mexicali | B19: 18 | C19: Comisión de Desarrollo Agropecuario de Mexicali, Baja California
A20: Ayuntamiento Mexicali | B20: 19 | C20: Comisión de Desarrollo Industrial de Mexicali, Baja California
A21: Ayuntamiento Mexicali | B21: 20 | C21: Comité de Planeación y Desarrollo Municipal de Mexicali, Baja California
A22: Ayuntamiento Mexicali | B22: 21 | C22: Comité de Turismo y Convenciones de Mexicali, Baja California
A23: Ayuntamiento Mexicali | B23: 22 | C23: Consejo de Urbanización Municipal de Mexicali
A24: Ayuntamiento Mexicali | B24: 23 | C24: Desarrollo Integral de la Familia de Mexicali, Baja California
A25: Ayuntamiento Mexicali | B25: 24 | C25: Desarrollo Social Municipal de Mexicali, B.C.
A26: Ayuntamiento Mexicali | B26: 25 | C26: Fideicomiso para el Desarrollo Urbano de Mexicali, B.C.
A27: Ayuntamiento Mexicali | B27: 26 | C27: Instituto Municipal de Arte y Cultura de Mexicali, B.C.
A28: Ayuntamiento Mexicali | B28: 27 | C28: Instituto Municipal de Investigación y Planeación Urbana de Mexicali, B.C.
A29: Ayuntamiento Mexicali | B29: 28 | C29: Instituto de la Mujer para el Municipio de Mexicali
A30: Ayuntamiento Mexicali | B30: 29 | C30: Instituto Municipal del Deporte y la Cultura Física de Mexicali, Baja California
A31: Ayuntamiento Mexicali | B31: 30 | C31: Patronato D.A.R.E. Mexicali
A32: Ayuntamiento Mexicali | B32: 31 | C32: Patronato de las Fiestas del Sol de la Ciudad de Mexicali, Baja California
A33: Ayuntamiento Mexicali | B33: 32 | C33: Patronato del Bosque y Zoológico de la Ciudad de Mexicali, Baja California
A34: Ayuntamiento Mexicali | B34: 33 | C34: Patronato del Centro de Desarrollo Humano Integral Centenario
A35: Ayuntamiento Mexicali | B35: 34 | C35: Patronato del Centro Recreativo Juventud 2000 del Municipio de Mexicali, B.C.
A36: Ayuntamiento Mexicali | B36: 35 | C36: Patronato del Parque Vicente Guerrero de la Ciudad de Mexicali, Baja California
A37: Ayuntamiento Mexicali | B37: 36 | C37: Sistema Municipal del Transporte de Mexicali, Baja California
A38: Ayuntamiento Rosarito | B38: 37 | C38: Ayuntamiento de Playas de Rosarito, Baja California
A39: Ayuntamiento Rosarito | B39: 38 | C39: Comité de Planeación para el Desarrollo del Municipio de Playas de Rosarito, B.C.
A40: Ayuntamiento Rosarito | B40: 39 | C40: Comité de Turismo y Convenciones de Playas de Rosarito, B.C.
A41: Ayuntamiento Rosarito | B41: 40 | C41: Instituto de Arte y Cultura de Rosarito, Baja California
A42: Ayuntamiento Rosarito | B42: 41 | C42: Instituto Municipal de la Juventud de Playas de Rosarito, B.C.
A43: Ayuntamiento Rosarito | B43: 42 | C43: Instituto Municipal de la Mujer del Municipio de Playas de Rosarito, B.C.
A44: Ayuntamiento Rosarito | B44: 43 | C44: Instituto Municipal de Planeación del Municipio de Playas de Rosarito, B.C.
A45: Ayuntamiento Rosarito | B45: 44 | C45: Instituto Municipal del Deporte de Playas de Rosarito, B.C.
A46: Ayuntamiento Rosarito | B46: 45 | C46: Promotora del Desarrollo Urbano de Playas de Rosarito, Baja California
A47: Ayuntamiento Rosarito | B47: 46 | C47: Sistema para el Desarrollo Integral de la Familia del Municipio de Playas de Rosarito, Baja California
A48: Ayuntamiento Rosarito | B48: 47 | C48: Instituto Municipal de Capacitación y Certificación de Competencias de Playas de Rosarito, B.C.
A49: Ayuntamiento Tecate | B49: 48 | C49: Ayuntamiento de Tecate, Baja California
A50: Ayuntamiento Tecate | B50: 49 | C50: Instituto de Planeación del Desarrollo Municipal de Tecate, Baja California
A51: Ayuntamiento Tecate | B51: 50 | C51: Instituto de Promoción del Desarrollo Urbano de Tecate, B.C.
A52: Ayuntamiento Tecate | B52: 51 | C52: Instituto Municipal de la Juventud de Tecate, B.C.
A53: Ayuntamiento Tecate | B53: 52 | C53: Instituto Municipal de la Mujer de Tecate, B.C.
A54: Ayuntamiento Tecate | B54: 53 | C54: Instituto Municipal del Deporte de Tecate, Baja California
A55: Ayuntamiento Tecate | B55: 54 | C55: Sistema para el Desarrollo Integral de la Familia de Tecate, Baja California
A56: Ayuntamiento Tecate | B56: 55 | C56: Sistema de Transporte Municipal de Tecate
A57: Ayuntamiento Tijuana | B57: 56 | C57: Ayuntamiento de Tijuana, Baja California
A58: Ayuntamiento Tijuana | B58: 57 | C58: Comité de Turismo y Convenciones del Municipio de Tijuana, Baja California
A59: Ayuntamiento Tijuana | B59: 58 | C59: Desarrollo Social Municipal Tijuana, B.C.
A60: Ayuntamiento Tijuana | B60: 59 | C60: Fideicomiso "Mi Crédito"
A61: Ayuntamiento Tijuana | B61: 60 | C61: Fideicomiso Promotora Municipal Tijuana, B.C.
A62: Ayuntamiento Tijuana | B62: 61 | C62: Instituto Metropolitano de Planeación de Tijuana, B.C.
A63: Ayuntamiento Tijuana | B63: 62 | C63: Instituto Municipal Contra las Adicciones del Municipio de Tijuana, B.C.
A64: Ayuntamiento Tijuana | B64: 63 | C64: Instituto Municipal de Arte y Cultura de Tijuana, B.C.
A65: Ayuntamiento Tijuana | B65: 64 | C65: Instituto Municipal de la Mujer de Tijuana, B.C.
A66: Ayuntamiento Tijuana | B66: 65 | C66: Instituto Municipal de Participación Ciudadana de Tijuana, B.C.
A67: Ayuntamiento Tijuana | B67: 66 | C67: Instituto Municipal del Deporte de Tijuana, Baja California
A68: Ayuntamiento Tijuana | B68: 67 | C68: Instituto Municipal para la Juventud de Tijuana, B.C.
A69: Ayuntamiento Tijuana | B69: 68 | C69: Organismo Municipal para la Operación del Sistema de Transporte Masivo Urbano de Pasajeros de Tijuana.
A70: Ayuntamiento Tijuana | B70: 69 | C70: Sistema Municipal de Parques Temáticos de Tijuana
A71: Ayuntamiento Tijuana | B71: 70 | C71: Sistema para el Desarrollo Integral de la Familia de Tijuana, Baja California
A72: Ayuntamiento San Quintín | B72: 71 | C72: Concejo Municipal Fundacional del Municipio de San Quintín

Sheet Cat. Res (hidden)
A1: Volver al índice
A2: 1 | C2: Aplica? | G2: Tipo
A3: 0.5 | C3: SI | G3: Observación
A4: 0 | C4: NO | G4: Recomendación
A5: Justificado | G5: Requerimiento
D30: PERSONALIZADO LIC. JULIO CESAR VARGAS AYALA

Sheet Aplic. SO (hidden)
A1: Volver al índice | B1: I | C1: II | D1: III | E1: IV | F1: V | G1: VI | H1: VII | I1: VIII | J1: IX | K1: X | L1: XI | M1: XII | N1: XIII | O1: XIV | P1: XV | Q1: XVI | R1: XVII | S1: XVIII | T1: XIX | U1: XX | V1: XXI | W1: XXII | X1: XXIII | Y1: XXIV | Z1: XXV | AA1: XXVI | AB1: XXVII | AC1: XXVIII | AD1: XXIX | AE1: XXX | AF1: XXXI | AG1: XXXII | AH1: XXXIII | AI1: XXXIV | AJ1: XXXV | AK1: XXXVI | AL1: XXXVII | AM1: XXXVIII | AN1: XXXIX | AO1: XL | AP1: XLI | AQ1: XLII | AR1: XLIII | AS1: XLIV | AT1: XLV | AU1: XLVI | AV1: XLVII | AW1: XLVIII | AX1: texto
A2: Ayuntamiento de Ensenada, Baja California | AQ2: , XLII | AV2: , XLVII | AX2: Resulta inaplicable las siguientes fracciones: XLII, XLVII
A3: Centro Social, Cívico y Cultural Riviera de Ensenada, B.C. | M3: , XII | S3: , XVIII | AK3: , XXXVI | AQ3: , XLII | AV3: , XLVII | AX3: Resulta inaplicable las siguientes fracciones: XII, XVIII, XXXVI, XLII, XLVII
A4: Comité de Festejos de Ensenada, B.C. | M4: , XII | S4: , XVIII | AK4: , XXXVI | AQ4: , XLII | AU4: , XLVI | AV4: , XLVII | AX4: Resulta inaplicable las siguientes fracciones: XII, XVIII, XXXVI, XLII, XLVI, XLVII
A5: Comité de Planeación para el Desarrollo Municipal de Ensenada, B.C. | M5: , XII | S5: , XVIII | AK5: , XXXVI | AQ5: , XLII | AV5: , XLVII | AX5: Resulta inaplicable las siguientes fracciones: XII, XVIII, XXXVI, XLII, XLVII
A6: Consejo de Urbanización Municipal de Ensenada | M6: , XII | S6: , XVIII | AK6: , XXXVI | AQ6: , XLII | AU6: , XLVI | AV6: , XLVII | AX6: Resulta inaplicable las siguientes fracciones: XII, XVIII, XXXVI, XLII, XLVI, XLVII
A7: Fideicomiso Municipal para el Desarrollo Urbano de Ensenada | M7: , XII | S7: , XVIII | AK7: , XXXVI | AQ7: , XLII | AU7: , XLVI | AV7: , XLVII | AX7: Resulta inaplicable las siguientes fracciones: XII, XVIII, XXXVI, XLII, XLVI, XLVII
A8: Fideicomiso para la Construcción y Administración del Proyecto "La Bufadora" | M8: , XII | S8: , XVIII | AQ8: , XLII | AU8: , XLVI | AV8: , XLVII | AX8: Resulta inaplicable las siguientes fracciones: XII, XVIII, XLII, XLVI, XLVII
A9: Instituto Metropolitano de Investigación y Planeación de Ensenada, B.C. | M9: , XII | S9: , XVIII | AK9: , XXXVI | AQ9: , XLII | AU9: , XLVI | AV9: , XLVII | AX9: Resulta inaplicable las siguientes fracciones: XII, XVIII, XXXVI, XLII, XLVI, XLVII
A10: Instituto Municipal de la Cultura y Desarrollo Humano de Ensenada, B.C. | M10: , XII | S10: , XVIII | AK10: , XXXVI | AQ10: , XLII | AU10: , XLVI | AV10: , XLVII | AX10: Resulta inaplicable las siguientes fracciones: XII, XVIII, XXXVI, XLII, XLVI, XLVII
A11: Instituto Municipal de la Juventud de Ensenada, B.C. | M11: , XII | S11: , XVIII | AK11: , XXXVI | AQ11: , XLII | AU11: , XLVI | AV11: , XLVII | AX11: Resulta inaplicable las siguientes fracciones: XII, XVIII, XXXVI, XLII, XLVI, XLVII
A12: Instituto Municipal de la Mujer de Ensenada, B.C. | M12: , XII | S12: , XVIII | AK12: , XXXVI | AQ12: , XLII | AV12: , XLVII | AX12: Resulta inaplicable las siguientes fracciones: XII, XVIII, XXXVI, XLII, XLVII
A13: Instituto Municipal del Deporte y Recreación de Ensenada, B.C. | M13: , XII | S13: , XVIII | AK13: , XXXVI | AQ13: , XLII | AU13: , XLVI | AV13: , XLVII | AX13: Resulta inaplicable las siguientes fracciones: XII, XVIII, XXXVI, XLII, XLVI, XLVII
A14: Proturismo de Ensenada, Baja California | M14: , XII | S14: , XVIII | AQ14: , XLII | AU14: , XLVI | AV14: , XLVII | AX14: Resulta inaplicable las siguientes fracciones: XII, XVIII, XLII, XLVI, XLVII
A15: Sistema para el Desarrollo Integral de la Familia de Ensenada, Baja California | M15: , XII | S15: , XVIII | AK15: , XXXVI | AQ15: , XLII | AU15: , XLVI | AV15: , XLVII | AX15: Resulta inaplicable las siguientes fracciones: XII, XVIII, XXXVI, XLII, XLVI, XLVII
A16: Ayuntamiento de Mexicali, Baja California | AQ16: , XLII | AV16: , XLVII | AX16: Resulta inaplicable las siguientes fracciones: XLII, XLVII
A17: Alianza Empresarial para Seguridad Publica | M17: , XII | S17: , XVIII | AK17: , XXXVI | AQ17: , XLII | AU17: , XLVI | AV17: , XLVII | AX17: Resulta inaplicable las siguientes fracciones: XII, XVIII, XXXVI, XLII, XLVI, XLVII
A18: Centro de Atención para Jóvenes en Riesgo "Misión San Carlos" | M18: , XII | S18: , XVIII | AK18: , XXXVI | AQ18: , XLII | AU18: , XLVI | AV18: , XLVII | AX18: Resulta inaplicable las siguientes fracciones: XII, XVIII, XXXVI, XLII, XLVI, XLVII
A19: Comisión de Desarrollo Agropecuario de Mexicali, Baja California | M19: , XII | S19: , XVIII | AK19: , XXXVI | AQ19: , XLII | AU19: , XLVI | AV19: , XLVII | AX19: Resulta inaplicable las siguientes fracciones: XII, XVIII, XXXVI, XLII, XLVI, XLVII
A20: Comisión de Desarrollo Industrial de Mexicali, Baja California | M20: , XII | S20: , XVIII | AK20: , XXXVI | AQ20: , XLII | AU20: , XLVI | AV20: , XLVII | AX20: Resulta inaplicable las siguientes fracciones: XII, XVIII, XXXVI, XLII, XLVI, XLVII
A21: Comité de Planeación y Desarrollo Municipal de Mexicali, Baja California | M21: , XII | S21: , XVIII | AK21: , XXXVI | AQ21: , XLII | AV21: , XLVII | AX21: Resulta inaplicable las siguientes fracciones: XII, XVIII, XXXVI, XLII, XLVII
A22: Comité de Turismo y Convenciones de Mexicali, Baja California | M22: , XII | S22: , XVIII | AK22: , XXXVI | AQ22: , XLII | AU22: , XLVI | AV22: , XLVII | AX22: Resulta inaplicable las siguientes fracciones: XII, XVIII, XXXVI, XLII, XLVI, XLVII
A23: Consejo de Urbanización Municipal de Mexicali | M23: , XII | S23: , XVIII | AK23: , XXXVI | AQ23: , XLII | AU23: , XLVI | AV23: , XLVII | AX23: Resulta inaplicable las siguientes fracciones: XII, XVIII, XXXVI, XLII, XLVI, XLVII
A24: Desarrollo Integral de la Familia de Mexicali, Baja California | M24: , XII | S24: , XVIII | AK24: , XXXVI | AQ24: , XLII | AU24: , XLVI | AV24: , XLVII | AX24: Resulta inaplicable las siguientes fracciones: XII, XVIII, XXXVI, XLII, XLVI, XLVII
A25: Desarrollo Social Municipal de Mexicali, B.C. | M25: , XII | S25: , XVIII | AK25: , XXXVI | AQ25: , XLII | AU25: , XLVI | AV25: , XLVII | AX25: Resulta inaplicable las siguientes fracciones: XII, XVIII, XXXVI, XLII, XLVI, XLVII
A26: Fideicomiso para el Desarrollo Urbano de Mexicali, B.C. | M26: , XII | S26: , XVIII | AK26: , XXXVI | AQ26: , XLII | AU26: , XLVI | AV26: , XLVII | AX26: Resulta inaplicable las siguientes fracciones: XII, XVIII, XXXVI, XLII, XLVI, XLVII
A27: Instituto Municipal de Arte y Cultura de Mexicali, B.C. | M27: , XII | S27: , XVIII | AK27: , XXXVI | AQ27: , XLII | AU27: , XLVI | AV27: , XLVII | AX27: Resulta inaplicable las siguientes fracciones: XII, XVIII, XXXVI, XLII, XLVI, XLVII
A28: Instituto Municipal de Investigación y Planeación Urbana de Mexicali, B.C. | M28: , XII | S28: , XVIII | AK28: , XXXVI | AQ28: , XLII | AV28: , XLVII | AX28: Resulta inaplicable las siguientes fracciones: XII, XVIII, XXXVI, XLII, XLVII
A29: Instituto de la Mujer para el Municipio de Mexicali | M29: , XII | S29: , XVIII | AK29: , XXXVI | AQ29: , XLII | AU29: , XLVI | AV29: , XLVII | AX29: Resulta inaplicable las siguientes fracciones: XII, XVIII, XXXVI, XLII, XLVI, XLVII
A30: Instituto Municipal del Deporte y la Cultura Física de Mexicali, Baja California | M30: , XII | S30: , XVIII | AK30: , XXXVI | AQ30: , XLII | AU30: , XLVI | AV30: , XLVII | AX30: Resulta inaplicable las siguientes fracciones: XII, XVIII, XXXVI, XLII, XLVI, XLVII
A31: Patronato D.A.R.E. Mexicali | M31: , XII | S31: , XVIII | AK31: , XXXVI | AQ31: , XLII | AU31: , XLVI | AV31: , XLVII | AX31: Resulta inaplicable las siguientes fracciones: XII, XVIII, XXXVI, XLII, XLVI, XLVII
A32: Patronato de las Fiestas del Sol de la Ciudad de Mexicali, Baja California | M32: , XII | S32: , XVIII | AK32: , XXXVI | AQ32: , XLII | AU32: , XLVI | AV32: , XLVII | AX32: Resulta inaplicable las siguientes fracciones: XII, XVIII, XXXVI, XLII, XLVI, XLVII
A33: Patronato del Bosque y Zoológico de la Ciudad de Mexicali, Baja California | M33: , XII | S33: , XVIII | AK33: , XXXVI | AQ33: , XLII | AU33: , XLVI | AV33: , XLVII | AX33: Resulta inaplicable las siguientes fracciones: XII, XVIII, XXXVI, XLII, XLVI, XLVII
A34: Patronato del Centro de Desarrollo Humano Integral Centenario | M34: , XII | S34: , XVIII | AK34: , XXXVI | AQ34: , XLII | AU34: , XLVI | AV34: , XLVII | AX34: Resulta inaplicable las siguientes fracciones: XII, XVIII, XXXVI, XLII, XLVI, XLVII
A35: Patronato del Centro Recreativo Juventud 2000 del Municipio de Mexicali, B.C. | M35: , XII | S35: , XVIII | AK35: , XXXVI | AQ35: , XLII | AU35: , XLVI | AV35: , XLVII | AX35: Resulta inaplicable las siguientes fracciones: XII, XVIII, XXXVI, XLII, XLVI, XLVII
A36: Patronato del Parque Vicente Guerrero de la Ciudad de Mexicali, Baja California | M36: , XII | S36: , XVIII | AK36: , XXXVI | AQ36: , XLII | AU36: , XLVI | AV36: , XLVII | AX36: Resulta inaplicable las siguientes fracciones: XII, XVIII, XXXVI, XLII, XLVI, XLVII
A37: Sistema Municipal del Transporte de Mexicali, Baja California | M37: , XII | S37: , XVIII | AK37: , XXXVI | AQ37: , XLII | AU37: , XLVI | AV37: , XLVII | AX37: Resulta inaplicable las siguientes fracciones: XII, XVIII, XXXVI, XLII, XLVI, XLVII
A38: Ayuntamiento de Playas de Rosarito, Baja California | AQ38: , XLII | AV38: , XLVII | AX38: Resulta inaplicable las siguientes fracciones: XLII, XLVII
A39: Comité de Planeación para el Desarrollo del Municipio de Playas de Rosarito, B.C. | M39: , XII | S39: , XVIII | AK39: , XXXVI | AQ39: , XLII | AV39: , XLVII | AX39: Resulta inaplicable las siguientes fracciones: XII, XVIII, XXXVI, XLII, XLVII
A40: Comité de Turismo y Convenciones de Playas de Rosarito, B.C. | M40: , XII | S40: , XVIII | AK40: , XXXVI | AQ40: , XLII | AU40: , XLVI | AV40: , XLVII | AX40: Resulta inaplicable las siguientes fracciones: XII, XVIII, XXXVI, XLII, XLVI, XLVII
A41: Instituto de Arte y Cultura de Rosarito, Baja California | M41: , XII | S41: , XVIII | AK41: , XXXVI | AQ41: , XLII | AU41: , XLVI | AV41: , XLVII | AX41: Resulta inaplicable las siguientes fracciones: XII, XVIII, XXXVI, XLII, XLVI, XLVII
A42: Instituto Municipal de la Juventud de Playas de Rosarito, B.C. | M42: , XII | S42: , XVIII | AK42: , XXXVI | AQ42: , XLII | AU42: , XLVI | AV42: , XLVII | AX42: Resulta inaplicable las siguientes fracciones: XII, XVIII, XXXVI, XLII, XLVI, XLVII
A43: Instituto Municipal de la Mujer del Municipio de Playas de Rosarito, B.C. | M43: , XII | S43: , XVIII | AK43: , XXXVI | AQ43: , XLII | AU43: , XLVI | AV43: , XLVII | AX43: Resulta inaplicable las siguientes fracciones: XII, XVIII, XXXVI, XLII, XLVI, XLVII
A44: Instituto Municipal de Planeación del Municipio de Playas de Rosarito, B.C. | M44: , XII | S44: , XVIII | AK44: , XXXVI | AQ44: , XLII | AU44: , XLVI | AV44: , XLVII | AX44: Resulta inaplicable las siguientes fracciones: XII, XVIII, XXXVI, XLII, XLVI, XLVII
A45: Instituto Municipal del Deporte de Playas de Rosarito, B.C. | M45: , XII | S45: , XVIII | AK45: , XXXVI | AQ45: , XLII | AU45: , XLVI | AV45: , XLVII | AX45: Resulta inaplicable las siguientes fracciones: XII, XVIII, XXXVI, XLII, XLVI, XLVII
A46: Promotora del Desarrollo Urbano de Playas de Rosarito, Baja California | M46: , XII | S46: , XVIII | AK46: , XXXVI | AQ46: , XLII | AU46: , XLVI | AV46: , XLVII | AX46: Resulta inaplicable las siguientes fracciones: XII, XVIII, XXXVI, XLII, XLVI, XLVII
A47: Sistema para el Desarrollo Integral de la Familia del Municipio de Playas de Rosarito, Baja California | M47: , XII | S47: , XVIII | AK47: , XXXVI | AQ47: , XLII | AU47: , XLVI | AV47: , XLVII | AX47: Resulta inaplicable las siguientes fracciones: XII, XVIII, XXXVI, XLII, XLVI, XLVII
A48: Instituto Municipal de Capacitación y Certificación de Competencias de Playas de Rosarito, B.C. | M48: , XII | S48: , XVIII | AK48: , XXXVI | AQ48: , XLII | AU48: , XLVI | AV48: , XLVII | AX48: Resulta inaplicable las siguientes fracciones: XII, XVIII, XXXVI, XLII, XLVI, XLVII
A49: Ayuntamiento de Tecate, Baja California | AQ49: , XLII | AV49: , XLVII | AX49: Resulta inaplicable las siguientes fracciones: XLII, XLVII
A50: Instituto de Planeación del Desarrollo Municipal de Tecate, Baja California | M50: , XII | S50: , XVIII | AK50: , XXXVI | AQ50: , XLII | AU50: , XLVI | AV50: , XLVII | AX50: Resulta inaplicable las siguientes fracciones: XII, XVIII, XXXVI, XLII, XLVI, XLVII
A51: Instituto de Promoción del Desarrollo Urbano de Tecate, B.C. | M51: , XII | S51: , XVIII | AK51: , XXXVI | AQ51: , XLII | AU51: , XLVI | AV51: , XLVII | AX51: Resulta inaplicable las siguientes fracciones: XII, XVIII, XXXVI, XLII, XLVI, XLVII
A52: Instituto Municipal de la Juventud de Tecate, B.C. | M52: , XII | S52: , XVIII | AK52: , XXXVI | AQ52: , XLII | AU52: , XLVI | AV52: , XLVII | AX52: Resulta inaplicable las siguientes fracciones: XII, XVIII, XXXVI, XLII, XLVI, XLVII
A53: Instituto Municipal de la Mujer de Tecate, B.C. | M53: , XII | S53: , XVIII | AK53: , XXXVI | AQ53: , XLII | AU53: , XLVI | AV53: , XLVII | AX53: Resulta inaplicable las siguientes fracciones: XII, XVIII, XXXVI, XLII, XLVI, XLVII
A54: Instituto Municipal del Deporte de Tecate, Baja California | M54: , XII | S54: , XVIII | AK54: , XXXVI | AQ54: , XLII | AU54: , XLVI | AV54: , XLVII | AX54: Resulta inaplicable las siguientes fracciones: XII, XVIII, XXXVI, XLII, XLVI, XLVII
A55: Sistema para el Desarrollo Integral de la Familia de Tecate, Baja California | M55: , XII | S55: , XVIII | AK55: , XXXVI | AQ55: , XLII | AU55: , XLVI | AV55: , XLVII | AX55: Resulta inaplicable las siguientes fracciones: XII, XVIII, XXXVI, XLII, XLVI, XLVII
A56: Sistema de Transporte Municipal de Tecate | M56: , XII | S56: , XVIII | AK56: , XXXVI | AQ56: , XLII | AU56: , XLVI | AV56: , XLVII | AX56: Resulta inaplicable las siguientes fracciones: XII, XVIII, XXXVI, XLII, XLVI, XLVII
A57: Ayuntamiento de Tijuana, Baja California | AQ57: , XLII | AV57: , XLVII | AX57: Resulta inaplicable las siguientes fracciones: XLII, XLVII
A58: Comité de Turismo y Convenciones del Municipio de Tijuana, Baja California | M58: , XII | S58: , XVIII | AK58: , XXXVI | AQ58: , XLII | AU58: , XLVI | AV58: , XLVII | AX58: Resulta inaplicable las siguientes fracciones: XII, XVIII, XXXVI, XLII, XLVI, XLVII
A59: Desarrollo Social Municipal Tijuana, B.C. | M59: , XII | S59: , XVIII | AK59: , XXXVI | AQ59: , XLII | AU59: , XLVI | AV59: , XLVII | AX59: Resulta inaplicable las siguientes fracciones: XII, XVIII, XXXVI, XLII, XLVI, XLVII
A60: Fideicomiso "Mi Crédito" | M60: , XII | S60: , XVIII | AK60: , XXXVI | AQ60: , XLII | AU60: , XLVI | AV60: , XLVII | AX60: Resulta inaplicable las siguientes fracciones: XII, XVIII, XXXVI, XLII, XLVI, XLVII
A61: Fideicomiso Promotora Municipal Tijuana, B.C. | M61: , XII | S61: , XVIII | AK61: , XXXVI | AQ61: , XLII | AU61: , XLVI | AV61: , XLVII | AX61: Resulta inaplicable las siguientes fracciones: XII, XVIII, XXXVI, XLII, XLVI, XLVII
A62: Instituto Metropolitano de Planeación de Tijuana, B.C. | M62: , XII | S62: , XVIII | AK62: , XXXVI | AQ62: , XLII | AV62: , XLVII | AX62: Resulta inaplicable las siguientes fracciones: XII, XVIII, XXXVI, XLII, XLVII
A63: Instituto Municipal Contra las Adicciones del Municipio de Tijuana, B.C. | M63: , XII | S63: , XVIII | AK63: , XXXVI | AQ63: , XLII | AU63: , XLVI | AV63: , XLVII | AX63: Resulta inaplicable las siguientes fracciones: XII, XVIII, XXXVI, XLII, XLVI, XLVII
A64: Instituto Municipal de Arte y Cultura de Tijuana, B.C. | M64: , XII | S64: , XVIII | AK64: , XXXVI | AQ64: , XLII | AU64: , XLVI | AV64: , XLVII | AX64: Resulta inaplicable las siguientes fracciones: XII, XVIII, XXXVI, XLII, XLVI, XLVII
A65: Instituto Municipal de la Mujer de Tijuana, B.C. | M65: , XII | S65: , XVIII | AK65: , XXXVI | AQ65: , XLII | AU65: , XLVI | AV65: , XLVII | AX65: Resulta inaplicable las siguientes fracciones: XII, XVIII, XXXVI, XLII, XLVI, XLVII
A66: Instituto Municipal de Participación Ciudadana de Tijuana, B.C. | M66: , XII | S66: , XVIII | AK66: , XXXVI | AQ66: , XLII | AU66: , XLVI | AV66: , XLVII | AX66: Resulta inaplicable las siguientes fracciones: XII, XVIII, XXXVI, XLII, XLVI, XLVII
A67: Instituto Municipal del Deporte de Tijuana, Baja California | M67: , XII | S67: , XVIII | AK67: , XXXVI | AQ67: , XLII | AU67: , XLVI | AV67: , XLVII | AX67: Resulta inaplicable las siguientes fracciones: XII, XVIII, XXXVI, XLII, XLVI, XLVII
A68: Instituto Municipal para la Juventud de Tijuana, B.C. | M68: , XII | S68: , XVIII | AK68: , XXXVI | AQ68: , XLII | AU68: , XLVI | AV68: , XLVII | AX68: Resulta inaplicable las siguientes fracciones: XII, XVIII, XXXVI, XLII, XLVI, XLVII
A69: Organismo Municipal para la Operación del Sistema de Transporte Masivo Urbano de Pasajeros de Tijuana. | M69: , XII | S69: , XVIII | AK69: , XXXVI | AQ69: , XLII | AU69: , XLVI | AV69: , XLVII | AX69: Resulta inaplicable las siguientes fracciones: XII, XVIII, XXXVI, XLII, XLVI, XLVII
A70: Sistema Municipal de Parques Temáticos de Tijuana | M70: , XII | S70: , XVIII | AK70: , XXXVI | AQ70: , XLII | AU70: , XLVI | AV70: , XLVII | AX70: Resulta inaplicable las siguientes fracciones: XII, XVIII, XXXVI, XLII, XLVI, XLVII
A71: Sistema para el Desarrollo Integral de la Familia de Tijuana, Baja California | M71: , XII | S71: , XVIII | AK71: , XXXVI | AQ71: , XLII | AU71: , XLVI | AV71: , XLVII | AX71: Resulta inaplicable las siguientes fracciones: XII, XVIII, XXXVI, XLII, XLVI, XLVII
A72: Concejo Municipal Fundacional del Municipio de San Quintín | AQ72: , XLII | AV72: , XLVII | AX72: Resulta inaplicable las siguientes fracciones: XLII, XLVII

Sheet Aplicabilidad Específicos
A1: Volver al índice
G3: Ayuntamiento de Mexicali, Baja California
E6: Aplicación de obligaciones específicas
E8: Art.81 | G8: SI | I8: Art.83-F.VI | M8: Art. 85-F.IX
E10: Art.82 | G10: SI | I10: Art.83-F.VII | M10: Art.86
E12: Art.83-F.I | I12: Art.83-F.VII | M12: Art.87
E14: Art.83-F.II | I14: Art.83-F.VIII | M14: Art.88
E16: Art.83-F.III | I16: Art.83-F.IX | M16: Art.89
E18: Art.83-F.IV | G18: SI | I18: Art.84
E20: Art.83-F.V | I20: Art.85
K23: Responsable de la verificación
I48: PERSONALIZADO LIC. JULIO CESAR VARGAS AYALA

Sheet Aplicabilidad Art. 81
A1: Volver al índice | W1: SUJETO OBLIGADO DEL ÁMBITO FEDERAL | X1: Seleccione Fracción | Y1: Seleccione elemento Observado
W2: ADMINISTRACIÓN FEDERAL DE SERVICIOS EDUCATIVOS EN EL DISTRITO FEDERAL | X2: IV. Metas y objetivos | Y2: Aplicación / Dependencias. | Z2: Eliminación
G3: Ayuntamiento de Mexicali, Baja California | W3: ADMINISTRACIÓN PORTUARIA INTEGRAL DE ALTAMIRA, S.A. DE C.V | X3: V. Indicadores interés público | Y3: Criterio
C5: Texto meramente informativo: | G5: =IF(OR(G3="Nombre de SO",G3=""),"",VLOOKUP(G3,'Aplic. SO'!$A$1:$AX$72,50,FALSE)) -> Resulta inaplicable las siguientes fracciones: XLII, XLVII | W5: ADMINISTRACIÓN PORTUARIA INTEGRAL DE COATZACOALCOS, S.A. DE C.V | X5: VI. Indicadores de resultados | Y5: Formato
W6: ADMINISTRACIÓN PORTUARIA INTEGRAL DE ENSENADA, S.A. DE C.V. | X6: VIII. Remuneración servidores públicos
W7: ADMINISTRACIÓN PORTUARIA INTEGRAL DE GUAYMAS, S.A. DE C.V. | X7: IX. Gastos de representación y viáticos
E8: Configuración de la tabla de aplicabilidad | W8: ADMINISTRACIÓN PORTUARIA INTEGRAL DE LÁZARO CÁRDENAS, S.A. DE C.V. | X8: X. Total de plazas (base y confianza)
C10: I | G10: XIII | K10: XXV | O10: XXXVII
C12: II | G12: XIV | K12: XXVI | O12: XXXVIII
C14: III | G14: XV | K14: XXVII | O14: XXXIX
C16: IV | G16: XVI | K16: XXVIII | O16: XL
C18: V | G18: XVII | K18: XXIX | O18: XLI
C20: VI | G20: XVIII | K20: XXX | O20: XLII | Q20: NO
C22: VII | G22: XIX | K22: XXXI | O22: XLIII
C24: VIII | G24: XX | K24: XXXII | O24: XLIV
C26: IX | G26: XXI | K26: XXXIII | O26: XLV
C28: X | G28: XXII | K28: XXXIV | O28: XLVI
C30: XI | G30: XXIII | K30: XXXV | O30: XLVII | Q30: NO
C32: XII | G32: XXIV | K32: XXXVI | O32: XLVIII
K34: Último párrafo del artículo
W35: BANCO NACIONAL DEL EJÉRCITO, FUERZA AÉREA Y ARMADA, S.N.C. | X35: XXXVI. Resoluciones y laudos de juicios
W36: C. G. CERRO PRIETO IV | X36: XXXVII. Mecanismos de participación ciudadana
W37: C. T. CHIHUAHUA | X37: XXXVIII. Programas ofrecidos
K38: Responsable de la verificación | W38: C. T. MONTERREY | X38: XXXIX. Actas y resoluciones del Comité de Transparencia
W39: CÁMARA DE DIPUTADOS | X39: XL. Evaluaciones y encuestas a programas financiados con recursos públicos
W40: CAMINOS Y PUENTES FEDERALES DE INGRESOS Y SERVICIOS CONEXOS | X40: XLI. Estudios pagados con recursos públicos
W41: CASA DE MONEDA DE MÉXICO | X41: XLII. Pagos a jubilados y pensionados
W42: CENTRO DE CAPACITACIÓN CINEMATOGRÁFICA, A.C. | X42: XLIII. Ingresos totales del sujeto obligado
W43: CENTRO DE ENSEÑANZA TÉCNICA INDUSTRIAL | X43: XLIV. Donaciones en dinero o en especie
W44: CENTRO DE ESTUDIOS PARA LA PREPARACIÓN Y EVALUACIÓN SOCIOECONÓMICA DE PROYECTOS (CEPEP) | X44: XLV. Instrumentos de archivos
W45: CENTRO DE EVALUACIÓN Y CONTROL DE CONFIANZA | X45: XLVI. Actas de las sesiones, opiniones y recomendaciones de los consejos consultivos
W46: CENTRO DE INGENIERÍA Y DESARROLLO INDUSTRIAL | X46: XLVII. Solicitudes a empresas concesionarias para la intervención de comunicaciones privadas, el acceso al registro de comunicaciones y la localización geográfica, y
W47: CENTRO DE INVESTIGACIÓN CIENTÍFICA DE YUCATÁN, A.C. | X47: XLVIII. Otra información útil o relevante
W48: CENTRO DE INVESTIGACIÓN CIENTÍFICA Y DE EDUCACIÓN SUPERIOR DE ENSENADA BAJA CALIFORNIA
W49: CENTRO DE INVESTIGACIÓN EN ALIMENTACIÓN Y DESARROLLO, A.C.
W50: CENTRO DE INVESTIGACIÓN EN GEOGRAFÍA Y GEOMÁTICA "ING. JORGE L. TAMAYO", A.C.
W51: CENTRO DE INVESTIGACIÓN EN MATEMÁTICAS, A.C.
W52: CENTRO DE INVESTIGACIÓN EN MATERIALES AVANZADOS, S.C.
W53: CENTRO DE INVESTIGACIÓN EN QUÍMICA APLICADA
W54: CENTRO DE INVESTIGACIÓN Y ASISTENCIA EN TECNOLOGÍA Y DISEÑO DEL ESTADO DE JALISCO, A.C.
W55: CENTRO DE INVESTIGACIÓN Y DE ESTUDIOS AVANZADOS DEL INSTITUTO POLITÉCNICO NACIONAL
W56: CENTRO DE INVESTIGACIÓN Y DESARROLLO TECNOLÓGICO EN ELECTROQUÍMICA, S.C.
W57: CENTRO DE INVESTIGACIÓN Y DOCENCIA ECONÓMICAS, A.C.
W58: CENTRO DE INVESTIGACIÓN Y SEGURIDAD NACIONAL
W59: CENTRO DE INVESTIGACIONES BIOLÓGICAS DEL NOROESTE, S.C.
W60: CENTRO DE INVESTIGACIONES EN ÓPTICA, A.C.
W61: CENTRO DE INVESTIGACIONES Y ESTUDIOS SUPERIORES EN ANTROPOLOGÍA SOCIAL
W62: CENTRO DE PRODUCCIÓN DE PROGRAMAS INFORMATIVOS Y ESPECIALES
W63: CENTRO DE TECNOLOGÍA AVANZADA
W64: CENTRO FEDERAL DE PROTECCIÓN A PERSONAS
W65: CENTRO NACIONAL DE CONTROL DE ENERGÍA
W66: CENTRO NACIONAL DE CONTROL DEL GAS NATURAL
W67: CENTRO NACIONAL DE EQUIDAD DE GÉNERO Y SALUD REPRODUCTIVA
W68: CENTRO NACIONAL DE EXCELENCIA TECNOLÓGICA EN SALUD
W69: CENTRO NACIONAL DE LA TRANSFUSIÓN SANGUÍNEA
W70: CENTRO NACIONAL DE METROLOGÍA
W71: CENTRO NACIONAL DE PLANEACIÓN, ANÁLISIS E INFORMACIÓN PARA EL COMBATE A LA DELINCUENCIA
W72: CENTRO NACIONAL DE PREVENCIÓN DE DESASTRES
W73: CENTRO NACIONAL DE PROGRAMAS PREVENTIVOS Y CONTROL DE ENFERMEDADES
W74: CENTRO NACIONAL DE TRASPLANTES
W75: CENTRO NACIONAL PARA LA PREVENCIÓN Y EL CONTROL DE LAS ADICCIONES
W76: CENTRO NACIONAL PARA LA PREVENCIÓN Y EL CONTROL DEL VIH/SIDA
W77: CENTRO NACIONAL PARA LA SALUD DE LA INFANCIA Y LA ADOLESCENCIA
W78: CENTRO REGIONAL DE ALTA ESPECIALIDAD DE CHIAPAS
W79: CENTROS DE INTEGRACIÓN JUVENIL, A.C.
W80: CIATEC, A.C.
W81: COLEGIO DE BACHILLERES
W82: COLEGIO DE POSTGRADUADOS
W83: COLEGIO NACIONAL DE EDUCACIÓN PROFESIONAL TÉCNICA
W84: COLEGIO SUPERIOR AGROPECUARIO DEL ESTADO DE GUERRERO
W85: COMISIÓN DE APELACIÓN Y ARBITRAJE DEL DEPORTE
W86: COMISIÓN DE OPERACIÓN Y FOMENTO DE ACTIVIDADES ACADÉMICAS DEL INSTITUTO POLITÉCNICO NACIONAL
W87: COMISIÓN EJECUTIVA DE ATENCIÓN A VÍCTIMAS
W88: COMISIÓN FEDERAL DE COMPETENCIA ECONÓMICA
W89: COMISIÓN FEDERAL DE ELECTRICIDAD
W90: COMISIÓN FEDERAL DE MEJORA REGULATORIA
W91: COMISIÓN FEDERAL PARA LA PROTECCIÓN CONTRA RIESGOS SANITARIOS
W92: COMISIÓN NACIONAL BANCARIA Y DE VALORES
W93: COMISIÓN NACIONAL DE ACUACULTURA Y PESCA
W94: COMISIÓN NACIONAL DE ARBITRAJE MÉDICO
W95: COMISIÓN NACIONAL DE ÁREAS NATURALES PROTEGIDAS
W96: COMISIÓN NACIONAL DE BIOÉTICA
W97: COMISIÓN NACIONAL DE CULTURA FÍSICA Y DEPORTE
W98: COMISIÓN NACIONAL DE HIDROCARBUROS
W99: COMISIÓN NACIONAL DE LIBROS DE TEXTO GRATUITOS
W100: COMISIÓN NACIONAL DE LOS DERECHOS HUMANOS
W101: COMISIÓN NACIONAL DE LOS SALARIOS MÍNIMOS
W102: COMISIÓN NACIONAL DE PROTECCIÓN SOCIAL EN SALUD
W103: COMISIÓN NACIONAL DE SEGURIDAD NUCLEAR Y SALVAGUARDIAS
W104: COMISIÓN NACIONAL DE SEGUROS Y FIANZAS
W105: COMISIÓN NACIONAL DE VIVIENDA
W106: COMISIÓN NACIONAL DE ZONAS ÁRIDAS
W107: COMISIÓN NACIONAL DEL AGUA
W108: COMISIÓN NACIONAL DEL SISTEMA DE AHORRO PARA EL RETIRO
W109: COMISIÓN NACIONAL FORESTAL
W110: COMISIÓN NACIONAL PARA EL DESARROLLO DE LOS PUEBLOS INDÍGENAS
W111: COMISIÓN NACIONAL PARA EL USO EFICIENTE DE LA ENERGÍA
W112: COMISIÓN NACIONAL PARA LA PROTECCIÓN Y DEFENSA DE LOS USUARIOS DE SERVICIOS FINANCIEROS
W113: COMISIÓN NACIONAL PARA PREVENIR Y ERRADICAR LA VIOLENCIA CONTRA LAS MUJERES
W114: COMISIÓN PARA LA REGULARIZACIÓN DE LA TENENCIA DE LA TIERRA
W115: COMISIÓN REGULADORA DE ENERGÍA
W116: COMITÉ NACIONAL MIXTO DE PROTECCIÓN AL SALARIO
W117: COMITÉ NACIONAL PARA EL DESARROLLO SUSTENTABLE DE LA CAÑA DE AZÚCAR
W118: COMPAÑÍA MEXICANA DE EXPLORACIONES
W119: COMPAÑÍA OPERADORA DEL CENTRO CULTURAL Y TURÍSTICO DE TIJUANA, S.A. DE C.V
W120: COMPLEMENTO DEL PRÉSTAMO ESPECIAL PARA EL AHORRO (PEA) Y PRESTAMOS DE CORTO Y MEDIANO PLAZO PARA JUBILADOS BAJO EL PLAN DE BENEFICIO DEFINIDO
W121: CONSEJERÍA JURÍDICA DEL EJECUTIVO FEDERAL
W122: CONSEJO DE LA JUDICATURA
W123: CONSEJO DE PROMOCIÓN TURÍSTICA DE MÉXICO, S.A. DE C.V.
W124: CONSEJO NACIONAL DE CIENCIA Y TECNOLOGÍA
W125: CONSEJO NACIONAL DE EVALUACIÓN DE LA POLÍTICA DE DESARROLLO SOCIAL
W126: CONSEJO NACIONAL DE FOMENTO EDUCATIVO
W127: CONSEJO NACIONAL DE NORMALIZACIÓN Y CERTIFICACIÓN DE COMPETENCIAS LABORALES
W128: CONSEJO NACIONAL DE POBLACIÓN
W129: CONSEJO NACIONAL PARA EL DESARROLLO Y LA INCLUSIÓN DE LAS PERSONAS CON DISCAPACIDAD
W130: CONSEJO NACIONAL PARA LA CULTURA Y LAS ARTES
W131: CONSEJO NACIONAL PARA PREVENIR LA DISCRIMINACIÓN
W132: CONSERVADURÍA DE PALACIO NACIONAL
W133: CONTRALORÍA DEL PODER JUDICIAL DE LA FEDERACIÓN
W134: CONTRATO DE FIDEICOMISO CON NÚMERO 108601 CON EL BANCO NACIONAL DEL EJÉRCITO, FUERZA AÉREA Y ARMADA, S.N.C. (BANJERCITO), PARA LA ADMINISTRACIÓN DEL FONDO POR CONCEPTO DE LAS APORTACIONES PARA EL CUMPLIMIENTO DEL PROGRAMA DEL PASIVO LABORAL
W135: CONTRATO DE MANDATO PARA EL PAGO DE HABERES DE RETIRO, PENSIONES Y COMPENSACIONES
W136: CONTRATO ESPECIFICO ABIERTO PARA LA CONSTRUCCIÓN Y SUMINISTRO DE REMOLCADORES, CHALANES Y EMBARCACIONES MULTIPROPÓSITO PARA LA FLOTA MENOR DE PEMEX REFINACIÓN
W137: CONVENIO DE ADHESIÓN AL FIDEICOMISO "C" F/1532 AHM/SOCIEDAD HIPOTECARIA FEDERAL
W138: CONVENIO DE COOPERACIÓN PARA LA OPERACIÓN DEL PROGRAMA DE EDUCACIÓN A DISTANCIA
W139: CONVENIO DE COOPERACIÓN PARA LA OPERACIÓN DEL PROGRAMA DE EDUCACIÓN A DISTANCIA II
W140: CONVENIO DE COOPERACIÓN PARA LA OPERACIÓN DEL PROGRAMA DE EDUCACIÓN A DISTANCIA
W141: CONVENIO DE COOPERACIÓN PARA LA OPERACIÓN DEL PROGRAMA DE EDUCACIÓN A DISTANCIA II
W142: CONVENIO ESPECÍFICO PARA LA OPERACIÓN Y DESARROLLO DEL PROGRAMA SEPA-INGLES
W143: COORDINACIÓN GENERAL DE @PRENDE.MX
W144: COORDINACIÓN GENERAL DE LA COMISIÓN MEXICANA DE AYUDA A REFUGIADOS
W145: COORDINACIÓN NACIONAL ANTISECUESTRO
W146: COORDINACIÓN NACIONAL DE PROSPERA PROGRAMA DE INCLUSIÓN SOCIAL
W147: COORDINACIÓN NACIONAL DEL SERVICIO PROFESIONAL DOCENTE
W148: COORDINACIÓN PARA LA ATENCIÓN INTEGRAL DE LA MIGRACIÓN EN LA FRONTERA SUR
W149: CORPORACIÓN DE SERVICIOS AL TURISTA ÁNGELES VERDES
W150: CORPORACIÓN MEXICANA DE INVESTIGACIÓN EN MATERIALES, S.A. DE C.V.
W151: DICONSA, S.A. DE C.V.
W152: DIF BOSQUES DE LAS LOMAS
W153: DIF BOSQUES DE LAS LOMAS
W154: EDUCAL, S.A. DE C.V.
W155: EL 0.136 POR CIENTO DE LA RFP
W156: EL COLEGIO DE LA FRONTERA NORTE, A.C.
W157: EL COLEGIO DE LA FRONTERA SUR
W158: EL COLEGIO DE MÉXICO, A.C.
W159: EL COLEGIO DE MICHOACÁN, A.C.
W160: EL COLEGIO DE SAN LUIS, A.C.
W161: ENCUENTRO SOCIAL
W162: ESTUDIOS CHURUBUSCO AZTECA, S.A.
W163: EUROCENTRO NAFIN-MÉXICO 11081
W164: EXPORTADORA DE SAL, S.A. DE C.V.
W165: EXTINTA LUZ Y FUERZA DEL CENTRO
W166: F/11025590 (ANTES 4483-0)
W167: F/21935-2
W168: FERROCARRIL CHIHUAHUA AL PACÍFICO, S.A. DE C.V.
W169: FERROCARRIL DEL ISTMO DE TEHUANTEPEC, S.A. DE C.V.
W170: FERROCARRILES NACIONALES DE MÉXICO
W171: FID. 122.- BENJAMÍN HILL TRABAJADORES F.F.C.C. SONORA-BAJA CALIFORNIA
W172: FID. 122.- BENJAMÍN HILL TRABAJADORES F.F.C.C. SONORA-BAJA CALIFORNIA
W173: FID. 1327.- GOBIERNO FEDERAL, PROGRAMA DE VIVIENDA PARA MAGISTRADOS Y JUECES DEL PODER JUDICIAL FEDERAL
W174: FID. 159.- HABER SOCIAL BANCO NACIONAL DE TRANSPORTES, S.A.
W175: FID. 159.- HABER SOCIAL BANCO NACIONAL DE TRANSPORTES, S.A.
W176: FID. 2065.- PLAN DE PENSIONES DE LOS JUBILADOS DE BANOBRAS.
W177: FID. 2160 FONDO DE PENSIONES DE CONTRIBUCIÓN DEFINIDA
W178: FID. 285.-PROMOTORA DE DESARROLLO URBANO.- FRACCIONAMIENTO BOSQUES DEL VALLE COACALCO.
W179: FID. 285.-PROMOTORA DE DESARROLLO URBANO.- FRACCIONAMIENTO BOSQUES DEL VALLE COACALCO.
W180: FID. 294.- COLONIA PETROLERA JOSE ESCANDÓN.
W181: FID. 351.- UNIDAD MORAZÁN.
W182: FID. 351.- UNIDAD MORAZÁN.
W183: FID. 66.- GOBIERNO FEDERAL PARA CRÉDITOS ESPECIALES
W184: FID. 66.- GOBIERNO FEDERAL PARA CRÉDITOS ESPECIALES
W185: FIDEICOMISO “FONDO MIXTO DE COOPERACIÓN TÉCNICA Y CIENTÍFICA MÉXICO-ESPAÑA”
W186: FIDEICOMISO 1725-1-PARA INTEGRAR DIVERSOS FONDOS (PATRIMONIAL)
W187: FIDEICOMISO 1738-3-CIENCIA Y TECNOLOGÍA
W188: FIDEICOMISO 1936 FONDO NACIONAL DE INFRAESTRUCTURA.
W189: FIDEICOMISO 2003 "FONDO DE DESASTRES NATURALES"
W190: FIDEICOMISO 2165-8 "FONDO PARA LIQUIDACIÓN DE TRABAJADORES DELA RED FONADIN" (ANTES FARAC).
W191: FIDEICOMISO A FAVOR DE LOS HIJOS DEL PERSONAL ADSCRITO AL ESTADO MAYOR PRESIDENCIAL
W192: FIDEICOMISO ANGELES VERDES
W193: FIDEICOMISO ARCHIVOS PLUTARCO ELÍAS CALLES Y FERNANDO TORREBLANCA.
W194: FIDEICOMISO BARRANCAS DEL COBRE.
W195: FIDEICOMISO CENTRO DE INGENIERÍA Y DESARROLLO INDUSTRIAL NO. 135826-8
W196: FIDEICOMISO CENTRO DE INVESTIGACIÓN EN ALIMENTACIÓN Y DESARROLLO, A.C. (CIAD)
W197: FIDEICOMISO CENTRO DE INVESTIGACIÓN EN MATEMÁTICAS NO. 040024-1
W198: FIDEICOMISO CENTRO DE INVESTIGACIÓN EN MATERIALES AVANZADOS, S.C. (CIMAV)
W199: FIDEICOMISO CENTRO DE INVESTIGACIONES BIOLÓGICAS DEL NOROESTE, S.C.
W200: FIDEICOMISO CENTRO DE INVESTIGACIONES EN ÓPTICA, A.C. NO. 040026-8
W201: FIDEICOMISO CIATEC
W202: FIDEICOMISO DE ADMINISTRACIÓN DE GASTOS PREVIOS
W203: FIDEICOMISO DE ADMINISTRACIÓN DE TEATROS Y SALAS DE ESPECTÁCULOS IMSS
W204: FIDEICOMISO DE ADMINISTRACIÓN E INVERSIÓN PARA EL DESARROLLO Y FOMENTO DEL DEPORTE EN EL ESTADO DE PUEBLA
W205: FIDEICOMISO DE ADMINISTRACIÓN E INVERSIÓN PARA EL ESTABLECIMIENTO Y OPERACIÓN DE LOS FONDOS DE APOYO A LA INVESTIGACIÓN CIENTÍFICA Y DESARROLLO TECNOLÓGICO DEL INIFAP
W206: FIDEICOMISO DE ADMINISTRACIÓN E INVERSIÓN PARA EL MANEJO DEL FONDO DE AHORRO DE LOS TRABAJADORES DEL FONDO DE CULTURA ECONÓMICA
W207: FIDEICOMISO DE ADMINISTRACIÓN E INVERSIÓN PARA PENSIONES DE LOS TRABAJADORES
W208: FIDEICOMISO DE ADMINISTRACIÓN PARA EL OTORGAMIENTO Y PRIMAS DE ANTIGÜEDAD
W209: FIDEICOMISO DE ADMINISTRACIÓN Y GARANTÍA COMPLEMENTARIA FONDO 95
W210: FIDEICOMISO DE ADMINISTRACIÓN Y OPERACIÓN DEL ISSFAM
W211: FIDEICOMISO DE ADMINISTRACIÓN Y TRASLATIVO DE DOMINIO (OBRAS DE INFRAESTRUCTURA PARA EL SISTEMA ELÉCTRICO FEDERAL)
W212: FIDEICOMISO DE ADMINISTRACIÓN Y GARANTÍA COMPLEMENTARIA FONDO 95
W213: FIDEICOMISO DE ADMINISTRACIÓN, INVERSIÓN Y PAGO NÚMERO 013 ANP VALLE DE BRAVO
W214: FIDEICOMISO DE APOYO A DEUDOS DE MILITARES FALLECIDOS EN ACTOS DEL SERVICIO DE ALTO RIESGO
... 556 more rows

Sheet Obligaciones (hidden)
A1: Volver al índice | B1: Hojas | C1: Título | D1: Artículo | E1: Fracción | F1: Inciso | G1: No. de Crit.Sust | H1: adj | I1: Periodo de Actualización | J1: del | K1: al | L1: RANG.SUST | M1: del | N1: al | O1: RANG.ADJ
A2: Art.83_IV_A | B2: Art 83 IV Municipios | C2: Art. 83 - Fracción IV - Inciso A - El Plan Municipal de Desarrollo, así como los planes y programas operativos anuales que se deriven de éste y de la Ley de Planeación para el Estado de Baja California. | D2: 83 | E2: IV | F2: A | G2: 4 | H2: 4 | I2: Periodicidad de actualización: anual | J2: 28 | K2: 31 | L2: 28:31 | M2: 36 | N2: 39 | O2: 36:39
A3: Art.83_IV_B | B3: Art 83 IV Municipios | C3: Art. 83 - Fracción IV - Inciso B - El Presupuesto de Egresos Municipal y de las entidades paramunicipales, así como las fórmulas de distribución de los recursos otorgados. | D3: 83 | E3: IV | F3: B | G3: 5 | H3: 4 | I3: Periodicidad de actualización: anual | J3: 59 | K3: 63 | L3: 59:63 | M3: 68 | N3: 71 | O3: 68:71
A4: Art.83_IV_C | B4: Art 83 IV Municipios | C4: Art. 83 - Fracción IV - Inciso C - Los ingresos por concepto de participaciones federales y estatales; así como por la recaudación fiscal que se integre a la hacienda pública, incluyendo la de entidades paramunicipales. | D4: 83 | E4: IV | F4: C | G4: 5 | H4: 4 | I4: Periodicidad de actualización: anual | J4: 91 | K4: 95 | L4: 91:95 | M4: 100 | N4: 103 | O4: 100:103
A5: Art.83_IV_D | B5: Art 83 IV Municipios | C5: Art. 83 - Fracción IV - Inciso D - Inventario de sus bienes inmuebles, el cual deberá incluir fotografía de los mismos. | D5: 83 | E5: IV | F5: D | G5: 17 | H5: 4 | I5: Periodicidad de actualización: anual | J5: 123 | K5: 139 | L5: 123:139 | M5: 144 | N5: 147 | O5: 144:147
A6: Art.83_IV_E | B6: Art 83 IV Municipios | C6: Art. 83 - Fracción IV - Inciso E - El nombre, denominación o razón social y clave del registro federal de los contribuyentes a los que se les hubiera cancelado o condonado algún crédito fiscal, así como los montos respectivos. Asimismo, la información estadística sobre las exenciones previstas en las disposiciones fiscales. | D6: 83 | E6: IV | F6: E | G6: 8 | H6: 4 | I6: Periodicidad de actualización: trimestral | J6: 167 | K6: 174 | L6: 167:174 | M6: 179 | N6: 182 | O6: 179:182
A7: Art.83_IV_F | B7: Art 83 IV Municipios | C7: Art. 83 - Fracción IV - Inciso F - El contenido de las gacetas municipales, las cuales deberán comprender los resolutivos y acuerdos aprobados por los ayuntamientos | D7: 83 | E7: IV | F7: F | G7: 8 | H7: 8 | I7: Periodicidad de actualización: trimestral, de acuerdo con la normatividad correspondiente | J7: 202 | K7: 209 | L7: 202:209 | M7: 214 | N7: 221 | O7: 214:221
A8: Art.83_IV_G | B8: Art 83 IV Municipios | C8: Art. 83 - Fracción IV - Inciso G - Las actas de sesiones de cabildo, los controles de asistencia de los integrantes del Ayuntamiento a las sesiones de cabildo y el sentido de votación de los miembros del cabildo sobre las iniciativas o acuerdos. | D8: 83 | E8: IV | F8: G | G8: 13 | H8: 8 | I8: Periodicidad de actualización: trimestral | J8: 241 | K8: 253 | L8: 241:253 | M8: 258 | N8: 265 | O8: 258:265
A9: Art.83_IV_H | B9: Art 83 IV Municipios | C9: Art. 83 - Fracción IV - Inciso H - Las iniciativas de reglamentos o acuerdos, así como el estado que guardan. | D9: 83 | E9: IV | F9: H | G9: 6 | H9: 4 | I9: Periodicidad de actualización: trimestral | J9: 285 | K9: 290 | L9: 285:290 | M9: 295 | N9: 298 | O9: 295:298
A10: Art.83_IV_I | B10: Art 83 IV Municipios | C10: Art. 83 - Fracción IV - Inciso I - Dictámenes y acuerdos aprobados por el Cabildo. | D10: 83 | E10: IV | F10: I | G10: 6 | H10: 4 | I10: Periodicidad de actualización: semanal | J10: 318 | K10: 323 | L10: 318:323 | M10: 328 | N10: 331 | O10: 328:331
A11: Art.83_IV_J | B11: Art 83 IV Municipios | C11: Art. 83 - Fracción IV - Inciso J - La información detallada que contengan los planes de desarrollo urbano, ordenamiento territorial y ecológico, los tipos y usos de suelo, licencias de uso y construcción otorgadas. | D11: 83 | E11: IV | F11: J | G11: 8 | H11: 4 | I11: Periodicidad de actualización: mensual | J11: 351 | K11: 358 | L11: 351:358 | M11: 363 | N11: 366 | O11: 363:366
A12: Art.83_IV_K | B12: Art 83 IV Municipios | C12: Art. 83 - Fracción IV - Inciso K - Las disposiciones administrativas, directamente o a través de la autoridad competente, con el plazo de anticipación que prevean las disposiciones aplicables al sujeto obligado de que se trate, salvo que su difusión pueda comprometer los efectos Que se pretenden lograr con la disposición o se trate de situaciones de emergencia, de conformidad con dichas disposiciones. | D12: 83 | E12: IV | F12: K | G12: 8 | H12: 4 | I12: Periodicidad de actualización: trimestral | J12: 386 | K12: 393 | L12: 386:393 | M12: 398 | N12: 401 | O12: 398:401
A13: Art.83_IV_L | B13: Art 83 IV Municipios | C13: Art. 83 - Fracción IV - Inciso L - La iniciativa de Ley de ingreso, así como la aprobada. | D13: 83 | E13: IV | F13: L | G13: 5 | H13: 4 | I13: Periodicidad de actualización: anual | J13: 421 | K13: 425 | L13: 421:425 | M13: 430 | N13: 433 | O13: 430:433
A14: Art.83_IV_M | B14: Art 83 IV Municipios | C14: Art. 83 - Fracción IV - Inciso M - Resultados de estudios o programas que sustenten políticas públicas, reglamentos o bandos de aplicación municipal. | D14: 83 | E14: IV | F14: M | G14: 5 | H14: 4 | I14: Periodicidad de actualización: anual | J14: 453 | K14: 457 | L14: 453:457 | M14: 462 | N14: 465 | O14: 462:465
A15: Art.83_IV_N_i | B15: Art 83 IV Municipios | C15: Art. 83 - Fracción IV - Inciso N - Los resultados sobre procedimientos de adjudicación directa, invitación restringida y licitación de cualquier naturaleza, incluyendo el o los contratos celebrados. En el caso que contengan información reservada o confidencial, sobre ellos se difundirá una versión pública que deberá contener, de manera enunciativa más no limitativa, lo siguiente: i. De licitaciones públicas o procedimientos de invitación a cuando menos tres personas: Los mecanismos de vigilancia y supervisión, incluyendo, en su caso, los estudios de impacto urbano y ambiental, según corresponda: | D15: 83 | E15: IV | F15: N (i) | G15: 12 | H15: 4 | I15: Periodicidad de actualización: trimestral | J15: 485 | K15: 496 | L15: 485:496 | M15: 501 | N15: 504 | O15: 501:504
A16: Art.83_IV_N_ii | B16: Art 83 IV Municipios | C16: Art. 83 - Fracción IV - Inciso N - Los resultados sobre procedimientos de adjudicación directa, invitación restringida y licitación de cualquier naturaleza, incluyendo el o los contratos celebrados. En el caso que contengan información reservada o confidencial, sobre ellos se difundirá una versión pública que deberá contener, de manera enunciativa más no limitativa, lo siguiente: ii. De las adjudicaciones directas: Los mecanismos de vigilancia y supervisión, incluyendo, en su caso, los estudios de impacto urbano y ambiental, según corresponda. | D16: 83 | E16: IV | F16: N (ii) | G16: 11 | H16: 4 | I16: Periodicidad de actualización: trimestral | J16: 522 | K16: 532 | L16: 522:532 | M16: 537 | N16: 540 | O16: 537:540
A17: Art.82_I | B17: Art 82 | C17: Art. 82 - Fracción I. Presupuesto aprobado por partida y ejercido | D17: 82 | E17: I | G17: 13 | H17: 4 | I17: Periodicidad de actualización: trimestral, a excepción de los informes y documentos de naturaleza anual y otros que por virtud de Ley o disposición legal aplicable tengan un plazo y periodicidad determinada | J17: 28 | K17: 40 | L17: 28:40 | M17: 45 | N17: 48 | O17: 45:48
A18: Art.82_II | B18: Art 82 | C18: Art. 82 - Fracción II - Contrato, monto y factura | D18: 82 | E18: II | G18: 7 | H18: 4 | I18: Periodicidad de actualización: trimestral, a excepción de los informes y documentos de naturaleza anual y otros que por virtud de Ley o disposición legal aplicable tengan un plazo y periodicidad determinada | J18: 68 | K18: 74 | L18: 68:74 | M18: 79 | N18: 82 | O18: 79:82
A19: Art.82_III | B19: Art 82 | C19: Art. 82 - Fracción III - Fecha de inicio y fecha de término | D19: 82 | E19: III | G19: 4 | H19: 4 | I19: Periodicidad de actualización: trimestral, a excepción de los informes y documentos de naturaleza anual y otros que por virtud de Ley o disposición legal aplicable tengan un plazo y periodicidad determinada | J19: 102 | K19: 105 | L19: 102:105 | M19: 110 | N19: 113 | O19: 110:113
A20: Art.82_IV | B20: Art 82 | C20: Art. 82 - Fracción IV - Dependencia o dirección que la solicita | D20: 82 | E20: IV | G20: 3 | H20: 4 | I20: Periodicidad de actualización: trimestral, a excepción de los informes y documentos de naturaleza anual y otros que por virtud de Ley o disposición legal aplicable tengan un plazo y periodicidad determinada | J20: 133 | K20: 135 | L20: 133:135 | M20: 140 | N20: 143 | O20: 140:143
A21: Art.82_V | B21: Art 82 | C21: Art. 82 - Fracción V - Tipo de medio de comunicación | D21: 82 | E21: V | G21: 5 | H21: 4 | I21: Periodicidad de actualización: trimestral, a excepción de los informes y documentos de naturaleza anual y otros que por virtud de Ley o disposición legal aplicable tengan un plazo y periodicidad determinada | J21: 163 | K21: 167 | L21: 163:167 | M21: 172 | N21: 175 | O21: 172:175
A22: Art.82_VI | B22: Art 82 | C22: Art. 82 - Fracción VI - Costo por centímetro de las publicaciones impresas y por segundo o minuto según sea el caso de la difusión en medios electrónicos | D22: 82 | E22: VI | G22: 9 | H22: 4 | I22: Periodicidad de actualización: trimestral, a excepción de los informes y documentos de naturaleza anual y otros que por virtud de Ley o disposición legal aplicable tengan un plazo y periodicidad determinada | J22: 195 | K22: 203 | L22: 195:203 | M22: 208 | N22: 211 | O22: 208:211
A23: Art.82_VII | B23: Art 82 | C23: Art. 82 - Fracción VII - Padrón de proveedores | D23: 82 | E23: VII | G23: 8 | H23: 4 | I23: Periodicidad de actualización: trimestral, a excepción de los informes y documentos de naturaleza anual y otros que por virtud de Ley o disposición legal aplicable tengan un plazo y periodicidad determinada | J23: 231 | K23: 238 | L23: 231:238 | M23: 243 | N23: 246 | O23: 243:246
A24: Art.81_FI | B24: Art 81 | C24: Art. 81 - Fracción I. Marco Normativo | D24: 81 | E24: I | G24: 5 | H24: 8 | I24: Periodo de actualización: Trimestral | J24: 28 | K24: 32 | L24: 28:32 | M24: 37 | N24: 44 | O24: 37:44
A25: Art.81_FII | B25: Art 81 | C25: Art. 81 - Fracción II. Estructura orgánica | D25: 81 | E25: II | G25: 13 | H25: 8 | I25: Periodo de actualización: Trimestral | J25: 63 | K25: 75 | L25: 63:75 | M25: 80 | N25: 87 | O25: 80:87
A26: Art.81_FIII | B26: Art 81 | C26: Art. 81 - Fracción III. Facultades de cada Área | D26: 81 | E26: III | G26: 4 | H26: 8 | I26: Periodo de actualización: Trimestral | J26: 106 | K26: 109 | L26: 106:109 | M26: 114 | N26: 121 | O26: 114:121
A27: Art.81_FIV | B27: Art 81 | C27: Art. 81 - Fracción IV. Metas y objetivos | D27: 81 | E27: IV | G27: 7 | H27: 8 | I27: Periodo de actualización: Anual | J27: 140 | K27: 146 | L27: 140:146 | M27: 151 | N27: 158 | O27: 151:158
A28: Art.81_FV | B28: Art 81 | C28: Art. 81 - Fracción V. Indicadores interés público | D28: 81 | E28: V | G28: 15 | H28: 8 | I28: Periodo de actualización: Anual | J28: 177 | K28: 191 | L28: 177:191 | M28: 196 | N28: 203 | O28: 196:203
A29: Art.81_FVI | B29: Art 81 | C29: Art. 81 - Fracción VI. Indicadores de resultados | D29: 81 | E29: VI | G29: 16 | H29: 8 | I29: Periodo de actualización: Anual | J29: 222 | K29: 237 | L29: 222:237 | M29: 242 | N29: 249 | O29: 242:249
A30: Art.81_FVII | B30: Art 81 | C30: Art. 81 - Fracción VII. Directorio | D30: 81 | E30: VII | G30: 9 | H30: 8 | I30: Periodo de actualización: Trimestral | J30: 268 | K30: 276 | L30: 268:276 | M30: 281 | N30: 288 | O30: 281:288
A31: Art.81_FVIII | B31: Art 81 | C31: Art. 81 - Fracción VIII. Remuneración servidores públicos | D31: 81 | E31: VIII | G31: 20 | H31: 8 | I31: Periodo de actualización: Trimestral | J31: 307 | K31: 326 | L31: 307:326 | M31: 331 | N31: 338 | O31: 331:338
A32: Art.81_FIX | B32: Art 81 | C32: Art. 81 - Fracción IX. Gastos de representación y viáticos | D32: 81 | E32: IX | G32: 52 | H32: 8 | I32: Periodo de actualización: Trimestral | J32: 357 | K32: 408 | L32: 357:408 | M32: 413 | N32: 420 | O32: 413:420
A33: Art.81_FX | B33: Art 81 | C33: Art. 81 - Fracción X. Total de plazas (base y confianza) | D33: 81 | E33: X | G33: 14 | H33: 8 | I33: Periodo de actualización: Trimestral | J33: 439 | K33: 452 | L33: 439:452 | M33: 457 | N33: 464 | O33: 457:464
A34: Art.81_FXI | B34: Art 81 | C34: Art. 81 - Fracción XI. Contrataciones honorarios | D34: 81 | E34: XI | G34: 14 | H34: 8 | I34: Periodo de actualización: Trimestral | J34: 483 | K34: 496 | L34: 483:496 | M34: 501 | N34: 508 | O34: 501:508
A35: Art.81_FXII | B35: Art 81 | C35: Art. 81 - Fracción XII. Declaraciones patrimoniales | D35: 81 | E35: XII | G35: 9 | H35: 8 | I35: Periodo de actualización: Trimestral | J35: 527 | K35: 535 | L35: 527:535 | M35: 540 | N35: 547 | O35: 540:547
A36: Art.81_FXIII | B36: Art 81 | C36: Art. 81 - Fracción XIII. Datos de Unidad de Transparencia | D36: 81 | E36: XIII | G36: 9 | H36: 8 | I36: Periodo de actualización: Trimestral | J36: 566 | K36: 574 | L36: 566:574 | M36: 579 | N36: 586 | O36: 579:586
A37: Art.81_FXIV | B37: Art 81 | C37: Art. 81 - Fracción XIV. Concursos para ocupar cargos | D37: 81 | E37: XIV | G37: 16 | H37: 8 | I37: Periodo de actualización: Trimestral | J37: 605 | K37: 620 | L37: 605:620 | M37: 625 | N37: 632 | O37: 625:632
A38: Art.81_FXV | B38: Art 81 | C38: Art. 81 - Fracción XV. Programas sociales | D38: 81 | E38: XV | G38: 57 | H38: 8 | I38: Periodo de actualización: Trimestral | J38: 651 | K38: 707 | L38: 651:707 | M38: 712 | N38: 719 | O38: 712:719
A39: Art.81_FXVI | B39: Art 81 | C39: Art. 81 - Fracción XVI. Relaciones laborales y recursos públicos a sindicatos | D39: 81 | E39: XVI | G39: 24 | H39: 8 | I39: Periodo de actualización: Trimestral | J39: 738 | K39: 761 | L39: 738:761 | M39: 766 | N39: 773 | O39: 766:773
A40: Art.81_FXVII | B40: Art 81 | C40: Art. 81 - Fracción XVII. Datos curriculares | D40: 81 | E40: XVII | G40: 13 | H40: 8 | I40: Periodo de actualización: Trimestral | J40: 792 | K40: 804 | L40: 792:804 | M40: 809 | N40: 816 | O40: 809:816
A41: Art.81_FXVIII | B41: Art 81 | C41: Art. 81 - Fracción XVIII. Funcionarios sancionados | D41: 81 | E41: XVIII | G41: 14 | H41: 8 | I41: Periodo de actualización: Trimestral | J41: 835 | K41: 848 | L41: 835:848 | M41: 853 | N41: 860 | O41: 853:860
A42: Art.81_FXIX | B42: Art 81 | C42: Art. 81 - Fracción XIX. Servicios | D42: 81 | E42: XIX | G42: 22 | H42: 8 | I42: Periodo de actualización: Trimestral | J42: 879 | K42: 900 | L42: 879:900 | M42: 905 | N42: 912 | O42: 905:912
A43: Art.81_FXX | B43: Art 81 | C43: Art. 81 - Fracción XX. Trámites | D43: 81 | E43: XX | G43: 22 | H43: 8 | I43: Periodo de actualización: Trimestral | J43: 931 | K43: 952 | L43: 931:952 | M43: 957 | N43: 964 | O43: 957:964
A44: Art.81_FXXI | B44: Art 81 | C44: Art. 81 - Fracción XXI. Presupuesto e informes trimestrales | D44: 81 | E44: XXI | G44: 16 | H44: 8 | I44: Periodo de actualización: Trimestral | J44: 983 | K44: 998 | L44: 983:998 | M44: 1003 | N44: 1010 | O44: 1003:1010
A45: Art.81_FXXII | B45: Art 81 | C45: Art. 81 - Fracción XXII. Deuda pública | D45: 81 | E45: XXII | G45: 26 | H45: 8 | I45: Periodo de actualización: Trimestral | J45: 1029 | K45: 1054 | L45: 1029:1054 | M45: 1059 | N45: 1066 | O45: 1059:1066
A46: Art.81_FXXIII | B46: Art 81 | C46: Art. 81 - Fracción XXIII. Comunicación social y publicidad | D46: 81 | E46: XXIII | G46: 83 | H46: 8 | I46: Periodo de actualización: Trimestral | J46: 1085 | K46: 1167 | L46: 1085:1167 | M46: 1172 | N46: 1179 | O46: 1172:1179
A47: Art.81_FXXIV | B47: Art 81 | C47: Art. 81 - Fracción XXIV. Resultados de auditorías | D47: 81 | E47: XXIV | G47: 24 | H47: 8 | I47: Periodo de actualización: Trimestral | J47: 1198 | K47: 1221 | L47: 1198:1221 | M47: 1226 | N47: 1233 | O47: 1226:1233
A48: Art.81_FXXV | B48: Art 81 | C48: Art. 81 - Fracción XXV. Dictámenes estados financieros | D48: 81 | E48: XXV | G48: 9 | H48: 8 | I48: Periodo de actualización: Anual | J48: 1252 | K48: 1260 | L48: 1252:1260 | M48: 1265 | N48: 1272 | O48: 1265:1272
A49: Art.81_FXXVI | B49: Art 81 | C49: Art. 81 - Fracción XXVI. Personas físicas o morales a quienes se asigne recursos públicos | D49: 81 | E49: XXVI | G49: 17 | H49: 8 | I49: Periodo de actualización: Trimestral | J49: 1291 | K49: 1307 | L49: 1291:1307 | M49: 1312 | N49: 1319 | O49: 1312:1319
A50: Art.81_FXXVII | B50: Art 81 | C50: Art. 81 - Fracción XXVII. Concesiones, contratos, convenios, permisos, licencias o autorizaciones otorgados | D50: 81 | E50: XXVII | G50: 17 | H50: 8 | I50: Periodo de actualización: Trimestral | J50: 1338 | K50: 1354 | L50: 1338:1354 | M50: 1359 | N50: 1366 | O50: 1359:1366
A51: Art.81_FXXVIII | B51: Art 81 | C51: Art. 81 - Fracción XXVIII. Procedimientos de adjudicación directa, invitación restringida y licitaciones | D51: 81 | E51: XXVIII | G51: 93 | H51: 8 | I51: Periodo de actualización: Trimestral | J51: 1385 | K51: 1477 | L51: 1385:1477 | M51: 1482 | N51: 1489 | O51: 1482:1489
A52: Art.81_FXXIX | B52: Art 81 | C52: Art. 81 - Fracción XXIX. Informes | D52: 81 | E52: XXIX | G52: 8 | H52: 8 | I52: Periodo de actualización: Trimestral | J52: 1508 | K52: 1515 | L52: 1508:1515 | M52: 1520 | N52: 1527 | O52: 1520:1527
A53: Art.81_FXXX | B53: Art 81 | C53: Art. 81 - Fracción XXX. Estadísticas generadas | D53: 81 | E53: XXX | G53: 10 | H53: 8 | I53: Periodo de actualización: Trimestral | J53: 1546 | K53: 1555 | L53: 1546:1555 | M53: 1560 | N53: 1567 | O53: 1560:1567
A54: Art.81_FXXXI | B54: Art 81 | C54: Art. 81 - Fracción XXXI. Informes de avances y documentos financieros | D54: 81 | E54: XXXI | G54: 11 | H54: 8 | I54: Periodo de actualización: Trimestral | J54: 1586 | K54: 1596 | L54: 1586:1596 | M54: 1601 | N54: 1608 | O54: 1601:1608
A55: Art.81_FXXXII | B55: Art 81 | C55: Art. 81 - Fracción XXXII. Padrón proveedores y contratistas | D55: 81 | E55: XXXII | G55: 20 | H55: 8 | I55: Periodo de actualización: Trimestral | J55: 1627 | K55: 1646 | L55: 1627:1646 | M55: 1651 | N55: 1658 | O55: 1651:1658
A56: Art.81_FXXXIII | B56: Art 81 | C56: Art. 81 - Fracción XXXIII. Convenios con sectores social y privado | D56: 81 | E56: XXXIII | G56: 12 | H56: 8 | I56: Periodo de actualización: Trimestral | J56: 1677 | K56: 1688 | L56: 1677:1688 | M56: 1693 | N56: 1700 | O56: 1693:1700
A57: Art.81_FXXXIV | B57: Art 81 | C57: Art. 81 - Fracción XXXIV. Inventario de bienes | D57: 81 | E57: XXXIV | G57: 36 | H57: 8 | I57: Periodo de actualización: Sexsenal | J57: 1719 | K57: 1754 | L57: 1719:1754 | M57: 1759 | N57: 1766 | O57: 1759:1766
A58: Art.81_FXXXV | B58: Art 81 | C58: Art. 81 - Fracción XXXV. Recomendaciones y su atención en materia de derechos humanos | D58: 81 | E58: XXXV | G58: 51 | H58: 8 | I58: Periodo de actualización: Trimestral | J58: 1785 | K58: 1835 | L58: 1785:1835 | M58: 1840 | N58: 1847 | O58: 1840:1847
A59: Art.81_FXXXVI | B59: Art 81 | C59: Art. 81 - Fracción XXXVI. Resoluciones y laudos de juicios | D59: 81 | E59: XXXVI | G59: 10 | H59: 8 | I59: Periodo de actualización: Trimestral | J59: 1866 | K59: 1875 | L59: 1866:1875 | M59: 1880 | N59: 1887 | O59: 1880:1887
A60: Art.81_FXXXVII | B60: Art 81 | C60: Art. 81 - Fracción XXXVII. Mecanismos de participación ciudadana | D60: 81 | E60: XXXVII | G60: 20 | H60: 8 | I60: Periodo de actualización: Trimestral | J60: 1906 | K60: 1925 | L60: 1906:1925 | M60: 1930 | N60: 1937 | O60: 1930:1937
A61: Art.81_FXXXVIII | B61: Art 81 | C61: Art. 81 - Fracción XXXVIII. Programas ofrecidos | D61: 81 | E61: XXXVIII | G61: 43 | H61: 8 | I61: Periodo de actualización: Trimestral | J61: 1956 | K61: 1998 | L61: 1956:1998 | M61: 2003 | N61: 2010 | O61: 2003:2010
A62: Art.81_FXXXIX | B62: Art 81 | C62: Art. 81 - Fracción XXXIX. Actas y resoluciones del Comité de Transparencia | D62: 81 | E62: XXXIX | G62: 24 | H62: 8 | I62: Periodo de actualización: Trimestral | J62: 2029 | K62: 2052 | L62: 2029:2052 | M62: 2057 | N62: 2064 | O62: 2057:2064
A63: Art.81_FXL | B63: Art 81 | C63: Art. 81 - Fracción XL. Evaluaciones y encuestas a programas financiados con recursos públicos | D63: 81 | E63: XL | G63: 9 | H63: 8 | I63: Periodo de actualización: Anual | J63: 2083 | K63: 2091 | L63: 2083:2091 | M63: 2096 | N63: 2103 | O63: 2096:2103
A64: Art.81_FXLI | B64: Art 81 | C64: Art. 81 - Fracción XLI. Estudios pagados con recursos públicos | D64: 81 | E64: XLI | G64: 43 | H64: 8 | I64: Periodo de actualización: Trimestral | J64: 2122 | K64: 2164 | L64: 2122:2164 | M64: 2169 | N64: 2176 | O64: 2169:2176
A65: Art.81_FXLII | B65: Art 81 | C65: Art. 81 - Fracción XLII. Pagos a jubilados y pensionados | D65: 81 | E65: XLII | G65: 9 | H65: 8 | I65: Periodo de actualización: Trimestral | J65: 2195 | K65: 2203 | L65: 2195:2203 | M65: 2208 | N65: 2215 | O65: 2208:2215
A66: Art.81_FXLIII | B66: Art 81 | C66: Art. 81 - Fracción XLIII. Ingresos totales del sujeto obligado | D66: 81 | E66: XLIII | G66: 14 | H66: 8 | I66: Periodo de actualización: Trimestral | J66: 2234 | K66: 2247 | L66: 2234:2247 | M66: 2252 | N66: 2259 | O66: 2252:2259
A67: Art.81_FXLIV | B67: Art 81 | C67: Art. 81 - Fracción XLIV. Donaciones en dinero o en especie | D67: 81 | E67: XLIV | G67: 23 | H67: 8 | I67: Periodo de actualización: Trimestral | J67: 2278 | K67: 2300 | L67: 2278:2300 | M67: 2305 | N67: 2312 | O67: 2305:2312
A68: Art.81_FXLV | B68: Art 81 | C68: Art. 81 - Fracción XLV. Instrumentos de archivos | D68: 81 | E68: XLV | G68: 8 | H68: 8 | I68: Periodo de actualización: Trimestral | J68: 2331 | K68: 2338 | L68: 2331:2338 | M68: 2343 | N68: 2350 | O68: 2343:2350
A69: Art.81_FXLVI | B69: Art 81 | C69: Art. 81 - Fracción XLVI. Actas de las sesiones, opiniones y recomendaciones de los consejos consultivos | D69: 81 | E69: XLVI | G69: 14 | H69: 8 | I69: Periodo de actualización: Trimestral | J69: 2369 | K69: 2382 | L69: 2369:2382 | M69: 2387 | N69: 2394 | O69: 2387:2394
A70: Art.81_FXLVII | B70: Art 81 | C70: Art. 81 - Fracción XLVII. Solicitudes a empresas concesionarias para la intervención de comunicaciones privadas, el acceso al registro de comunicaciones y la localización geográfica, y | D70: 81 | E70: XLVII | G70: 15 | H70: 8 | I70: Periodo de actualización: Trimestral | J70: 2413 | K70: 2427 | L70: 2413:2427 | M70: 2432 | N70: 2439 | O70: 2432:2439
A71: Art.81_FXLVIII | B71: Art 81 | C71: Art. 81 - Fracción XLVIII. Otra información útil o relevante | D71: 81 | E71: XLVIII | G71: 12 | H71: 8 | I71: Periodo de actualización: Trimestral | J71: 2458 | K71: 2469 | L71: 2458:2469 | M71: 2474 | N71: 2481 | O71: 2474:2481
A72: Art.81_UltPa | B72: Art 81 | C72: Art. 81 - Último Párrafo. Aplicabilidad y conservación | D72: 81 | E72: ltPa | G72: 3 | H72: 8 | I72: Periodo de actualización: Anual | J72: 2500 | K72: 2502 | L72: 2500:2502 | M72: 2507 | N72: 2514 | O72: 2507:2514
G73: No. de Crit.Sust | H73: No. de Crit.Adj
G74: =SUM(G2:G72) -> 1205 | H74: =SUM(H2:H72) -> 488
G75: =SUM(G2:H72) -> 1693
I110: PERSONALIZADO LIC. JULIO CESAR VARGAS AYALA

Sheet Art. 81
A1: Volver al índice | C1: =IF('Aplicabilidad Específicos'!G3="","",'Aplicabilidad Específicos'!G3) -> Ayuntamiento de Mexicali, Baja California
C3: El artículo 81 dice a la letra: Artículo 81. Los sujetos obligados deberán poner a disposición del público y mantengan actualizada conforme a lo establecido por esta Ley, en sus respectivos portales de internet, la información de interés público por lo menos, de los temas, documentos y políticas que a continuación se señalan:
C5: Fecha de inicio de la verificación: | G5: Fecha de término de la verificación
C7: 14 de febrero de 2024 | G7: 19 de febrero de 2024
C9: Índice de Criterios Sustantivos: | E9: =AVERAGE(E19,E57,E104,E140,E179,E225,E272,E314,E420,E479,E532,E578,E624,E667,E720,E828,E878,E925,E981,E1048,E1113,E1167,E1224,E1343,E1400,E1441,E1494,E1546,E1700,E1740,E1781,E1832,E1886,E1931,E2022,E2105,E2146,E2206,E2288,E2347,E2389,E2437,E2480,E2531,E2590,E2628,E2673,E2769) -> 0.7925230415
C10: Índice de Criterios Adjetivos: | E10: =AVERAGE(E20,E58,E105,E141,E180,E226,E273,E315,E421,E480,E533,E579,E625,E668,E721,E829,E879,E926,E982,E1049,E1114,E1168,E1225,E1344,E1401,E1442,E1495,E1547,E1701,E1741,E1782,E1833,E1887,E1932,E2023,E2106,E2147,E2207,E2289,E2348,E2390,E2438,E2481,E2532,E2591,E2629,E2674,E2770) -> 0.9335748792
C11: Índice del Artículo: | E11: =AVERAGE(E21,E59,E106,E142,E181,E227,E274,E316,E422,E481,E534,E580,E626,E669,E722,E830,E880,E927,E983,E1050,E1115,E1169,E1226,E1345,E1402,E1443,E1496,E1548,E1702,E1742,E1783,E1834,E1888,E1933,E2024,E2107,E2148,E2208,E2290,E2349,E2391,E2439,E2482,E2533,E2592,E2630,E2675,E2771) -> 0.8489437766
B14: Códigos de valoración : Cumplió totalmente = 1; Cumplió parcialmente = 0.5; No cumplió = 0; Justificado = Justificado
B17: Art. 81 - Fracción I. El marco normativo aplicable al sujeto obligado, en el que deberá incluirse leyes, códigos, reglamentos, decretos de creación, manuales administrativos, reglas de operación, criterios, políticas, entre otros | I17: PARRAFO EXPLICATIVO
B18: LTG-PAG.14 | K18: Constitución Política de los Estados Unidos Mexicanos
C19: Criterios Sustantivos | E19: =IF('Aplicabilidad Art. 81'!$E$10="NO","NA",SUM(E28:E34)/SUM(D28:D34)) -> 1 | G19: Periodo de actualización: trimestral. Únicamente cuando se expida alguna reforma, adición, derogación, abrogación o se realice cualquier tipo de modificación al marco normativo aplicable al sujeto obligado, la información deberá publicarse y/o actualizarse en un plazo no mayor a 15 días hábiles a partir de su publicación en el Diario Oficial de la Federación (DOF), Periódico o Gaceta Oficial, o acuerdo de aprobación en el caso de normas publicadas por medios distintos, como el sitio de Internet. | K19: Tratado internacional
C20: Criterios Adjetivos | E20: =IF('Aplicabilidad Art. 81'!$E$10="NO","NA",SUM(E39:E47)/SUM(D39:D47)) -> 1 | G20: Conservar en el sitio de Internet: información vigente | K20: Constitución Política de la entidad federativa
C21: Fracción: | E21: =IF('Aplicabilidad Art. 81'!$E$10="NO","NA",E19*0.6+E20*0.4) -> 1 | G21: Aplica a: todos los sujetos obligados | K21: Ley General de Transparencia y Acceso a la Información Pública
K22: Ley General de Archivos
K23: Lineamientos Técnicos Generales
K24: Lineamientos Técnicos Locales
C25: Criterios Sustantivos de contenido | K25: Estatuto
K26: Ley General
C27: Criterio | D27: Valor criterio | E27: Valoración | F27: Tipo | G27: Requerimiento | K27: Ley Federal
C28: Criterio 1. Ejercicio | D28: =IF(E28="Justificado",0,1) -> 1 | E28: 1 | H28: 1 | K28: Ley Orgánica
C29: Criterio 2. Periodo que se informa (fecha de inicio y fecha de término con el formato día/mes/año) | D29: 1 | E29: 1 | H29: 1 | K29: Ley Local
C30: Criterio 3. Tipo de normatividad (catálogo): Constitución Política de los Estados Unidos Mexicanos/Tratado internacional/Constitución Política de la entidad federativa/Estatuto/Ley General/Ley Federal/Ley Orgánica/Ley local/Ley Reglamentaria/Código/Reglamento/Decreto/Manual/Reglas de operación/Criterios/Política/Condiciones/Norma/Bando/Resolución/Lineamientos/Circular/Acuerdo/Convenio/Contrato/Estatuto sindical/Estatuto Universitario/Estatuto de personas morales/Memorando de entendimiento/Otro | D30: 1 | E30: 1 | H30: 1 | K30: Ley Reglamentaria
C31: Criterio 4. Denominación de la norma que se reporta | D31: 1 | E31: 1 | H31: 1 | K31: Código
C32: Criterio 5. Fecha de publicación en el DOF u otro medio oficial o institucional expresada en el formato día/mes/año. En su caso, se incluirá la fecha de publicación y/o fecha de firma o aprobación y en el caso de Tratados Internacionales se registrará la fecha de publicación y/o fecha de ratificación con el formato día/mes/año | D32: 1 | E32: 1 | H32: 1 | K32: Reglamento
C33: Criterio 6. Fecha de última modificación, en su caso, expresada en el formato día/mes/año. De no existir modificación, se repetirá la fecha de publicación | D33: 1 | E33: 1 | H33: 1 | K33: Decreto
C34: Criterio 7. Hipervínculo al documento completo de cada norma | D34: 1 | E34: 1 | H34: 1 | K34: Manual
K35: Reglas de operación
C36: Criterios Adjetivos | K36: Criterios
K37: Políticas
C38: Criterio | D38: Valor criterio | E38: Valoración | F38: Tipo | G38: Requerimiento | K38: Condiciones
C39: Criterio 8. Periodo de actualización de la información: trimestral. Únicamente cuando se expida alguna reforma, adición, derogación, abrogación o se realice cualquier tipo de modificación al marco normativo aplicable al sujeto obligado, la información deberá publicarse y/o actualizarse en un plazo no mayor a 15 días hábiles a partir de su publicación en el DOF, Periódico o Gaceta Oficial, o acuerdo de aprobación en el caso de normas publicadas por medios distintos, como el sitio de Internet | D39: =IF(E39="Justificado",0,1) -> 1 | E39: 1 | K39: Norma
C40: Criterio 9. La información publicada deberá estar actualizada al periodo que corresponde, de acuerdo con la Tabla de actualización y conservación de la información | D40: 1 | E40: 1 | K40: Bando
C41: Criterio 10. Conservar en el sitio de Internet y a través de la Plataforma Nacional la información vigente de acuerdo con la Tabla de actualización y conservación de la información | D41: 1 | E41: 1 | K41: Resolución
C42: Criterio 11. Área(s) responsable(s) que genera(n), posee(n), publica(n) y actualiza(n) la información. | D42: 1 | E42: 1 | K42: Lineamientos
C43: Criterio 12. Fecha de actualización de la información publicada con el formato día/mes/año | D43: 1 | E43: 1 | K43: Circular
C44: Criterio 13. Fecha de validación de la información publicada con el formato día/mes/año | D44: 1 | E44: 1 | K44: Acuerdo
C45: Criterio 14. Nota. Este criterio se cumple en caso de que sea necesario que el sujeto obligado incluya alguna aclaración relativa a la información publicada y/o explicación por la falta de información | D45: 1 | E45: 1 | K45: Convenio
C46: Criterio 15. La información publicada se organiza mediante el formato 1, en el que se incluyen todos los campos especificados en los criterios sustantivos de contenido | D46: 1 | E46: 1 | K46: Contrato
C47: Criterio 16. El soporte de la información permite su reutilización | D47: 1 | E47: 1 | K47: Estatuto sindical
K48: Estatuto Universitario
K49: Estatuto de personas morales
E50: =SUM(D28:D47) -> 16 | K50: Memorando de entendimiento
K51: Otro (protocolo, principios,)
B55: Art. 81 - Fracción II. Su estructura orgánica completa, en un formato que permita vincular cada parte de la estructura, las atribuciones y responsabilidades que le corresponden a cada servidor público, prestador de servicios profesionales o miembro de los sujetos obligados de conformidad con las disposiciones aplicables *************************************************************************************************************************** | I55: PARRAFO EXPLICATIVO
B56: LTG-PAG.17 | K56: PRESIDENCIA MUNICIPAL
C57: Criterios Sustantivos | E57: =IF('Aplicabilidad Art. 81'!$E$12="NO","NA",SUM(E66:E81)/SUM(D66:D81)) -> 1 | G57: Periodo de actualización: trimestral. En su caso, 15 días hábiles después de la aprobación de alguna modificación a la estructura orgánica. | K57: SINDICATURA PROCURADORA
C58: Criterios Adjetivos | E58: =IF('Aplicabilidad Art. 81'!$E$12="NO","NA",SUM(E86:E94)/SUM(D86:D94)) -> 1 | G58: Conservar en el sitio de Internet: información vigente | K58: REGIDORES
C59: Fracción: | E59: =IF('Aplicabilidad Art. 81'!$E$12="NO","NA",E57*0.6+E58*0.4) -> 1 | G59: Aplica a: todos los sujetos obligados | K59: SECRETARÍA DE GOBIERNO MUNICIPAL
K60: CONSEJERÍA JURÍDICA MUNICIPAL
K61: OFICIAL MAYOR
K62: TESORERÍA MUNICIPAL
C63: Criterios Sustantivos de contenido | K63: SECRETARÍA DE SEGURIDAD Y PROTECCIÓN CIUDADANA
K64: DIRECCIÓN DE TRANSPORTE PÚBLICO
C65: Criterio | D65: Valor criterio | E65: Valoración | F65: Tipo | G65: Requerimiento | K65: SECRETARÍA DE DESARROLLO TERRITORIAL, URBANO Y AMBIENTAL
C66: Criterio 1. Ejercicio | D66: =IF(E66="Justificado",0,1) -> 1 | E66: 1 | H66: 2A | K66: SECRETARÍA DE BIENESTAR
C67: Criterio 2. Periodo que se informa (fecha de inicio y fecha de término con el formato día/mes/año) | D67: 1 | E67: 1 | H67: 2A | K67: SECRETARÍA DE DESARROLLO ECONÓMICO
C68: Criterio 3. Denominación del área (de acuerdo con el catálogo que en su caso regule la actividad del sujeto obligado) | D68: 1 | E68: 1 | H68: 2A
C69: Criterio 4. Denominación del puesto (de acuerdo con el catálogo que en su caso regule la actividad del sujeto obligado). La información deberá estar ordenada de tal forma que sea posible visualizar los niveles de jerarquía y sus relaciones de dependencia. La información debe publicarse con perspectiva de género5, en caso de que el catálogo que regule al sujeto obligado no contenga redacción con perspectiva de género, se incluirá la alternativa incluyente y no sexista entre paréntesis o corchetes. | D69: 1 | E69: 1 | H69: 2A
C70: Criterio 5. Denominación del cargo (de conformidad con nombramiento otorgado) | D70: 1 | E70: 1 | H70: 2A
C71: Criterio 6. Área de adscripción inmediata superior | D71: 1 | E71: 1 | H71: 2A | K71: SECRETARÍA DE EDUCACIÓN PÚBLICA
C72: Criterio 7. Por cada puesto y/o cargo de la estructura se deberá especificar la denominación de la norma que establece sus atribuciones, responsabilidades y/o funciones, según sea el caso y el fundamento legal (artículo y/o fracción) que sustenta el puesto | D72: 1 | E72: 1 | H72: 2A | K72: SECRETARÍA DE MOVILIDAD URBANA SUSTENTABLE
C73: Criterio 8. Por cada puesto o cargo deben registrarse las atribuciones, responsabilidades y/o funciones, según sea el caso, haciendo uso de lenguaje incluyente y no sexista, en caso de que la información no contenga redacción con perspectiva de género, se incluirá la alternativa incluyente y no sexista entre paréntesis o corchetes | D73: 1 | E73: 1 | H73: 2A | K73: TRIBUNAL UNITARIO CONTENCIOSO ADMINISTRATIVO
C74: Criterio 9. Hipervínculo al perfil y/o requerimientos del puesto o cargo, en caso de existir de acuerdo con la normatividad que aplique. La información debe publicarse con perspectiva de género, en caso de que los documentos que regulen al sujeto obligado no contengan redacción con perspectiva de género, se incluirá la alternativa incluyente y no sexista entre paréntesis o corchetes. | D74: 1 | E74: 1 | H74: 2A
C75: Criterio 10. Por cada área del sujeto obligado se debe incluir, en su caso, el número total de prestadores de servicios profesionales o miembros que integren el sujeto obligado de conformidad con las disposiciones aplicables (por ejemplo, en puestos honoríficos) | D75: 1 | E75: 1 | H75: 2A
B76: Adicionalmente, el sujeto obligado publicará el organigrama completo del sujeto obligado: | C76: Criterio 11. Ejercicio | D76: 1 | E76: 1 | H76: 2B
C77: Criterio 12. Periodo que se informa (fecha de inicio y fecha de término con el formato día/mes/año) | D77: 1 | E77: 1 | H77: 2B
C78: Criterio 13. Hipervínculo al organigrama completo del sujeto obligado (forma gráfica de la estructura orgánica), acorde a su normatividad, el cual deberá contener el número de dictamen o similar | D78: 1 | E78: 1 | H78: 2B
B79: Para identificar si el sujeto obligado cuenta con atribuciones y/o instancias que brindan atención a temas de género, se deberá especificar: | C79: Criterio 14. ¿El sujeto obligado tiene entre sus atribuciones dar atención a temas relacionados con violencia y/o igualdad de género? (catálogo): Sí/No | D79: 1 | E79: 1 | H79: 2B
C80: Criterio 15. Denominación del área/s que, de conformidad con sus atribuciones, dan atención a temas relacionados con violencia y/o igualdad de género | D80: 1 | E80: 1 | H80: 2B
C81: Criterio 16. En su caso, denominación del Comité o instancia que atiende temas de género, aun cuando no cuente con atribuciones expresas para ello | D81: 1 | E81: 1 | H81: 2B
C83: Criterios Adjetivos
C85: Criterio | D85: Valor criterio | E85: Valoración | F85: Tipo | G85: Requerimiento
C86: Criterio 17. Periodo de actualización de la información: trimestral. En su caso, 15 días hábiles después de la aprobación de alguna modificación a la estructura orgánica | D86: =IF(E86="Justificado",0,1) -> 1 | E86: 1
C87: Criterio 18. La información publicada deberá estar actualizada al periodo que corresponde, de acuerdo con la Tabla de actualización y conservación de la información | D87: 1 | E87: 1
C88: Criterio 19. Conservar en el sitio de Internet y a través de la Plataforma Nacional la información vigente, de acuerdo con la Tabla de actualización y conservación de la información | D88: 1 | E88: 1
C89: Criterio 20. Área(s) responsable(s) genera(n), posee(n), publica(n) y actualiza(n) la información. | D89: 1 | E89: 1
C90: Criterio 21. Fecha de actualización de la información publicada con el formato día/mes/año | D90: 1 | E90: 1
C91: Criterio 22. Fecha de validación de la información publicada con el formato día/mes/año | D91: 1 | E91: 1
C92: Criterio 23. Nota. Este criterio se cumple en caso de que sea necesario que el sujeto obligado incluya alguna aclaración relativa a la información publicada y/o explicación por la falta de información | D92: 1 | E92: 1
C93: Criterio 24. La información publicada se organiza mediante los formatos 2ª y 2b, en el que se incluyen todos los campos especificados en los criterios sustantivos de contenido | D93: 1 | E93: 1
C94: Criterio 25. El soporte de la información permite su reutilización | D94: 1 | E94: 1
E97: =SUM(D66:D94) -> 25
B102: Art. 81 - Fracción III - Facultades de cada Área ********************************************************************************************************************** | I102: PARRAFO EXPLICATIVO
B103: LTG-PAG.21 | K103: PRESIDENCIA MUNICIPAL
C104: Criterios Sustantivos | E104: =IF('Aplicabilidad Art. 81'!$E$14="NO","NA",SUM(E113:E117)/SUM(D113:D117)) -> 0.9 | G104: Periodo de actualización: trimestral. En su caso, 15 días hábiles después de alguna modificación. | K104: SINDICATURA PROCURADORA
C105: Criterios Adjetivos | E105: =IF('Aplicabilidad Art. 81'!$E$14="NO","NA",SUM(E122:E130)/SUM(D122:D130)) -> 1 | G105: Conservar en el sitio de Internet: información vigente | K105: REGIDORES
C106: Fracción: | E106: =IF('Aplicabilidad Art. 81'!$E$14="NO","NA",E104*0.6+E105*0.4) -> 0.94 | G106: Aplica a: todos los sujetos obligados | K106: SECRETARÍA DE GOBIERNO MUNICIPAL
K107: CONSEJERÍA JURÍDICA MUNICIPAL
K108: OFICIAL MAYOR
K109: TESORERÍA MUNICIPAL
C110: Criterios Sustantivos de contenido | K110: SECRETARÍA DE SEGURIDAD Y PROTECCIÓN CIUDADANA
K111: DIRECCIÓN DE TRANSPORTE PÚBLICO
C112: Criterio | D112: Valor criterio | E112: Valoración | F112: Tipo | G112: Requerimiento | K112: SECRETARÍA DE DESARROLLO TERRITORIAL, URBANO Y AMBIENTAL
C113: Criterio 1. Ejercicio | D113: =IF(E113="Justificado",0,1) -> 1 | E113: 1 | H113: 3 | K113: SECRETARÍA DE BIENESTAR
C114: Criterio 2. Periodo que se informa (fecha de inicio y fecha de término con el formato día/mes/año) | D114: 1 | E114: 1 | H114: 3 | K114: SECRETARÍA DE DESARROLLO ECONÓMICO
C115: Criterio 3. Denominación del área (de acuerdo con el catálogo que en su caso regule la actividad del sujeto obligado) | D115: 1 | E115: 1 | H115: 3 | K115: SECRETARÍA DE EDUCACIÓN PÚBLICA
B116: Por cada área se deberá especificar lo siguiente: | C116: Criterio 4. Denominación de la norma en la que se establecen sus facultades y el fundamento legal (artículo y/o fracción) | D116: 1 | E116: 1 | H116: 3 | K116: SECRETARÍA DE MOVILIDAD URBANA SUSTENTABLE
C117: Criterio 5. Hipervínculo al fragmento del reglamento interior, estatuto orgánico o normatividad equivalente en el que se observen las facultades que correspondan a cada área | D117: 1 | E117: 0.5 | F117: Requerimiento | G117: Al hacer click en el hipervinculo al fragmento del reglamento proporcionado, se advierte no se puede acceder, marcando error. | H117: 3 | K117: TRIBUNAL UNITARIO CONTENCIOSO ADMINISTRATIVO
C119: Criterios Adjetivos
C121: Criterio | D121: Valor criterio | E121: Valoración | F121: Tipo | G121: Requerimiento
C122: Criterio 6. Periodo de actualización de la información: trimestral. En su caso, 15 días hábiles después de alguna modificación | D122: =IF(E122="Justificado",0,1) -> 1 | E122: 1
C123: Criterio 7. La información publicada deberá estar actualizada al periodo que corresponde, de acuerdo con la Tabla de actualización y conservación de la información | D123: 1 | E123: 1
C124: Criterio 8. Conservar en el sitio de Internet y a través de la Plataforma Nacional la información vigente, de acuerdo con la Tabla de actualización y conservación de la información | D124: 1 | E124: 1
C125: Criterio 9. Área(s) responsable(s) que genera(n), posee(n), publica(n) y actualiza(n) la información | D125: 1 | E125: 1
C126: Criterio 10. Fecha de actualización de la información publicada con el formato día/mes/año | D126: 1 | E126: 1
C127: Criterio 11. Fecha de validación de la información publicada con el formato día/mes/año | D127: 1 | E127: 1
C128: Criterio 12. Nota. Este criterio se cumple en caso de que sea necesario que el sujeto obligado incluya alguna aclaración relativa a la información publicada y/o explicación por la falta de información. | D128: 1 | E128: 1
C129: Criterio 13. La información publicada se organiza mediante el formato 3, en el que se incluyen todos los campos especificados en los criterios sustantivos de contenido | D129: 1 | E129: 1
C130: Criterio 14. El soporte de la información permite su reutilización | D130: 1 | E130: 1
E133: =SUM(D113:D130) -> 14
B138: Art. 81 - Fracción IV. Las metas y objetivos de las Áreas de conformidad con sus programas operativos ******************************************************************************************************************************* | I138: PARRAFO EXPLICATIVO
K139: PRESIDENCIA MUNICIPAL
C140: Criterios Sustantivos | E140: =IF('Aplicabilidad Art. 81'!$E$16="NO","NA",SUM(E149:E156)/SUM(D149:D156)) -> 0.875 | G140: Periodo de actualización: anual, durante el primer trimestre del ejercicio en curso | K140: SINDICATURA PROCURADORA
C141: Criterios Adjetivos | E141: =IF('Aplicabilidad Art. 81'!$E$16="NO","NA",SUM(E161:E169)/SUM(D161:D169)) -> 1 | G141: Conservar en el sitio de Internet: información del ejercicio en curso y la correspondiente a los seis ejercicios anteriores | K141: REGIDORES
C142: Fracción: | E142: =IF('Aplicabilidad Art. 81'!$E$16="NO","NA",E140*0.6+E141*0.4) -> 0.925 | G142: Aplica a: todos los sujetos obligados | K142: SECRETARÍA DE GOBIERNO MUNICIPAL
K143: CONSEJERÍA JURÍDICA MUNICIPAL
K144: OFICIAL MAYOR
K145: TESORERÍA MUNICIPAL
C146: Criterios Sustantivos de contenido | K146: SECRETARÍA DE SEGURIDAD Y PROTECCIÓN CIUDADANA
K147: DIRECCIÓN DE TRANSPORTE PÚBLICO
C148: Criterio | D148: Valor criterio | E148: Valoración | F148: Tipo | G148: Requerimiento | K148: SECRETARÍA DE DESARROLLO TERRITORIAL, URBANO Y AMBIENTAL
C149: Criterio 1. Ejercicio | D149: =IF(E149="Justificado",0,1) -> 1 | E149: 1 | H149: 4 | K149: SECRETARÍA DE BIENESTAR
C150: Criterio 2. Periodo que se informa (fecha de inicio y fecha de término con el formato día/mes/año) | D150: 1 | E150: 1 | H150: 4 | K150: SECRETARÍA DE DESARROLLO ECONÓMICO
C151: Criterio 3. Denominación del área | D151: 1 | E151: 1 | H151: 4 | K151: SECRETARÍA DE EDUCACIÓN PÚBLICA
C152: Criterio 4. Descripción breve y clara de cada objetivo. La información debe publicarse con perspectiva de género, en caso de que los documentos que regulen al sujeto obligado no contengan redacción con perspectiva de género, se incluirá la alternativa incluyente y no sexista entre paréntesis o corchetes | D152: 1 | E152: 1 | H152: 4 | K152: SECRETARÍA DE MOVILIDAD URBANA SUSTENTABLE
C153: Criterio 5. Por cada objetivo, se publicarán los indicadores asociados | D153: 1 | E153: 1 | H153: 4 | K153: TRIBUNAL UNITARIO CONTENCIOSO ADMINISTRATIVO
C154: Criterio 6. Cada indicador deberá señalar la(s) meta(s) | D154: 1 | E154: 1 | H154: 4
C155: Criterio 7. Cada meta deberá especificar su unidad de medida | D155: 1 | E155: 1 | H155: 4
C156: Criterio 8. Hipervínculo al documento del o los programas operativos, presupuestarios, sectoriales, regionales, institucionales, especiales, de trabajo y/o anuales; según corresponda, en un formato que permita la reutilización de la información | D156: 1 | E156: 0 | F156: Requerimiento | G156: deberá publicar el Hipervínculo Al Documento Del O Los Programas Operativos, Presupuestarios, Sectoriales, entre Otros, respecto del ejercicio 2023 | H156: 4
C158: Criterios Adjetivos
C160: Criterio | D160: Valor criterio | E160: Valoración | F160: Tipo | G160: Requerimiento
C161: Criterio 9. Periodo de actualización de la información: anual, durante el primer trimestre del ejercicio en curso | D161: =IF(E161="Justificado",0,1) -> 1 | E161: 1
C162: Criterio 10. La información publicada deberá estar actualizada al periodo que corresponde, de acuerdo con la Tabla de actualización y conservación de la información | D162: 1 | E162: 1
C163: Criterio 11. Conservar en el sitio de Internet y a través de la Plataforma Nacional la información de acuerdo con la Tabla de actualización y conservación de la información | D163: 1 | E163: 1
C164: Criterio 12. Área(s) responsable(s) que genera(n), posee(n), publica(n) y actualiza(n) la información | D164: 1 | E164: 1
C165: Criterio 13. Fecha de actualización de la información publicada con el formato día/mes/año | D165: 1 | E165: 1
C166: Criterio 14. Fecha de validación de la información publicada con el formato día/mes/año | D166: 1 | E166: 1
C167: Criterio 15. Nota. Este criterio se cumple en caso de que sea necesario que el sujeto obligado incluya alguna aclaración relativa a la información publicada y/o explicación por la falta de información | D167: 1 | E167: 1
C168: Criterio 16. La información publicada se organiza mediante el formato 4, en el que se incluyen todos los campos especificados en los criterios sustantivos de contenido | D168: 1 | E168: 1
C169: Criterio 17. El soporte de la información permite su reutilización | D169: 1 | E169: 1
E172: =SUM(D149:D169) -> 17
B177: Art. 81 - Fracción V. Los indicadores relacionados con temas de interés público o trascendencia social que conforme a sus funciones, deban establecer | I177: PARRAFO EXPLICATIVO
B178: LTG-PAG.24 | K178: PRESIDENCIA MUNICIPAL
C179: Criterios Sustantivos | E179: =IF('Aplicabilidad Art. 81'!$E$18="NO","NA",SUM(E188:E202)/SUM(D188:D202)) -> 0.1333333333 | G179: Periodo de actualización: trimestral | K179: SINDICATURA PROCURADORA
C180: Criterios Adjetivos | E180: =IF('Aplicabilidad Art. 81'!$E$18="NO","NA",SUM(E207:E215)/SUM(D207:D215)) -> 1 | G180: Conservar en el sitio de Internet: información del ejercicio en curso y la correspondiente a los seis ejercicios anteriores | K180: REGIDORES
C181: Fracción: | E181: =IF('Aplicabilidad Art. 81'!$E$18="NO","NA",E179*0.6+E180*0.4) -> 0.48 | G181: Aplica a: todos los sujetos obligados | K181: SECRETARÍA DE GOBIERNO MUNICIPAL
K182: CONSEJERÍA JURÍDICA MUNICIPAL
K183: OFICIAL MAYOR
K184: TESORERÍA MUNICIPAL
C185: Criterios Sustantivos de contenido | K185: SECRETARÍA DE SEGURIDAD Y PROTECCIÓN CIUDADANA
K186: DIRECCIÓN DE TRANSPORTE PÚBLICO
C187: Criterio | D187: Valor criterio | E187: Valoración | F187: Tipo | G187: Requerimiento | K187: SECRETARÍA DE DESARROLLO TERRITORIAL, URBANO Y AMBIENTAL
C188: Criterio 1. Ejercicio | D188: =IF(E188="Justificado",0,1) -> 1 | E188: 1 | H188: 5 | K188: SECRETARÍA DE BIENESTAR
C189: Criterio 2. Periodo que se informa (fecha de inicio y fecha de término con el formato día/mes/año) | D189: 1 | E189: 1 | H189: 5 | K189: SECRETARÍA DE DESARROLLO ECONÓMICO
C190: Criterio 3. Descripción breve y clara de cada objetivo. La información debe publicarse con perspectiva de género, en caso de que los documentos que regulen al sujeto obligado no contengan redacción con perspectiva de género, se incluirá la alternativa incluyente y no sexista entre paréntesis o corchetes | D190: 1 | E190: 0 | F190: Requerimiento | G190: Se deberán publicar los indicadores relacionado con temas de interes público. | H190: 5 | K190: SECRETARÍA DE EDUCACIÓN PÚBLICA
C191: Criterio 4. Nombre del(os) indicador(es) | D191: 1 | E191: 0 | F191: Requerimiento | G191: Se deberán publicar los indicadores relacionado con temas de interes público. | H191: 5 | K191: SECRETARÍA DE MOVILIDAD URBANA SUSTENTABLE
C192: Criterio 5. Dimensión(es) a medir | D192: 1 | E192: 0 | F192: Requerimiento | G192: Se deberán publicar los indicadores relacionado con temas de interes público. | H192: 5 | K192: TRIBUNAL UNITARIO CONTENCIOSO ADMINISTRATIVO
C193: Criterio 6. Definición del indicador, es decir, explicación breve y clara respecto de lo que debe medir el indicador | D193: 1 | E193: 0 | F193: Requerimiento | G193: Se deberán publicar los indicadores relacionado con temas de interes público. | H193: 5
C194: Criterio 7. Método de cálculo, es decir, las variables que intervienen en la fórmula. Se deberá especificar el significado de las siglas y/o abreviaturas | D194: 1 | E194: 0 | F194: Requerimiento | G194: Se deberán publicar los indicadores relacionado con temas de interes público. | H194: 5
C195: Criterio 8. Unidad de medida | D195: 1 | E195: 0 | F195: Requerimiento | G195: Se deberán publicar los indicadores relacionado con temas de interes público. | H195: 5
C196: Criterio 9. Frecuencia de medición | D196: 1 | E196: 0 | F196: Requerimiento | G196: Se deberán publicar los indicadores relacionado con temas de interes público. | H196: 5
C197: Criterio 10. Línea base (Punto de partida para evaluar y dar seguimiento al indicador) | D197: 1 | E197: 0 | F197: Requerimiento | G197: Se deberán publicar los indicadores relacionado con temas de interes público. | H197: 5
C198: Criterio 11. Metas programadas | D198: 1 | E198: 0 | F198: Requerimiento | G198: Se deberán publicar los indicadores relacionado con temas de interes público. | H198: 5
C199: Criterio 12. Metas ajustadas, en su caso | D199: 1 | E199: 0 | F199: Requerimiento | G199: Se deberán publicar los indicadores relacionado con temas de interes público. | H199: 5
C200: Criterio 13. Avance de las metas al periodo que se informa | D200: 1 | E200: 0 | F200: Requerimiento | G200: Se deberán publicar los indicadores relacionado con temas de interes público. | H200: 5
C201: Criterio 14. Sentido del indicador (catálogo): Ascendente/ Descendente | D201: 1 | E201: 0 | F201: Requerimiento | G201: Se deberán publicar los indicadores relacionado con temas de interes público. | H201: 5
C202: Criterio 15. Fuente de información (especificar la fuente de información que alimenta al indicador, por lo menos integrando: nombre de ésta, e institución responsable de su medición) | D202: 1 | E202: 0 | F202: Requerimiento | G202: Se deberán publicar los indicadores relacionado con temas de interes público. | H202: 5
C204: Criterios Adjetivos
C206: Criterio | D206: Valor criterio | E206: Valoración | F206: Tipo | G206: Requerimiento
C207: Criterio 16. Periodo de actualización de la información: trimestral | D207: =IF(E207="Justificado",0,1) -> 1 | E207: 1
C208: Criterio 17. La información publicada deberá estar actualizada al periodo que corresponde de acuerdo con la Tabla de actualización y conservación de la información | D208: 1 | E208: 1
C209: Criterio 18. Conservar en el sitio de Internet y a través de la Plataforma Nacional la información de acuerdo con la Tabla de actualización y conservación de la información | D209: 1 | E209: 1
C210: Criterio 19. Área(s) responsable(s) que genera(n) posee(n), publica(n) y/o actualiza(n)la información | D210: 1 | E210: 1
C211: Criterio 20. Fecha de actualización de la información publicada con el formato día/mes/año | D211: 1 | E211: 1
C212: Criterio 21. Fecha de validación de la información publicada con el formato día/mes/año | D212: 1 | E212: 1
C213: Criterio 22. Nota. Este criterio se cumple en caso de que sea necesario que el sujeto obligado incluya alguna aclaración relativa a la información publicada y/o explicación por la falta de información | D213: 1 | E213: 1
C214: Criterio 23. La información publicada se organiza mediante el formato 5, en el que se incluyen todos los campos especificados en los criterios sustantivos de contenido | D214: 1 | E214: 1
C215: Criterio 24. El soporte de la información permite su reutilización | D215: 1 | E215: 1
E218: =SUM(D188:D215) -> 24
B223: Art. 81 - Fracción VI. Los indicadores que permitan rendir cuenta de sus objetivos y resultados | I223: PARRAFO EXPLICATIVO
B224: LTG-PAG.26 | K224: PRESIDENCIA MUNICIPAL
C225: Criterios Sustantivos | E225: =IF('Aplicabilidad Art. 81'!$E$20="NO","NA",SUM(E234:E249)/SUM(D234:D249)) -> 0.125 | G225: Periodo de actualización: trimestral | K225: SINDICATURA PROCURADORA
C226: Criterios Adjetivos | E226: =IF('Aplicabilidad Art. 81'!$E$20="NO","NA",SUM(E254:E262)/SUM(D254:D262)) -> 1 | G226: Conservar en el sitio de Internet: información del ejercicio en curso y la correspondiente a los seis ejercicios anteriores | K226: REGIDORES
C227: Fracción: | E227: =IF('Aplicabilidad Art. 81'!$E$20="NO","NA",E225*0.6+E226*0.4) -> 0.475 | G227: Aplica a: todos los sujetos obligados | K227: SECRETARÍA DE GOBIERNO MUNICIPAL
K228: CONSEJERÍA JURÍDICA MUNICIPAL
K229: OFICIAL MAYOR
K230: TESORERÍA MUNICIPAL
C231: Criterios Sustantivos de contenido | K231: SECRETARÍA DE SEGURIDAD Y PROTECCIÓN CIUDADANA
K232: DIRECCIÓN DE TRANSPORTE PÚBLICO
C233: Criterio | D233: Valor criterio | E233: Valoración | F233: Tipo | G233: Requerimiento | K233: SECRETARÍA DE DESARROLLO TERRITORIAL, URBANO Y AMBIENTAL
C234: Criterio 1. Ejercicio | D234: =IF(E234="Justificado",0,1) -> 1 | E234: 1 | H234: 6 | K234: SECRETARÍA DE BIENESTAR
C235: Criterio 2. Periodo que se informa (fecha de inicio y fecha de término con el formato día/mes/año) | D235: 1 | E235: 1 | H235: 6 | K235: SECRETARÍA DE DESARROLLO ECONÓMICO
C236: Criterio 3. Nombre del programa o concepto al que corresponde el indicador | D236: 1 | E236: 0 | F236: Requerimiento | G236: Se deberán publicar los indicadoresue permitan rendir cuenta de sus objetivos y resultados | H236: 6 | K236: SECRETARÍA DE EDUCACIÓN PÚBLICA
C237: Criterio 4. Descripción breve y clara de cada objetivo institucional. La información debe publicarse con perspectiva de género, en caso de que los documentos que regulen al sujeto obligado no contengan redacción con perspectiva de género, se incluirá la alternativa incluyente y no sexista entre paréntesis o corchetes | D237: 1 | E237: 0 | F237: Requerimiento | G237: Se deberán publicar los indicadoresue permitan rendir cuenta de sus objetivos y resultados | H237: 6 | K237: SECRETARÍA DE MOVILIDAD URBANA SUSTENTABLE
C238: Criterio 5. Nombre del(os) indicador(es) | D238: 1 | E238: 0 | F238: Requerimiento | G238: Se deberán publicar los indicadoresue permitan rendir cuenta de sus objetivos y resultados | H238: 6 | K238: TRIBUNAL UNITARIO CONTENCIOSO ADMINISTRATIVO
C239: Criterio 6. Dimensión(es) a medir. Por ejemplo: eficacia, eficiencia, calidad y economía | D239: 1 | E239: 0 | F239: Requerimiento | G239: Se deberán publicar los indicadoresue permitan rendir cuenta de sus objetivos y resultados | H239: 6
C240: Criterio 7. Definición del indicador, es decir, explicación breve y clara respecto de lo que éste debe medir | D240: 1 | E240: 0 | F240: Requerimiento | G240: Se deberán publicar los indicadoresue permitan rendir cuenta de sus objetivos y resultados | H240: 6
C241: Criterio 8. Método de cálculo con las variables que intervienen en la fórmula, se deberá incluir el significado de las siglas y/o abreviaturas | D241: 1 | E241: 0 | F241: Requerimiento | G241: Se deberán publicar los indicadoresue permitan rendir cuenta de sus objetivos y resultados | H241: 6
C242: Criterio 9. Unidad de medida | D242: 1 | E242: 0 | F242: Requerimiento | G242: Se deberán publicar los indicadoresue permitan rendir cuenta de sus objetivos y resultados | H242: 6
C243: Criterio 10. Frecuencia de medición | D243: 1 | E243: 0 | F243: Requerimiento | G243: Se deberán publicar los indicadoresue permitan rendir cuenta de sus objetivos y resultados | H243: 6
... 2195 more rows

Sheet Art. 82
A1: Volver al índice | C1: =IF('Aplicabilidad Específicos'!G3="","",'Aplicabilidad Específicos'!G3) -> Ayuntamiento de Mexicali, Baja California
C3: El artículo 82 dice a la letra: Artículo 82. Todos los sujetos obligados deberán publicar lo relacionado con los gastos de publicidad oficial, que deberá contener:
C5: Fecha de inicio de la verificación: | G5: Fecha de término de la verificación
C7: 14 de febro de 2024 | G7: 19 de febrero de 2024
A9: =IF('Aplicabilidad Art. 81'!G3="","",'Aplicabilidad Art. 81'!G3) -> Ayuntamiento de Mexicali, Baja California | C9: Índice de Criterios Sustantivos: | E9: =AVERAGE(E19) -> 0.8611111111
C10: Índice de Criterios Adjetivos: | E10: =AVERAGE(E20) -> 1
C11: Índice del Artículo: | E11: =AVERAGE(E21) -> 0.9166666667
B14: Códigos de valoración : Cumplió totalmente = 1; Cumplió parcialmente = 0.5; No cumplió = 0; Justificado = Justificado
B17: Artículo 82.- Todos los sujetos obligados deberán publicar lo relacionado con los gastos de publicidad oficial, que deberá contener: I. Presupuesto aprobado por partida y ejercido; II. Contrato, monto y factura; III. Fecha de inicio y fecha de término; IV. Dependencia o dirección que la solicita; V. Tipo de medio de comunicación; VI. Costo por centímetro de las publicaciones impresas y por segundo o minuto según sea el caso de la difusión en medios electrónicos; y VII. Padrón de proveedores. | I17: PARRAFO EXPLICATIVO
K18: PRESIDENCIA MUNICIPAL
C19: Criterios Sustantivos | E19: =IF(SUM(D28:D63)=0,"NA",SUM(E28:E63)/SUM(D28:D63)) -> 0.8611111111 | G19: Periodo de actualización: trimestral | K19: SINDICATURA PROCURADORA
C20: Criterios Adjetivos | E20: =IF(SUM(D28:D63)=0,"NA",SUM(E68:E76)/SUM(D68:D76)) -> 1 | G20: Conservar en el sitio de Internet: información del ejercicio en curso y la correspondiente a los dos ejercicios anteriores | K20: REGIDORES
C21: Fracción: | E21: =IF(SUM(D28:D63)=0,"NA",E19*0.6+E20*0.4) -> 0.9166666667 | G21: Aplica a: todos los sujetos obligados | K21: SECRETARÍA DE GOBIERNO MUNICIPAL
K22: CONSEJERÍA JURÍDICA MUNICIPAL
K23: OFICIAL MAYOR
K24: TESORERÍA MUNICIPAL
C25: Criterios Sustantivos de contenido | K25: SECRETARÍA DE SEGURIDAD Y PROTECCIÓN CIUDADANA
K26: DIRECCIÓN DE TRANSPORTE PÚBLICO
C27: Criterio | D27: Valor criterio | E27: Valoración | F27: Tipo | G27: Requerimiento | K27: SECRETARÍA DE DESARROLLO TERRITORIAL, URBANO Y AMBIENTAL
C28: Criterio 1 Ejercicio | D28: =IF(E28="Justificado",0,1) -> 1 | E28: 1 | K28: SECRETARÍA DE BIENESTAR
C29: Criterio 2 Periodo que se informa (fecha de inicio y fecha de término con el formato día/mes/año) | D29: 1 | E29: 1 | K29: SECRETARÍA DE DESARROLLO ECONÓMICO
B30: Respecto a los recursos y el presupuesto: | C30: Criterio 3 Partida genérica | D30: 1 | E30: 1 | K30: SECRETARÍA DE EDUCACIÓN PÚBLICA
C31: Criterio 4 Clave del concepto (conforme al clasificador por objeto del gasto) | D31: 1 | E31: 1 | K31: SECRETARÍA DE MOVILIDAD URBANA SUSTENTABLE
C32: Criterio 5 Nombre del concepto (conforme al clasificador por objeto del gasto) | D32: 1 | E32: 1 | K32: TRIBUNAL UNITARIO CONTENCIOSO ADMINISTRATIVO
C33: Criterio 6 Presupuesto asignado por concepto | D33: 1 | E33: 1
C34: Criterio 7 Presupuesto modificado por concepto | D34: 1 | E34: 1
C35: Criterio 8 Presupuesto total ejercido por concepto al periodo reportado | D35: 1 | E35: 1
C36: Criterio 9 Denominación de cada partida | D36: 1 | E36: 1
C37: Criterio 10 Presupuesto total asignado a cada partida | D37: 1 | E37: 1
C38: Criterio 11 Presupuesto modificado por partida | D38: 1 | E38: 1
C39: Criterio 12 Presupuesto ejercido al periodo reportado de cada partida | D39: 1 | E39: 1
B40: Respecto al contrato, monto y factura: | C40: Criterio 13 Fecha de firma de contrato con el formato día/mes/año | D40: 1 | E40: 0 | F40: Requerimiento | G40: deberá publicar la fecha de firma del contrato
C41: Criterio 14 Número o referencia de identificación del contrato | D41: 1 | E41: 0 | F41: Requerimiento | G41: Debera publicar el número o referencia del contrato
C42: Criterio 15 Objeto del contrato | D42: 1 | E42: 1
C43: Criterio 16 Hipervínculo al contrato firmado | D43: 1 | E43: 0 | F43: Requerimiento | G43: Deberá publicar el hipervínculo al contrato
C44: Criterio 17 Hipervínculo al convenio modificatorio, en su caso | D44: 1 | E44: 0 | F44: Requerimiento | G44: Debera publicar el hipervínculo al contrato modificatorio
C45: Criterio 18 Monto total del contrato | D45: 1 | E45: 0 | F45: Requerimiento | G45: Deberá publicar el monto total del contrato
C46: Criterio 19 Monto pagado al periodo publicado | D46: 1 | E46: 1
C47: Criterio 20 Número de factura | D47: 1 | E47: 1
C48: Criterio 21 Hipervínculo a la factura | D48: 1 | E48: 1
B49: Respecto a la fecha de inicio y fecha de término: | C49: Criterio 22 Fecha de inicio de los servicios contratados con el formato día/mes/año | D49: 1 | E49: 1
C50: Criterio 23 Fecha de término de los servicios contratados con el formato día/mes/año | D50: 1 | E50: 1
B51: Respecto a la dependencia o dirección que la solicita: | C51: Criterio 24 Función del sujeto obligado (catálogo): Contratante/ Solicitante/ Contratante y solicitante | D51: 1 | E51: 1
C52: Criterio 25 Área administrativa encargada de solicitar el servicio o producto | D52: 1 | E52: 1
C53: Criterio 26 Área administrativa que más servicios o productos solicita | D53: 1 | E53: 1
C54: Criterio 27 Clasificación del(los) servicios (catálogo): Servicio de difusión en medios de comunicación / Otros servicios asociados a la comunicación / Erogación de recursos por contratación de servicios de impresión, difusión y publicidad / Utilización de los Tiempos Oficiales: tiempo de Estado y tiempo fiscal | D54: 1 | E54: 1
B55: Respecto del tipo de medio de comunicación: | C55: Criterio 28 Tipo de medio (catálogo): Internet/Radio/Televisión/Cine/Medios impresos/Medios digitales/Espectaculares/Medios complementarios/Otros servicios asociados/Otro (especificar) | D55: 1 | E55: 1
B56: Respecto del costo por centímetro de las publicaciones impresas y por segundo o minuto según sea el caso de la difusión en medios electrónicos: | C56: Criterio 29 Descripción de unidad, por ejemplo: spot de 30 segundos (radio); ½ plana (periódico); cine, segundos, revistas, folletos | D56: 1 | E56: 1
C57: Criterio 30 Costo por unidad | D57: 1 | E57: 1
B58: Respecto del padrón de proveedores: | C58: Criterio 31 Razón social o nombre completo del (los) proveedor(es) y/o responsable(s) de publicar la campaña o la comunicación correspondiente (nombre[s], primer apellido y segundo apellido en caso de ser persona física) | D58: 1 | E58: 1
C59: Criterio 32 Nombre del (los) proveedor(es) y/o responsable(s) | D59: 1 | E59: 1
C60: Criterio 33 Registro Federal de Contribuyentes de la persona física o moral proveedora del producto o servicio publicitario | D60: 1 | E60: 1
C61: Criterio 34 Procedimiento de contratación (catálogo): Licitación pública/Adjudicación directa/Invitación restringida | D61: 1 | E61: 1
C62: Criterio 35 Fundamento jurídico del proceso de contratación | D62: 1 | E62: 1
C63: Criterio 36 Descripción breve de las razones que justifican la elección de tal proveedor | D63: 1 | E63: 1
C65: Criterios Adjetivos
C67: Criterio | D67: Valor criterio | E67: Valoración | F67: Tipo | G67: Requerimiento
C68: Criterio 37 Periodo de actualización de la información: trimestral | D68: =IF(E68="Justificado",0,1) -> 1 | E68: 1
C69: Criterio 38 La información publicada deberá estar actualizada al periodo que corresponde, de acuerdo con la tabla de actualización y conservación de la información | D69: 1 | E69: 1
C70: Criterio 39 Conservar en el sitio de Internet y a través de la Plataforma Nacional la información vigente de acuerdo con la tabla de actualización y conservación de la información | D70: 1 | E70: 1
C71: Criterio 40 Área(s) responsable(s) que genera(n), posee(n), publica(n) y actualiza(n) la información | D71: 1 | E71: 1
C72: Criterio 41 Fecha de actualización de la información publicada con el formato día/mes/año | D72: 1 | E72: 1
C73: Criterio 42 Fecha de validación de la información publicada con el formato día/mes/año | D73: 1 | E73: 1
C74: Criterio 43 Nota. Este criterio se cumple en caso de que sea necesario que el sujeto obligado incluya alguna aclaración relativa a la información publicada y/o explicación por falta de información | D74: 1 | E74: 1
C75: Criterio 44 La información publicada se organiza mediante el formato 1, en el que se incluyen todos los campos especificados en los criterios sustantivos de contenido | D75: 1 | E75: 1
C76: Criterio 45 El soporte de la información permite su reutilización | D76: 1 | E76: 1
E79: =SUM(D28:D76) -> 45 | F79: =SUM(D28:D76) -> 45

Sheet Art. 83 IV
A1: Volver al índice | C1: =IF('Aplicabilidad Específicos'!G3="","",'Aplicabilidad Específicos'!G3) -> Ayuntamiento de Mexicali, Baja California
C3: El artículo 83 dice a la letra: Artículo 83. Además de lo señalado en el artículo anterior, los sujetos obligados deberán publicar y actualizar en sus portales de internet, la siguiente información: IV. Municipios:
C5: Fecha de inicio de la verificación: | G5: Fecha de término de la verificación
C7: 14 de febrero de 2024 | G7: 19 de febrero de 2024
C9: Índice de Criterios Sustantivos: | E9: =AVERAGE(E19,E66,E110,E156,E204,E267,E311,E357,E401,E443,E523,E563,E607,E651,E709) -> 0.9206281373
C10: Índice de Criterios Adjetivos: | E10: =AVERAGE(E20,E67,E111,E157,E205,E268,E312,E358,E402,E444,E524,E564,E608,E652,E710) -> 1
C11: Índice del Artículo: | E11: =AVERAGE(E21,E68,E112,E158,E206,E269,E313,E359,E403,E445,E525,E565,E609,E653,E711) -> 0.9523768824
B14: Códigos de valoración : Cumplió totalmente = 1; Cumplió parcialmente = 0.5; No cumplió = 0; Justificado = Justificado
B17: Art. 83 - Fracción IV - Inciso A - El Plan Municipal de Desarrollo, así como los planes y programas operativos anuales que se deriven de éste y de la Ley de Planeación para el Estado de Baja California. | I17: PARRAFO EXPLICATIVO
B18: LTL | K18: PRESIDENCIA MUNICIPAL
C19: Criterios Sustantivos | E19: =IF(SUM(D28:D42)=0,"NA",SUM(E28:E42)/SUM(D28:D42)) -> 0.8 | G19: Periodo de actualización: anual | K19: SINDICATURA PROCURADORA
C20: Criterios Adjetivos | E20: =IF(SUM(D28:D42)=0,"NA",SUM(E47:E55)/SUM(D47:D55)) -> 1 | G20: Conservar en el sitio de Internet: información vigente y la correspondiente a por lo menos dos administraciones anteriores | K20: REGIDORES
C21: Fracción: | E21: =IF(SUM(D28:D42)=0,"NA",E19*0.6+E20*0.4) -> 0.88 | G21: Aplica a: todos los sujetos obligados que integran el Poder Ejecutivo municipal | K21: SECRETARÍA DE GOBIERNO MUNICIPAL
K22: CONSEJERÍA JURÍDICA MUNICIPAL
K23: OFICIAL MAYOR
K24: TESORERÍA MUNICIPAL
C25: Criterios Sustantivos de contenido | K25: SECRETARÍA DE SEGURIDAD Y PROTECCIÓN CIUDADANA
K26: DIRECCIÓN DE TRANSPORTE PÚBLICO
C27: Criterio | D27: Valor criterio | E27: Valoración | F27: Tipo | G27: Requerimiento | K27: SECRETARÍA DE DESARROLLO TERRITORIAL, URBANO Y AMBIENTAL
B28: Respecto de la información que se deberá reportar del Plan Municipal de Desarrollo, se publicará | C28: Criterio 1 Ejercicio | D28: =IF(E28="Justificado",0,1) -> 1 | E28: 1 | K28: SECRETARÍA DE BIENESTAR
C29: Criterio 2 Periodo que se informa (fecha de inicio y fecha de término con el formato día/mes/año) | D29: 1 | E29: 1 | K29: SECRETARÍA DE DESARROLLO ECONÓMICO
C30: Criterio 3 Mensaje ‘’La publicación y actualización de la información está a cargo de <Incluir la denominación del sujeto obligado>’’ | D30: 1 | E30: 1 | K30: SECRETARÍA DE EDUCACIÓN PÚBLICA
C31: Criterio 4 Denominación del Plan Municipal de Desarrollo | D31: 1 | E31: 1 | K31: SECRETARÍA DE MOVILIDAD URBANA SUSTENTABLE
C32: Criterio 5 Fecha de publicación en el periódico o gaceta oficial, con el formato día/mes/año | D32: 1 | E32: 1 | K32: TRIBUNAL UNITARIO CONTENCIOSO ADMINISTRATIVO
C33: Criterio 6 Descripción breve de los objetivos del Plan Municipal de Desarrollo | D33: 1 | E33: 1
C34: Criterio 7 Descripción breve de las metas planeadas en la administración | D34: 1 | E34: 0 | F34: Requerimiento | G34: deberá publicar la descripción breve de las metas planeadas, o fundamentar y motivar la ausencia de información acorde a los LTG
C35: Criterio 8 Descripción breve de las estrategias transversales para la implementación del Plan Municipal de Desarrollo | D35: 1 | E35: 1
C36: Criterio 9 Descripción de la metodología utilizada para la constitución del Plan Municipal de Desarrollo (consultas, foros, sectores sociales para la elaboración del Plan) | D36: 1 | E36: 1
C37: Criterio 10 Hipervínculo al Plan Municipal de Desarrollo | D37: 1 | E37: 1
C38: Criterio 11 Fecha de última modificación, en el periódico o gaceta oficial, en su caso, expresada con el formato día/mes/año | D38: 1 | E38: 0 | F38: Requerimiento | G38: deberá publicar la ultima fecha de modificación
C39: Criterio 12 Denominación de(los) plan(es) y/o programa(s) operativo(s) anual(es) que se deriven del Plan Municipal de Desarrollo y de la Ley de Planeación para el Estado de Baja California. | D39: 1 | E39: 1
C40: Criterio 13 Fecha de publicación: día/mes/año | D40: 1 | E40: 1
C41: Criterio 14 Descripción breve de los objetivos del plan o programa operativo correspondiente | D41: 1 | E41: 1
C42: Criterio 15 Hipervínculo al plan o programa operativo | D42: 1 | E42: 0 | F42: Requerimiento | G42: Debera publicar el hipervínculo al plan o programa operativo
C44: Criterios Adjetivos
C46: Criterio | D46: Valor criterio | E46: Valoración | F46: Tipo | G46: Requerimiento
C47: Criterio 16 Periodo de actualización de la información: Anual | D47: =IF(E47="Justificado",0,1) -> 1 | E47: 1
C48: Criterio 17 La información publicada deberá estar actualizada al periodo que corresponde de acuerdo con la Tabla de actualización y conservación de la información | D48: 1 | E48: 1
C49: Criterio 18 Conservar en el sitio de Internet y a través de la Plataforma Nacional la información de acuerdo con la Tabla de actualización y conservación de la información Criterios adjetivos de confiabilidad | D49: 1 | E49: 1
C50: Criterio 19 Área(s) responsable(s) que genera(n) posee(n), publica(n) y/o actualiza(n) la información | D50: 1 | E50: 1
C51: Criterio 20 Fecha de actualización de la información publicada con el formato día/mes/año | D51: 1 | E51: 1
C52: Criterio 21 Fecha de validación de la información publicada con el formato día/mes/año | D52: 1 | E52: 1
C53: Criterio 22 Nota. Este criterio se cumple en caso de que sea necesario que el sujeto obligado incluya alguna aclaración relativa a la información publicada y/o explicación por la falta de información | D53: 1 | E53: 1
C54: Criterio 23 La información publicada se organiza mediante el formato 1, en el que se incluyen todos los campos especificados en los criterios sustantivos de contenido | D54: 1 | E54: 1
C55: Criterio 24 El soporte de la información permite su reutilización | D55: 1 | E55: 1
E58: =SUM(D28:D55) -> 24
B64: Art. 83 - Fracción IV - Inciso B - El Presupuesto de Egresos Municipal y de las entidades paramunicipales, así como las fórmulas de distribución de los recursos otorgados. | I64: PARRAFO EXPLICATIVO
B65: LTL | K65: PRESIDENCIA MUNICIPAL
C66: Criterios Sustantivos | E66: =IF(SUM(D75:D86)=0,"NA",SUM(E75:E86)/SUM(D75:D86)) -> 1 | G66: Periodo de actualización: anual | K66: SINDICATURA PROCURADORA
C67: Criterios Adjetivos | E67: =IF(SUM(D75:D86)=0,"NA",SUM(E91:E99)/SUM(D91:D99)) -> 1 | G67: Conservar en el sitio de Internet: información vigente y la correspondiente a todos los ejercicios de la administración en curso, y por lo menos dos administraciones anteriores | K67: REGIDORES
C68: Fracción: | E68: =IF(SUM(D75:D86)=0,"NA",E66*0.6+E67*0.4) -> 1 | G68: Aplica a: todos los sujetos obligados que integran el Poder Ejecutivo municipal | K68: SECRETARÍA DE GOBIERNO MUNICIPAL
K69: CONSEJERÍA JURÍDICA MUNICIPAL
K70: OFICIAL MAYOR
K71: TESORERÍA MUNICIPAL
C72: Criterios Sustantivos de contenido | K72: SECRETARÍA DE SEGURIDAD Y PROTECCIÓN CIUDADANA
K73: DIRECCIÓN DE TRANSPORTE PÚBLICO
C74: Criterio | D74: Valor criterio | E74: Valoración | F74: Tipo | G74: Requerimiento | K74: SECRETARÍA DE DESARROLLO TERRITORIAL, URBANO Y AMBIENTAL
C75: Criterio 1 Ejercicio | D75: =IF(E75="Justificado",0,1) -> 1 | E75: 1 | K75: SECRETARÍA DE BIENESTAR
C76: Criterio 2 Periodo que se informa (fecha de inicio y fecha de término con el formato día/mes/año) | D76: 1 | E76: 1 | K76: SECRETARÍA DE DESARROLLO ECONÓMICO
C77: Criterio 3 Denominación de la dependencia, paramunicipal, área, unidad administrativa o similar que integre al Poder Ejecutivo Municipal | D77: 1 | E77: 1 | K77: SECRETARÍA DE EDUCACIÓN PÚBLICA
C78: Criterio 4 Presupuesto anual asignado (gasto programable autorizado) al sujeto obligado | D78: 1 | E78: 1 | K78: SECRETARÍA DE MOVILIDAD URBANA SUSTENTABLE
C79: Criterio 5 Hipervínculo al documento con los Criterios de gasto que deben observarse en la administración de los recursos públicos | D79: 1 | E79: 1 | K79: TRIBUNAL UNITARIO CONTENCIOSO ADMINISTRATIVO
C80: Criterio 6 Hipervínculo al Presupuesto de Egresos Municipal | D80: 1 | E80: 1
C81: Criterio 7 Hipervínculo a la ‘’Versión Ciudadana’’ del Presupuesto de Egresos Municipal | D81: 1 | E81: 1
C82: Criterio 8 Monto total entregado al sujeto obligado | D82: 1 | E82: 1
C83: Criterio 9 Monto asignado a gasto corriente | D83: 1 | E83: 1
C84: Criterio 10 Monto asignado a gasto de inversión | D84: 0 | E84: Justificado
C85: Criterio 11 Monto asignado a pagar deuda pública | D85: 0 | E85: Justificado
C86: Criterio 12 Hipervínculo a la(s) fórmulas de distribución del presupuesto usadas en el Presupuesto de Egresos respectivo (en su caso) | D86: 1 | E86: 1
C88: Criterios Adjetivos
C90: Criterio | D90: Valor criterio | E90: Valoración | F90: Tipo | G90: Requerimiento
C91: Criterio 13 Periodo de actualización de la información: anual | D91: =IF(E91="Justificado",0,1) -> 1 | E91: 1
C92: Criterio 14 La información deberá estar actualizada al periodo que corresponde de acuerdo con la Tabla de actualización y conservación de la información | D92: 1 | E92: 1
C93: Criterio 15 Conservar en el sitio de Internet y a través de la Plataforma Nacional la información de acuerdo con la Tabla de actualización y conservación de la información | D93: 1 | E93: 1
C94: Criterio 16 Área(s) responsable(s) que genera(n) posee(n), publica(n) y/o actualiza(n) la información | D94: 1 | E94: 1
C95: Criterio 17 Fecha de actualización de la información publicada con el formato día/mes/año | D95: 1 | E95: 1
C96: Criterio 18 Fecha de validación de la información publicada con el formato día/mes/año | D96: 1 | E96: 1
C97: Criterio 19 Nota. Este criterio se cumple en caso de que sea necesario que el sujeto obligado incluya alguna aclaración relativa a la información publicada y/o explicación por la falta de información | D97: 1 | E97: 1
C98: Criterio 20 La información publicada se organiza mediante el formato 1 en el que se incluyen todos los campos especificados en los criterios sustantivos de contenido | D98: 1 | E98: 1
C99: Criterio 21 El soporte de la información permite su reutilización | D99: 1 | E99: 1
E102: =SUM(D75:D99) -> 19
B108: Art. 83 - Fracción IV - Inciso C - Los ingresos por concepto de participaciones federales y estatales; así como por la recaudación fiscal que se integre a la hacienda pública, incluyendo la de entidades paramunicipales. | I108: PARRAFO EXPLICATIVO
B109: LTL | K109: PRESIDENCIA MUNICIPAL
C110: Criterios Sustantivos | E110: =IF(SUM(D119:D132)=0,"NA",SUM(E119:E132)/SUM(D119:D132)) -> 1 | G110: Periodo de actualización: anual | K110: SINDICATURA PROCURADORA
C111: Criterios Adjetivos | E111: =IF(SUM(D119:D132)=0,"NA",SUM(E137:E145)/SUM(D137:D145)) -> 1 | G111: Conservar en el sitio de Internet: información del ejercicio en curso y la correspondiente a las dos administraciones anteriores | K111: REGIDORES
C112: Fracción: | E112: =IF(SUM(D119:D132)=0,"NA",E110*0.6+E111*0.4) -> 1 | G112: Aplica a: todos los sujetos obligados que integran el Poder Ejecutivo municipal | K112: SECRETARÍA DE GOBIERNO MUNICIPAL
K113: CONSEJERÍA JURÍDICA MUNICIPAL
K114: OFICIAL MAYOR
K115: TESORERÍA MUNICIPAL
C116: Criterios Sustantivos de contenido | K116: SECRETARÍA DE SEGURIDAD Y PROTECCIÓN CIUDADANA
K117: DIRECCIÓN DE TRANSPORTE PÚBLICO
C118: Criterio | D118: Valor criterio | E118: Valoración | F118: Tipo | G118: Requerimiento | K118: SECRETARÍA DE DESARROLLO TERRITORIAL, URBANO Y AMBIENTAL
C119: Criterio 1 Ejercicio | D119: =IF(E119="Justificado",0,1) -> 1 | E119: 1 | K119: SECRETARÍA DE BIENESTAR
C120: Criterio 2 Periodo que se informa (fecha de inicio y fecha de término con el formato día/mes/año) | D120: 1 | E120: 1 | K120: SECRETARÍA DE DESARROLLO ECONÓMICO
C121: Criterio 3 Área del Ayuntamiento que recibió el recurso | D121: 1 | E121: 1 | K121: SECRETARÍA DE EDUCACIÓN PÚBLICA
C122: Criterio 4 Tipo de participación (catálogo: Federal/Estatal) | D122: 1 | E122: 1 | K122: SECRETARÍA DE MOVILIDAD URBANA SUSTENTABLE
C123: Criterio 5 Denominación de la Participación | D123: 1 | E123: 1 | K123: TRIBUNAL UNITARIO CONTENCIOSO ADMINISTRATIVO
C124: Criterio 6 Fórmula de distribución correspondiente a la participación | D124: 1 | E124: 1
C125: Criterio 7 Monto percibido | D125: 1 | E125: 1
C126: Criterio 8 Hipervínculo al documento que contenga la Distribución y Calendarización para la Ministración de los recursos durante el Ejercicio fiscal correspondiente | D126: 1 | E126: 1
C127: Criterio 9 Tipo de recurso (catálogo): Impuestos/Productos/Derechos/Aprovechamientos | D127: 1 | E127: 1
C128: Criterio 10 Denominación del recurso (por ejemplo: Impuesto sobre Servicios de Hospedaje) | D128: 1 | E128: 1
C129: Criterio 11 Metodología/fórmula para el cobro o recaudación del recurso | D129: 1 | E129: 1
C130: Criterio 12 Monto total percibido por concepto de la participación | D130: 1 | E130: 1
C131: Criterio 13 Área o Unidad administrativa encargada de la recaudación del recurso (indicar al máximo nivel de desagregación posible), en el caso de las paramunicipales indicar el nombre de la paramunicipal y su respectiva área/unidad administrativa | D131: 1 | E131: 1
C132: Criterio 14 Hipervínculo a la Ley de Ingresos aprobada por el Congreso del Estado para el ejercicio en curso | D132: 1 | E132: 1
C134: Criterios Adjetivos
C136: Criterio | D136: Valor criterio | E136: Valoración | F136: Tipo | G136: Requerimiento
C137: Criterio 15 Periodo de actualización de la información: anual | D137: =IF(E137="Justificado",0,1) -> 1 | E137: 1
C138: Criterio 16 La información publicada deberá estar actualizada al periodo que corresponde, de acuerdo con la tabla de actualización y conservación de la información | D138: 1 | E138: 1
C139: Criterio 17 Conservar en el sitio de Internet y a través de la Plataforma Nacional la información vigente de acuerdo con la tabla de actualización y conservación de la información | D139: 1 | E139: 1
C140: Criterio 18 Área(s) responsable(s) que genera(n), posee(n), publica(n) y actualiza(n) la información | D140: 1 | E140: 1
C141: Criterio 19 Fecha de actualización de la información publicada con el formato día/mes/año | D141: 1 | E141: 1
C142: Criterio 20 Fecha de validación de la información publicada con el formato día/mes/año | D142: 1 | E142: 1
C143: Criterio 21 Nota. Este criterio se cumple en caso de que sea necesario que el sujeto obligado incluya alguna aclaración relativa a la información publicada y/o explicación por falta de información | D143: 1 | E143: 1
C144: Criterio 22 La información publicada se organiza mediante el formato 1, en el que se incluyen todos los campos especificados en los criterios sustantivos de contenido | D144: 1 | E144: 1
C145: Criterio 23 El soporte de la información permite su reutilización | D145: 1 | E145: 1
E148: =SUM(D119:D145) -> 23
B154: Art. 83 - Fracción IV - Inciso D - Inventario de sus bienes inmuebles, el cual deberá incluir fotografía de los mismos. | I154: PARRAFO EXPLICATIVO
B155: LTL | K155: PRESIDENCIA MUNICIPAL
C156: Criterios Sustantivos | E156: =IF(SUM(D165:D180)=0,"NA",SUM(E165:E180)/SUM(D165:D180)) -> 0.9615384615 | G156: Periodo de actualización: anual | K156: SINDICATURA PROCURADORA
C157: Criterios Adjetivos | E157: =IF(SUM(D165:D180)=0,"NA",SUM(E185:E193)/SUM(D185:D193)) -> 1 | G157: Conservar en el sitio de Internet: la información vigente, la correspondiente al ejercicio en curso y la correspondiente a dos ejercicios anteriores. | K157: REGIDORES
C158: Fracción: | E158: =IF(SUM(D165:D180)=0,"NA",E156*0.6+E157*0.4) -> 0.9769230769 | G158: Aplica a: todos los sujetos obligados que integran el Poder Ejecutivo municipal | K158: SECRETARÍA DE GOBIERNO MUNICIPAL
K159: CONSEJERÍA JURÍDICA MUNICIPAL
K160: OFICIAL MAYOR
K161: TESORERÍA MUNICIPAL
C162: Criterios Sustantivos de contenido | K162: SECRETARÍA DE SEGURIDAD Y PROTECCIÓN CIUDADANA
K163: DIRECCIÓN DE TRANSPORTE PÚBLICO
C164: Criterio | D164: Valor criterio | E164: Valoración | F164: Tipo | G164: Requerimiento | K164: SECRETARÍA DE DESARROLLO TERRITORIAL, URBANO Y AMBIENTAL
C165: Criterio 1 Ejercicio | D165: =IF(E165="Justificado",0,1) -> 1 | E165: 1 | K165: SECRETARÍA DE DESARROLLO ECONÓMICO
C166: Criterio 2 Periodo que se informa (fecha de inicio y fecha de término con el formato día/mes/año) | D166: 1 | E166: 0.5 | F166: Requerimiento | G166: La fecha de inicio y termino se debera presentar de forma anual | K166: SECRETARÍA DE EDUCACIÓN PÚBLICA
C167: Criterio 3 Numero de control | D167: 1 | E167: 1 | K167: SECRETARÍA DE MOVILIDAD URBANA SUSTENTABLE
C168: Criterio 4 Fraccionamiento/inmueble | D168: 1 | E168: 1 | K168: TRIBUNAL UNITARIO CONTENCIOSO ADMINISTRATIVO
C169: Criterio 5 Clave catastral | D169: 0 | E169: Justificado
C170: Criterio 6 Calle | D170: 0 | E170: Justificado
C171: Criterio 7 Nùmero oficial | D171: 1 | E171: 1
C172: Criterio 8 Nùmero Interior | D172: 1 | E172: 1
C173: Criterio 9 Ciudad | D173: 1 | E173: 1
C174: Criterio 10 Superficie documental | D174: 1 | E174: 1
C175: Criterio 11 Valor en metro cuadrado | D175: 1 | E175: 1
C176: Criterio 12 Valor catastral del terreno | D176: 1 | E176: 1
C177: Criterio 13 Uso de suelo | D177: 1 | E177: 1
C178: Criterio 14 Tipo de dominio | D178: 1 | E178: 1
C179: Criterio 15 Nùmero de partida registrada | D179: 1 | E179: 1
C180: Criterio 16 Hipervínculo Fotografìa a color del inmueble | D180: 0 | E180: Justificado
C182: Criterios Adjetivos
C184: Criterio | D184: Valor criterio | E184: Valoración | F184: Tipo | G184: Requerimiento
C185: Criterio 17 Periodo de actualización de la información: anual | D185: =IF(E185="Justificado",0,1) -> 1 | E185: 1
C186: Criterio 18 La información publicada deberá estar actualizada al periodo que corresponde, de acuerdo con la tabla de actualización y conservación de la información | D186: 1 | E186: 1
C187: Criterio 19 Conservar en el sitio de Internet y a través de la Plataforma Nacional la información vigente de acuerdo con la tabla de actualización y conservación de la información | D187: 1 | E187: 1
C188: Criterio 20 Área(s) responsable(s) que genera(n), posee(n), publica(n) y actualiza(n) la información | D188: 1 | E188: 1
C189: Criterio 21 Fecha de actualización de la información publicada con el formato día/mes/año | D189: 1 | E189: 1
C190: Criterio 22 Fecha de validación de la información publicada con el formato día/mes/año | D190: 1 | E190: 1
C191: Criterio 23 Nota. Este criterio se cumple en caso de que sea necesario que el sujeto obligado incluya alguna aclaración relativa a la información publicada y/o explicación por falta de información | D191: 1 | E191: 1
C192: Criterio 24 La información publicada se organiza mediante el formato 1, en el que se incluyen todos los campos especificados en los criterios sustantivos de contenido | D192: 1 | E192: 1
C193: Criterio 25 El soporte de la información permite su reutilización | D193: 1 | E193: 1
E196: =SUM(D165:D193) -> 22
B202: Art. 83 - Fracción IV - Inciso E - El nombre, denominación o razón social y clave del registro federal de los contribuyentes a los que se les hubiera cancelado o condonado algún crédito fiscal, así como los montos respectivos. Asimismo, la información estadística sobre las exenciones previstas en las disposiciones fiscales. | I202: PARRAFO EXPLICATIVO
B203: LTG-d-PAG.191 | K203: PRESIDENCIA MUNICIPAL
C204: Criterios Sustantivos | E204: =IF(SUM(D213:D243)=0,"NA",SUM(E213:E243)/SUM(D213:D243)) -> 1 | G204: Periodo de actualización: trimestral | K204: SINDICATURA PROCURADORA
C205: Criterios Adjetivos | E205: =IF(SUM(D213:D243)=0,"NA",SUM(E248:E256)/SUM(D248:D256)) -> 1 | G205: Conservar en el sitio de Internet: información vigente, y la del ejercicio en curso | K205: REGIDORES
C206: Fracción: | E206: =IF(SUM(D213:D243)=0,"NA",E204*0.6+E205*0.4) -> 1 | G206: Aplica a: Secretaría de Hacienda y Crédito Público (Servicio de Administración Tributario [SAT]) en el Poder Ejecutivo Federal. En las entidades federativas la obligación recae en las respectivas Secretarías de Finanzas. En el caso de municipios, el Gobierno municipal (Ayuntamiento) | K206: SECRETARÍA DE GOBIERNO MUNICIPAL
K207: CONSEJERÍA JURÍDICA MUNICIPAL
K208: OFICIAL MAYOR
K209: TESORERÍA MUNICIPAL
C210: Criterios Sustantivos de contenido | K210: SECRETARÍA DE SEGURIDAD Y PROTECCIÓN CIUDADANA
K211: DIRECCIÓN DE TRANSPORTE PÚBLICO
C212: Criterio | D212: Valor criterio | E212: Valoración | F212: Tipo | G212: Requerimiento | K212: SECRETARÍA DE DESARROLLO TERRITORIAL, URBANO Y AMBIENTAL
B213: Los sujetos obligados que no generan la información solicitada en la presente fracción publicarán el siguiente mensaje: | C213: Criterio 1 Ejercicio | D213: =IF(E213="Justificado",0,1) -> 1 | E213: 1 | K213: SECRETARÍA DE BIENESTAR
C214: Criterio 2 Periodo que se informa (fecha de inicio y fecha de término con el formato día/mes/año) | D214: 1 | E214: 1 | K214: SECRETARÍA DE DESARROLLO ECONÓMICO
C215: Criterio 3 Mensaje “La publicación y actualización de la información está a cargo de <<incluir la denominación del sujeto obligado>>.” | D215: 0 | E215: Justificado | K215: SECRETARÍA DE EDUCACIÓN PÚBLICA
C216: Criterio 4 Hipervínculo que dirija a la ruta específica hacia la información del sujeto obligado que hayan referido | D216: 0 | E216: Justificado | K216: SECRETARÍA DE MOVILIDAD URBANA SUSTENTABLE
B217: Respecto a los contribuyentes que recibieron cancelación y/o condonación de créditos fiscales se publicarán los siguientes datos: | C217: Criterio 5 Ejercicio | D217: 1 | E217: 1 | K217: TRIBUNAL UNITARIO CONTENCIOSO ADMINISTRATIVO
C218: Criterio 6 Periodo que se informa (fecha de inicio y fecha de término con el formato día/mes/año) | D218: 1 | E218: 1
C219: Criterio 7 Personería jurídica: Persona física/persona moral | D219: 0 | E219: Justificado
C220: Criterio 8 Nombre completo en el caso de las personas físicas (nombre[s], primer apellido, segundo apellido); razón social si se trata de personas morales, gobiernos o instituciones deudoras que recibieron cancelación o condonación de créditos fiscales | D220: 0 | E220: Justificado
C221: Criterio 9 Registro Federal de Contribuyentes (RFC), de la persona física o moral, gobiernos o instituciones deudoras. | D221: 0 | E221: Justificado
C222: Criterio 10 Entidad Federativa a la que pertenece la persona física o moral | D222: 0 | E222: Justificado
C223: Criterio 11 Fecha de la solicitud de la cancelación o condonación, con formato día/mes/año | D223: 0 | E223: Justificado
C224: Criterio 12 Tipo de crédito fiscal condonado o cancelado (catálogo): Contribuciones federales/ Cuotas compensatorias/ Actualizaciones y accesorios/ Multas | D224: 0 | E224: Justificado
C225: Criterio 13 Monto cancelado o condonado | D225: 0 | E225: Justificado
C226: Criterio 14 Justificación de la cancelación o condonación | D226: 0 | E226: Justificado
C227: Criterio 15 Fecha de la cancelación o condonación, con el formato día/mes/año | D227: 0 | E227: Justificado
C228: Criterio 16 Denominación de la autoridad externa o interna que determinó el crédito | D228: 0 | E228: Justificado
C229: Criterio 17 Denominación de la autoridad responsable de la cancelación o condonación | D229: 0 | E229: Justificado
C230: Criterio 18 Hipervínculo al listado de Créditos fiscales cancelados o condonados publicados por el SAT | D230: 0 | E230: Justificado
B231: Respecto de las estadísticas sobre exenciones se publicarán los siguientes datos: | C231: Criterio 19 Ejercicio | D231: 1 | E231: 1
C232: Criterio 20 Periodo que se informa (fecha de inicio y fecha de término con el formato día/mes/año) | D232: 1 | E232: 1
C233: Criterio 21 Tipo de contribución que se exentó del pago: Contribuciones federales/Cuotas compensatorias/Actualizaciones y accesorios/Multas | D233: 0 | E233: Justificado
C234: Criterio 22 Número total por tipo de crédito fiscal que se exenta del pago | D234: 0 | E234: Justificado
C235: Criterio 23 Monto total por tipo de crédito fiscal que se exenta del pago | D235: 0 | E235: Justificado
C236: Criterio 24 Número total (global) de exenciones | D236: 0 | E236: Justificado
C237: Criterio 25 Monto total (global) de las exenciones | D237: 0 | E237: Justificado
C238: Criterio 26 Estadística de las causas o motivos de las condonaciones o exenciones | D238: 0 | E238: Justificado
C239: Criterio 27 Denominación de los documentos técnicos, metodológicos relacionados con las normas científicas sobre las fuentes, métodos, procedimientos de la estadística y el manejo de las bases de datos | D239: 0 | E239: Justificado
C240: Criterio 28 Hipervínculo a los documentos técnicos, metodológicos relacionados con las normas científicas sobre las fuentes, métodos, procedimientos de la estadística y el manejo de las bases de datos | D240: 0 | E240: Justificado
C241: Criterio 29 Tipos de archivo de las bases de datos: HTML, XLS, IQY, CSV, XML, SAV, otro | D241: 0 | E241: Justificado
C242: Criterio 30 Hipervínculo a las bases de datos respectivas. Las bases de datos deberán corresponder directamente con el proyecto que se está informando | D242: 0 | E242: Justificado
C243: Criterio 31 Hipervínculo a las series o bancos de datos existentes. Las series o banco de datos deberán corresponder directamente con el tema estadístico que se está informando | D243: 0 | E243: Justificado
C245: Criterios Adjetivos
... 417 more rows

Sheet Resultados
A1: Volver al índice | D1: VERIFICACIÓN VIRTUAL OFICIOSA 2024
D2: =IF('Aplicabilidad Específicos'!G3<>'Aplicabilidad Art. 81'!G3,"Los nombres del S.O. en las tablas de aplicabilidad son diferentes",IF('Aplicabilidad Art. 81'!G3="","",'Aplicabilidad Art. 81'!G3)) -> Ayuntamiento de Mexicali, Baja California
C5: Fecha de inicio de la verificación: | G5: Fecha de término de la verificación
C7: ='Art. 81'!C7 -> 14 de febrero de 2024 | G7: ='Art. 83 IV'!G7 -> 19 de febrero de 2024
C9: ÍNDICE GENERAL DE CUMPLIMIENTO EN SIPOT
E10: IGCPT2: | F10: =(0.89*H14)+(0.02*H18)+(0.07*H20)+(0.02*H16) -> 0.8571311048
C13: Art. / Fracción | E13: Aplica | F13: Crit. Sust | G13: Crit Adj. | H13: Índice
C14: 81 | E14: =IF(AND('Aplicabilidad Art. 81'!E10="NO",'Aplicabilidad Art. 81'!E12="NO",'Aplicabilidad Art. 81'!E14="NO",'Aplicabilidad Art. 81'!E16="NO",'Aplicabilidad Art. 81'!E18="NO",'Aplicabilidad Art. 81'!E20="NO",'Aplicabilidad Art. 81'!E22="NO",'Aplicabilidad Art. 81'!E24="NO",'Aplicabilidad Art. 81'!E26="NO",'Aplicabilidad Art. 81'!E28="NO",'Aplicabilidad Art. 81'!E30="NO",'Aplicabilidad Art. 81'!E32="NO",'Aplicabilidad Art. 81'!I10="NO",'Aplicabilidad Art. 81'!I12="NO",'Aplicabilidad Art. 81'!I14="NO",'Aplicabilidad Art. 81'!I16="NO",'Aplicabilidad Art. 81'!I18="NO",'Aplicabilidad Art. 81'!I20="NO",'Aplicabilidad Art. 81'!I22="NO",'Aplicabilidad Art. 81'!I24="NO",'Aplicabilidad Art. 81'!I26="NO",'Aplicabilidad Art. 81'!I28="NO",'Aplicabilidad Art. 81'!I30="NO",'Aplicabilidad Art. 81'!I32="NO",'Aplicabilidad Art. 81'!M10="NO",'Aplicabilidad Art. 81'!M12="NO",'Aplicabilidad Art. 81'!M14="NO",'Aplicabilidad Art. 81'!M16="NO",'Aplicabilidad Art. 81'!M18="NO",'Aplicabilidad Art. 81'!M20="NO",'Aplicabilidad Art. 81'!M22="NO",'Aplicabilidad Art. 81'!M24="NO",'Aplicabilidad Art. 81'!M26="NO",'Aplicabilidad Art. 81'!M28="NO",'Aplicabilidad Art. 81'!M30="NO",'Aplicabilidad Art. 81'!M32="NO",'Aplicabilidad Art. 81'!Q10="NO",'Aplicabilidad Art. 81'!Q12="NO",'Aplicabilidad Art. 81'!Q14="NO",'Aplicabilidad Art. 81'!Q16="NO",'Aplicabilidad Art. 81'!Q18="NO",'Aplicabilidad Art. 81'!Q20="NO",'Aplicabilidad Art. 81'!Q22="NO",'Aplicabilidad Art. 81'!Q24="NO",'Aplicabilidad Art. 81'!Q26="NO",'Aplicabilidad Art. 81'!Q28="NO",'Aplicabilidad Art. 81'!Q30="NO",'Aplicabilidad Art. 81'!Q32="NO",'Aplicabilidad Art. 81'!M34="NO"),"NO","SI") -> SI | F14: =IF(E14="NO","NA",'Art. 81'!$E$9) -> 0.7925230415 | G14: =IF(E14="NO","NA",'Art. 81'!$E$10) -> 0.9335748792 | H14: =IF(E14="NO","NA",'Art. 81'!$E$11) -> 0.8489437766
C16: 81 (XLVIII) | E16: =IF(AND('Aplicabilidad Art. 81'!E12="NO",'Aplicabilidad Art. 81'!E14="NO",'Aplicabilidad Art. 81'!E16="NO",'Aplicabilidad Art. 81'!E18="NO",'Aplicabilidad Art. 81'!E20="NO",'Aplicabilidad Art. 81'!E22="NO",'Aplicabilidad Art. 81'!E24="NO",'Aplicabilidad Art. 81'!E26="NO",'Aplicabilidad Art. 81'!E28="NO",'Aplicabilidad Art. 81'!E30="NO",'Aplicabilidad Art. 81'!E32="NO",'Aplicabilidad Art. 81'!E34="NO",'Aplicabilidad Art. 81'!I12="NO",'Aplicabilidad Art. 81'!I14="NO",'Aplicabilidad Art. 81'!I16="NO",'Aplicabilidad Art. 81'!I18="NO",'Aplicabilidad Art. 81'!I20="NO",'Aplicabilidad Art. 81'!I22="NO",'Aplicabilidad Art. 81'!I24="NO",'Aplicabilidad Art. 81'!I26="NO",'Aplicabilidad Art. 81'!I28="NO",'Aplicabilidad Art. 81'!I30="NO",'Aplicabilidad Art. 81'!I32="NO",'Aplicabilidad Art. 81'!I34="NO",'Aplicabilidad Art. 81'!M12="NO",'Aplicabilidad Art. 81'!M14="NO",'Aplicabilidad Art. 81'!M16="NO",'Aplicabilidad Art. 81'!M18="NO",'Aplicabilidad Art. 81'!M20="NO",'Aplicabilidad Art. 81'!M22="NO",'Aplicabilidad Art. 81'!M24="NO",'Aplicabilidad Art. 81'!M26="NO",'Aplicabilidad Art. 81'!M28="NO",'Aplicabilidad Art. 81'!M30="NO",'Aplicabilidad Art. 81'!M32="NO",'Aplicabilidad Art. 81'!M34="NO",'Aplicabilidad Art. 81'!Q12="NO",'Aplicabilidad Art. 81'!Q14="NO",'Aplicabilidad Art. 81'!Q16="NO",'Aplicabilidad Art. 81'!Q18="NO",'Aplicabilidad Art. 81'!Q20="NO",'Aplicabilidad Art. 81'!Q22="NO",'Aplicabilidad Art. 81'!Q24="NO",'Aplicabilidad Art. 81'!Q26="NO",'Aplicabilidad Art. 81'!Q28="NO",'Aplicabilidad Art. 81'!Q30="NO",'Aplicabilidad Art. 81'!Q32="NO",'Aplicabilidad Art. 81'!Q34="NO",'Aplicabilidad Art. 81'!M36="NO"),"NO","SI") -> SI | F16: ='Art. 81'!E2723 -> 0.7142857143 | G16: ='Art. 81'!E2724 -> 1 | H16: ='Art. 81'!E2725 -> 0.8285714286
C18: 82 | E18: =IF(AND('Aplicabilidad Art. 81'!E12="NO",'Aplicabilidad Art. 81'!E14="NO",'Aplicabilidad Art. 81'!E16="NO",'Aplicabilidad Art. 81'!E18="NO",'Aplicabilidad Art. 81'!E20="NO",'Aplicabilidad Art. 81'!E22="NO",'Aplicabilidad Art. 81'!E24="NO",'Aplicabilidad Art. 81'!E26="NO",'Aplicabilidad Art. 81'!E28="NO",'Aplicabilidad Art. 81'!E30="NO",'Aplicabilidad Art. 81'!E32="NO",'Aplicabilidad Art. 81'!E34="NO",'Aplicabilidad Art. 81'!I12="NO",'Aplicabilidad Art. 81'!I14="NO",'Aplicabilidad Art. 81'!I16="NO",'Aplicabilidad Art. 81'!I18="NO",'Aplicabilidad Art. 81'!I20="NO",'Aplicabilidad Art. 81'!I22="NO",'Aplicabilidad Art. 81'!I24="NO",'Aplicabilidad Art. 81'!I26="NO",'Aplicabilidad Art. 81'!I28="NO",'Aplicabilidad Art. 81'!I30="NO",'Aplicabilidad Art. 81'!I32="NO",'Aplicabilidad Art. 81'!I34="NO",'Aplicabilidad Art. 81'!M12="NO",'Aplicabilidad Art. 81'!M14="NO",'Aplicabilidad Art. 81'!M16="NO",'Aplicabilidad Art. 81'!M18="NO",'Aplicabilidad Art. 81'!M20="NO",'Aplicabilidad Art. 81'!M22="NO",'Aplicabilidad Art. 81'!M24="NO",'Aplicabilidad Art. 81'!M26="NO",'Aplicabilidad Art. 81'!M28="NO",'Aplicabilidad Art. 81'!M30="NO",'Aplicabilidad Art. 81'!M32="NO",'Aplicabilidad Art. 81'!M34="NO",'Aplicabilidad Art. 81'!Q12="NO",'Aplicabilidad Art. 81'!Q14="NO",'Aplicabilidad Art. 81'!Q16="NO",'Aplicabilidad Art. 81'!Q18="NO",'Aplicabilidad Art. 81'!Q20="NO",'Aplicabilidad Art. 81'!Q22="NO",'Aplicabilidad Art. 81'!Q24="NO",'Aplicabilidad Art. 81'!Q26="NO",'Aplicabilidad Art. 81'!Q28="NO",'Aplicabilidad Art. 81'!Q30="NO",'Aplicabilidad Art. 81'!Q32="NO",'Aplicabilidad Art. 81'!Q34="NO",'Aplicabilidad Art. 81'!M36="NO"),"NO","SI") -> SI | F18: =IF(E18="NO","NA",'Art. 82'!$E$9) -> 0.8611111111 | G18: =IF(E18="NO","NA",'Art. 82'!$E$10) -> 1 | H18: =IF(E18="NO","NA",'Art. 82'!$E$11) -> 0.9166666667
C20: 83 | D20: IV | E20: =IF(AND('Aplicabilidad Art. 81'!E14="NO",'Aplicabilidad Art. 81'!E16="NO",'Aplicabilidad Art. 81'!E18="NO",'Aplicabilidad Art. 81'!E20="NO",'Aplicabilidad Art. 81'!E22="NO",'Aplicabilidad Art. 81'!E24="NO",'Aplicabilidad Art. 81'!E26="NO",'Aplicabilidad Art. 81'!E28="NO",'Aplicabilidad Art. 81'!E30="NO",'Aplicabilidad Art. 81'!E32="NO",'Aplicabilidad Art. 81'!E34="NO",'Aplicabilidad Art. 81'!E36="NO",'Aplicabilidad Art. 81'!I14="NO",'Aplicabilidad Art. 81'!I16="NO",'Aplicabilidad Art. 81'!I18="NO",'Aplicabilidad Art. 81'!I20="NO",'Aplicabilidad Art. 81'!I22="NO",'Aplicabilidad Art. 81'!I24="NO",'Aplicabilidad Art. 81'!I26="NO",'Aplicabilidad Art. 81'!I28="NO",'Aplicabilidad Art. 81'!I30="NO",'Aplicabilidad Art. 81'!I32="NO",'Aplicabilidad Art. 81'!I34="NO",'Aplicabilidad Art. 81'!I36="NO",'Aplicabilidad Art. 81'!M14="NO",'Aplicabilidad Art. 81'!M16="NO",'Aplicabilidad Art. 81'!M18="NO",'Aplicabilidad Art. 81'!M20="NO",'Aplicabilidad Art. 81'!M22="NO",'Aplicabilidad Art. 81'!M24="NO",'Aplicabilidad Art. 81'!M26="NO",'Aplicabilidad Art. 81'!M28="NO",'Aplicabilidad Art. 81'!M30="NO",'Aplicabilidad Art. 81'!M32="NO",'Aplicabilidad Art. 81'!M34="NO",'Aplicabilidad Art. 81'!M36="NO",'Aplicabilidad Art. 81'!Q14="NO",'Aplicabilidad Art. 81'!Q16="NO",'Aplicabilidad Art. 81'!Q18="NO",'Aplicabilidad Art. 81'!Q20="NO",'Aplicabilidad Art. 81'!Q22="NO",'Aplicabilidad Art. 81'!Q24="NO",'Aplicabilidad Art. 81'!Q26="NO",'Aplicabilidad Art. 81'!Q28="NO",'Aplicabilidad Art. 81'!Q30="NO",'Aplicabilidad Art. 81'!Q32="NO",'Aplicabilidad Art. 81'!Q34="NO",'Aplicabilidad Art. 81'!Q36="NO",'Aplicabilidad Art. 81'!M38="NO"),"NO","SI") -> SI | F20: ='Art. 83 IV'!$E$9 -> 0.9206281373 | G20: ='Art. 83 IV'!$E$10 -> 1 | H20: ='Art. 83 IV'!$E$11 -> 0.9523768824
B27: =CONCATENATE("Verificador: ",'Aplicabilidad Específicos'!M23) -> Verificador: | G27: Supervisó:
G30: 81 | H30: =IF(H14="NA","NA",H14) -> 0.8489437766
G31: 82 | H31: =IF(H18="NA","NA",H18) -> 0.9166666667
G32: 83 I | H32: =IF(#REF!="NA","NA",#REF!) -> 
G33: 83 II | H33: =IF(#REF!="NA","NA",#REF!) -> 
C34: IOC | D34: IOE | E34: IOA | F34: Grupo de cálculo para ponderación | G34: 83 III | H34: =IF(#REF!="NA","NA",#REF!) -> 
C35: =IF(AND(H30="NA",H31="NA"),"NA",AVERAGE(H30:H31)) -> 0.8828052216 | D35: =IF(AND(H32="NA",H33="NA",H34="NA",H35="NA",H36="NA",H37="NA",H38="NA",H39="NA",H40="NA",H41="NA",H42="NA",H43="NA",H44="NA",H45="NA"),"NA",AVERAGE(H32:H45)) ->  | E35: =IF(AND(H46="NA",H47="NA",H48="NA"),"NA",AVERAGE(H46:H48)) ->  | F35: =IF(AND(C35="NA",D35="NA",E35="NA"),8,IF(AND(C35="NA",D35="NA"),7,IF(AND(C35="NA",E35="NA"),6,IF(AND(D35="NA",E35="NA"),5,IF(E35="NA",4,IF(D35="NA",3,IF(C35="NA",2,1))))))) ->  | G35: 83 IV | H35: =IF(H20="NA","NA",H20) -> 0.9523768824
A36: R. POND | C36: =IF(C35="NA","NA",C35*HLOOKUP(F35,PONDERACIONES!$A$2:$I$5,2,FALSE)) ->  | D36: =IF(D35="NA","NA",D35*HLOOKUP(F35,PONDERACIONES!$A$2:$I$5,3,FALSE)) ->  | E36: =IF(E35="NA","NA",E35*HLOOKUP(F35,PONDERACIONES!$A$2:$I$5,4,FALSE)) ->  | G36: 83 V | H36: =IF(#REF!="NA","NA",#REF!) -> 
A37: RESULT | C37: =IF(AND(C36="NA",D36="NA",E36="NA"),"NA",SUM(C36:E36)) ->  | G37: 83 VI | H37: =IF(#REF!="NA","NA",#REF!) -> 
G38: 83 VII | H38: =IF(#REF!="NA","NA",#REF!) -> 
G39: 83 VII | H39: =IF(#REF!="NA","NA",#REF!) -> 
A40: GRUPO | B40: EXPLICACIÓN | G40: 83 VIII | H40: =IF(#REF!="NA","NA",#REF!) -> 
A41: 1 | B41: Aplican los tres componentes | G41: 83 IX | H41: =IF(#REF!="NA","NA",#REF!) -> 
A42: 2 | B42: Aplica solo segundo y tercer componente | G42: 84 | H42: =IF(#REF!="NA","NA",#REF!) -> 
A43: 3 | B43: Aplica solo primer y tercer componente | G43: 85 | H43: =IF(#REF!="NA","NA",#REF!) -> 
A44: 4 | B44: Aplica solo primer y segundo componente | G44: 85 IX | H44: =IF(#REF!="NA","NA",#REF!) -> 
A45: 5 | B45: Solo aplica primer componente | G45: 86 | H45: =IF(#REF!="NA","NA",#REF!) -> 
A46: 6 | B46: Solo aplica segundo componente | G46: 87 | H46: =IF(#REF!="NA","NA",#REF!) -> 
A47: 7 | B47: Solo aplica el tercer componente | G47: 88 | H47: =IF(#REF!="NA","NA",#REF!) -> 
A48: 8 | B48: Ningún componente aplica | G48: 89 | H48: =IF(#REF!="NA","NA",#REF!) -> 
... 1 more rows

Sheet Reporte
B1: Instituto de Transparencia, Acceso a la Información Pública y Protección de Datos Personales de Baja California | C1: Requerimientos derivadas de la verificación virtual oficiosa 2024 de las obligaciones de transparencia establecidas en la Ley General y Ley Local de Transparencia. SIPOT Ayuntamiento de Mexicali, Baja California Verificaciòn 4to Trimestre 2024
B2: ='Aplicabilidad Específicos'!G3 -> Ayuntamiento de Mexicali, Baja California
A3: Art. 81 - Fracción I. El marco normativo aplicable al sujeto obligado, en el que deberá incluirse leyes, códigos, reglamentos, decretos de creación, manuales administrativos, reglas de operación, criterios, políticas, entre otros
A4: Art. 81 - Fracción II. Su estructura orgánica completa, en un formato que permita vincular cada parte de la estructura, las atribuciones y responsabilidades que le corresponden a cada servidor público, prestador de servicios profesionales o miembro de los sujetos obligados de conformidad con las disposiciones aplicables ***************************************************************************************************************************
A5: Art. 81 - Fracción III - Facultades de cada Área **********************************************************************************************************************
B6: Criterio | C6: Valor criterio | D6: Valoración | E6: Tipo | F6: Requerimiento
B7: Criterio 5. Hipervínculo al fragmento del reglamento interior, estatuto orgánico o normatividad equivalente en el que se observen las facultades que correspondan a cada área | C7: 1 | D7: 0.5 | E7: Requerimiento | F7: Al hacer click en el hipervinculo al fragmento del reglamento proporcionado, se advierte no se puede acceder, marcando error. | G7: 3
A8: Art. 81 - Fracción IV. Las metas y objetivos de las Áreas de conformidad con sus programas operativos *******************************************************************************************************************************
B9: Criterio | C9: Valor criterio | D9: Valoración | E9: Tipo | F9: Requerimiento
B10: Criterio 8. Hipervínculo al documento del o los programas operativos, presupuestarios, sectoriales, regionales, institucionales, especiales, de trabajo y/o anuales; según corresponda, en un formato que permita la reutilización de la información | C10: 1 | D10: 0 | E10: Requerimiento | F10: deberá publicar el Hipervínculo Al Documento Del O Los Programas Operativos, Presupuestarios, Sectoriales, entre Otros, respecto del ejercicio 2023 | G10: 4
A11: Art. 81 - Fracción V. Los indicadores relacionados con temas de interés público o trascendencia social que conforme a sus funciones, deban establecer
B12: Criterio | C12: Valor criterio | D12: Valoración | E12: Tipo | F12: Requerimiento
B13: Criterio 3. Descripción breve y clara de cada objetivo. La información debe publicarse con perspectiva de género, en caso de que los documentos que regulen al sujeto obligado no contengan redacción con perspectiva de género, se incluirá la alternativa incluyente y no sexista entre paréntesis o corchetes | C13: 1 | D13: 0 | E13: Requerimiento | F13: Se deberán publicar los indicadores relacionado con temas de interes público. | G13: 5
B14: Criterio 4. Nombre del(os) indicador(es) | C14: 1 | D14: 0 | E14: Requerimiento | F14: Se deberán publicar los indicadores relacionado con temas de interes público. | G14: 5
B15: Criterio 5. Dimensión(es) a medir | C15: 1 | D15: 0 | E15: Requerimiento | F15: Se deberán publicar los indicadores relacionado con temas de interes público. | G15: 5
B16: Criterio 6. Definición del indicador, es decir, explicación breve y clara respecto de lo que debe medir el indicador | C16: 1 | D16: 0 | E16: Requerimiento | F16: Se deberán publicar los indicadores relacionado con temas de interes público. | G16: 5
B17: Criterio 7. Método de cálculo, es decir, las variables que intervienen en la fórmula. Se deberá especificar el significado de las siglas y/o abreviaturas | C17: 1 | D17: 0 | E17: Requerimiento | F17: Se deberán publicar los indicadores relacionado con temas de interes público. | G17: 5
B18: Criterio 8. Unidad de medida | C18: 1 | D18: 0 | E18: Requerimiento | F18: Se deberán publicar los indicadores relacionado con temas de interes público. | G18: 5
B19: Criterio 9. Frecuencia de medición | C19: 1 | D19: 0 | E19: Requerimiento | F19: Se deberán publicar los indicadores relacionado con temas de interes público. | G19: 5
B20: Criterio 10. Línea base (Punto de partida para evaluar y dar seguimiento al indicador) | C20: 1 | D20: 0 | E20: Requerimiento | F20: Se deberán publicar los indicadores relacionado con temas de interes público. | G20: 5
B21: Criterio 11. Metas programadas | C21: 1 | D21: 0 | E21: Requerimiento | F21: Se deberán publicar los indicadores relacionado con temas de interes público. | G21: 5
B22: Criterio 12. Metas ajustadas, en su caso | C22: 1 | D22: 0 | E22: Requerimiento | F22: Se deberán publicar los indicadores relacionado con temas de interes público. | G22: 5
B23: Criterio 13. Avance de las metas al periodo que se informa | C23: 1 | D23: 0 | E23: Requerimiento | F23: Se deberán publicar los indicadores relacionado con temas de interes público. | G23: 5
B24: Criterio 14. Sentido del indicador (catálogo): Ascendente/ Descendente | C24: 1 | D24: 0 | E24: Requerimiento | F24: Se deberán publicar los indicadores relacionado con temas de interes público. | G24: 5
B25: Criterio 15. Fuente de información (especificar la fuente de información que alimenta al indicador, por lo menos integrando: nombre de ésta, e institución responsable de su medición) | C25: 1 | D25: 0 | E25: Requerimiento | F25: Se deberán publicar los indicadores relacionado con temas de interes público. | G25: 5
A26: Art. 81 - Fracción VI. Los indicadores que permitan rendir cuenta de sus objetivos y resultados
B27: Criterio | C27: Valor criterio | D27: Valoración | E27: Tipo | F27: Requerimiento
B28: Criterio 3. Nombre del programa o concepto al que corresponde el indicador | C28: 1 | D28: 0 | E28: Requerimiento | F28: Se deberán publicar los indicadoresue permitan rendir cuenta de sus objetivos y resultados | G28: 6
B29: Criterio 4. Descripción breve y clara de cada objetivo institucional. La información debe publicarse con perspectiva de género, en caso de que los documentos que regulen al sujeto obligado no contengan redacción con perspectiva de género, se incluirá la alternativa incluyente y no sexista entre paréntesis o corchetes | C29: 1 | D29: 0 | E29: Requerimiento | F29: Se deberán publicar los indicadores que permitan rendir cuenta de sus objetivos y resultados | G29: 6
B30: Criterio 5. Nombre del(os) indicador(es) | C30: 1 | D30: 0 | E30: Requerimiento | F30: Se deberán publicar los indicadoresue permitan rendir cuenta de sus objetivos y resultados | G30: 6
B31: Criterio 6. Dimensión(es) a medir. Por ejemplo: eficacia, eficiencia, calidad y economía | C31: 1 | D31: 0 | E31: Requerimiento | F31: Se deberán publicar los indicadoresue permitan rendir cuenta de sus objetivos y resultados | G31: 6
B32: Criterio 7. Definición del indicador, es decir, explicación breve y clara respecto de lo que éste debe medir | C32: 1 | D32: 0 | E32: Requerimiento | F32: Se deberán publicar los indicadoresue permitan rendir cuenta de sus objetivos y resultados | G32: 6
B33: Criterio 8. Método de cálculo con las variables que intervienen en la fórmula, se deberá incluir el significado de las siglas y/o abreviaturas | C33: 1 | D33: 0 | E33: Requerimiento | F33: Se deberán publicar los indicadoresue permitan rendir cuenta de sus objetivos y resultados | G33: 6
B34: Criterio 9. Unidad de medida | C34: 1 | D34: 0 | E34: Requerimiento | F34: Se deberán publicar los indicadoresue permitan rendir cuenta de sus objetivos y resultados | G34: 6
B35: Criterio 10. Frecuencia de medición | C35: 1 | D35: 0 | E35: Requerimiento | F35: Se deberán publicar los indicadoresue permitan rendir cuenta de sus objetivos y resultados | G35: 6
B36: Criterio 11. Línea base (Punto de partida para evaluar y dar seguimiento al indicador) | C36: 1 | D36: 0 | E36: Requerimiento | F36: Se deberán publicar los indicadoresue permitan rendir cuenta de sus objetivos y resultados | G36: 6
B37: Criterio 12. Metas programadas | C37: 1 | D37: 0 | E37: Requerimiento | F37: Se deberán publicar los indicadoresue permitan rendir cuenta de sus objetivos y resultados | G37: 6
B38: Criterio 13. Metas ajustadas que existan, en su caso | C38: 1 | D38: 0 | E38: Requerimiento | F38: Se deberán publicar los indicadoresue permitan rendir cuenta de sus objetivos y resultados | G38: 6
B39: Criterio 14. Avance de metas | C39: 1 | D39: 0 | E39: Requerimiento | F39: Se deberán publicar los indicadoresue permitan rendir cuenta de sus objetivos y resultados | G39: 6
B40: Criterio 15. Sentido del indicador (catálogo): Ascendente/Descendente | C40: 1 | D40: 0 | E40: Requerimiento | F40: Se deberán publicar los indicadoresue permitan rendir cuenta de sus objetivos y resultados | G40: 6
B41: Criterio 16. Fuentes de información (especificar la fuente de información que alimenta al indicador, por lo menos integrando: nombre de ésta e institución responsable de la fuente) | C41: 1 | D41: 0 | E41: Requerimiento | F41: Se deberán publicar los indicadoresue permitan rendir cuenta de sus objetivos y resultados | G41: 6
A42: Art. 81 - Fracción VII. El directorio de todos los servidores públicos, a partir del nivel de jefe de departamento o su equivalente, o de menor nivel, cuando se brinde atención al público; manejen o apliquen recursos públicos; realicen actos de autoridad, o presten servicios profesionales bajo el régimen de confianza u honorarios y personal de base. El directorio deberá incluir al menos el nombre, cargo o nombramiento asignado, nivel del puesto en la estructura orgánica, fecha de alta en el cargo, número telefónico, domicilio para recibir correspondencia y dirección de correo electrónico oficiales *****************************************************************************************************************
A43: Art. 81 - Fracción VIII. La remuneración bruta y neta de todos los Servidores Públicos de base o de confianza, de todas las percepciones, incluyendo sueldos, prestaciones, gratificaciones, primas, comisiones, dietas, bonos, estímulos, ingresos y sistemas de compensación, señalando la periodicidad de dicha remuneración ***********************************************************************************************************************
B44: Criterio | C44: Valor criterio | D44: Valoración | E44: Tipo | F44: Requerimiento
B45: Criterio 3 Tipo de integrante del sujeto obligado (catálogo): funcionario/servidor[a] público[a]/ servidor[a] público[a] eventual/integrante/empleado/representante popular/ miembro del poder judicial/miembro de órgano autónomo/personal de confianza/prestador de servicios profesionales/otro | C45: 1 | D45: 0.5 | E45: Requerimiento | F45: Debera publicar la información respecto de: Denominación de ingresos, bonos, estimulos y prestaciones económicas. Asimismo, se advierte que en la columna de nota se justifica la ausencia del criterio de primas, sin embargo, si se publica la información. | G45: 8a
B46: Criterio 4 Clave o nivel del puesto (en su caso, de acuerdo con el catálogo que regule la actividad del sujeto obligado) | C46: 1 | D46: 0.5 | E46: Requerimiento | F46: Debera publicar la información respecto de: Denominación de ingresos, bonos, estimulos y prestaciones económicas. Asimismo, se advierte que en la columna de nota se justifica la ausencia del criterio de primas, sin embargo, si se publica la información. | G46: 8a
B47: Criterio 5 Denominación o descripción del puesto (de acuerdo con el catálogo que en su caso regule la actividad del sujeto obligado). La información debe publicarse con perspectiva de género19, en caso de que el catálogo que regule al sujeto obligado no contenga redacción con perspectiva de género, se incluirá la alternativa incluyente y no sexista entre paréntesis o corchetes | C47: 1 | D47: 0.5 | E47: Requerimiento | F47: Debera publicar la información respecto de: Denominación de ingresos, bonos, estimulos y prestaciones económicas. Asimismo, se advierte que en la columna de nota se justifica la ausencia del criterio de primas, sin embargo, si se publica la información. | G47: 8a
B48: Criterio 6 Denominación del cargo (de conformidad con nombramiento otorgado) | C48: 1 | D48: 0.5 | E48: Requerimiento | F48: Debera publicar la información respecto de: Denominación de ingresos, bonos, estimulos y prestaciones económicas. Asimismo, se advierte que en la columna de nota se justifica la ausencia del criterio de primas, sin embargo, si se publica la información. | G48: 8a
B49: Criterio 7 Área de adscripción (de acuerdo con el catálogo de áreas o puestos, si así corresponde) | C49: 1 | D49: 0.5 | E49: Requerimiento | F49: Debera publicar la información respecto de: Denominación de ingresos, bonos, estimulos y prestaciones económicas. Asimismo, se advierte que en la columna de nota se justifica la ausencia del criterio de primas, sin embargo, si se publica la información. | G49: 8a
B50: Criterio 8 Nombre completo del(a) servidor(a) público(a) y/o toda persona que desempeñe un empleo, cargo o comisión y/o ejerzan actos de autoridad (nombre [s], primer apellido, segundo apellido) | C50: 1 | D50: 0.5 | E50: Requerimiento | F50: Debera publicar la información respecto de: Denominación de ingresos, bonos, estimulos y prestaciones económicas. Asimismo, se advierte que en la columna de nota se justifica la ausencia del criterio de primas, sin embargo, si se publica la información. | G50: 8a
B51: Criterio 9 Sexo (catálogo): Mujer/Hombre | C51: 1 | D51: 0.5 | E51: Requerimiento | F51: Debera publicar la información respecto de: Denominación de ingresos, bonos, estimulos y prestaciones económicas. Asimismo, se advierte que en la columna de nota se justifica la ausencia del criterio de primas, sin embargo, si se publica la información. | G51: 8a
B52: Criterio 10 Monto de la remuneración mensual bruta, de conformidad al Tabulador de sueldos y salarios que corresponda (se refiere a las percepciones totales sin descuento alguno) | C52: 1 | D52: 0.5 | E52: Requerimiento | F52: Debera publicar la información respecto de: Denominación de ingresos, bonos, estimulos y prestaciones económicas. Asimismo, se advierte que en la columna de nota se justifica la ausencia del criterio de primas, sin embargo, si se publica la información. | G52: 8a
B53: Criterio 11 Tipo de moneda de la remuneración bruta. Por ejemplo: Peso, Dólar, Euro, Libra, Yen | C53: 1 | D53: 0.5 | E53: Requerimiento | F53: Debera publicar la información respecto de: Denominación de ingresos, bonos, estimulos y prestaciones económicas. Asimismo, se advierte que en la columna de nota se justifica la ausencia del criterio de primas, sin embargo, si se publica la información. | G53: 8a
B54: Criterio 12 Monto de la remuneración mensual neta, de conformidad al Tabulador de sueldos y salarios que corresponda (se refiere a la remuneración mensual bruta menos las deducciones genéricas previstas por ley: ISR, ISSSTE, otra) | C54: 1 | D54: 0.5 | E54: Requerimiento | F54: Debera publicar la información respecto de: Denominación de ingresos, bonos, estimulos y prestaciones económicas. Asimismo, se advierte que en la columna de nota se justifica la ausencia del criterio de primas, sin embargo, si se publica la información. | G54: 8a
B55: Criterio 13 Tipo de moneda de la remuneración neta. Por ejemplo: Peso, Dólar, Euro, Libra, Yen | C55: 1 | D55: 0.5 | E55: Requerimiento | F55: Debera publicar la información respecto de: Denominación de ingresos, bonos, estimulos y prestaciones económicas. Asimismo, se advierte que en la columna de nota se justifica la ausencia del criterio de primas, sin embargo, si se publica la información. | G55: 8a
B56: Criterio 14 Denominación de las percepciones adicionales en dinero | C56: 1 | D56: 0.5 | E56: Requerimiento | F56: Debera publicar la información respecto de: Denominación de ingresos, bonos, estimulos y prestaciones económicas. Asimismo, se advierte que en la columna de nota se justifica la ausencia del criterio de primas, sin embargo, si se publica la información. | G56: 8a
B57: Criterio 15 Monto bruto de las percepciones adicionales en dinero | C57: 1 | D57: 0.5 | E57: Requerimiento | F57: Debera publicar la información respecto de: Denominación de ingresos, bonos, estimulos y prestaciones económicas. Asimismo, se advierte que en la columna de nota se justifica la ausencia del criterio de primas, sin embargo, si se publica la información. | G57: 8a
B58: Criterio 16 Monto neto de las percepciones adicionales en dinero | C58: 1 | D58: 0.5 | E58: Requerimiento | F58: Debera publicar la información respecto de: Denominación de ingresos, bonos, estimulos y prestaciones económicas. Asimismo, se advierte que en la columna de nota se justifica la ausencia del criterio de primas, sin embargo, si se publica la información. | G58: 8a
B59: Criterio 17 Tipo de moneda de las percepciones adicionales en dinero. Por ejemplo: Peso, Dólar, Euro, Libra, Yen | C59: 1 | D59: 0.5 | E59: Requerimiento | F59: Debera publicar la información respecto de: Denominación de ingresos, bonos, estimulos y prestaciones económicas. Asimismo, se advierte que en la columna de nota se justifica la ausencia del criterio de primas, sin embargo, si se publica la información. | G59: 8a
B60: Criterio 18 Periodicidad de las percepciones adicionales en dinero | C60: 1 | D60: 0.5 | E60: Requerimiento | F60: Debera publicar la información respecto de: Denominación de ingresos, bonos, estimulos y prestaciones económicas. Asimismo, se advierte que en la columna de nota se justifica la ausencia del criterio de primas, sin embargo, si se publica la información. | G60: 8a
B61: Criterio 19 Descripción de las percepciones adicionales en especie | C61: 1 | D61: 0.5 | E61: Requerimiento | F61: Debera publicar la información respecto de: Denominación de ingresos, bonos, estimulos y prestaciones económicas. Asimismo, se advierte que en la columna de nota se justifica la ausencia del criterio de primas, sin embargo, si se publica la información. | G61: 8a
B62: Criterio 20 Periodicidad de las percepciones adicionales en especie | C62: 1 | D62: 0.5 | E62: Requerimiento | F62: Debera publicar la información respecto de: Denominación de ingresos, bonos, estimulos y prestaciones económicas. Asimismo, se advierte que en la columna de nota se justifica la ausencia del criterio de primas, sin embargo, si se publica la información. | G62: 8a
B63: Criterio 21 Denominación de los ingresos | C63: 1 | D63: 0.5 | E63: Requerimiento | F63: Debera publicar la información respecto de: Denominación de ingresos, bonos, estimulos y prestaciones económicas. Asimismo, se advierte que en la columna de nota se justifica la ausencia del criterio de primas, sin embargo, si se publica la información. | G63: 8a
B64: Criterio 22 Monto bruto de los ingresos | C64: 1 | D64: 0.5 | E64: Requerimiento | F64: Debera publicar la información respecto de: Denominación de ingresos, bonos, estimulos y prestaciones económicas. Asimismo, se advierte que en la columna de nota se justifica la ausencia del criterio de primas, sin embargo, si se publica la información. | G64: 8a
B65: Criterio 23 Monto neto de los ingresos | C65: 1 | D65: 0.5 | E65: Requerimiento | F65: Debera publicar la información respecto de: Denominación de ingresos, bonos, estimulos y prestaciones económicas. Asimismo, se advierte que en la columna de nota se justifica la ausencia del criterio de primas, sin embargo, si se publica la información. | G65: 8a
B66: Criterio 24 Tipo de moneda de los ingresos. Por ejemplo: Peso, Dólar, Euro, Libra, Yen | C66: 1 | D66: 0.5 | E66: Requerimiento | F66: Debera publicar la información respecto de: Denominación de ingresos, bonos, estimulos y prestaciones económicas. Asimismo, se advierte que en la columna de nota se justifica la ausencia del criterio de primas, sin embargo, si se publica la información. | G66: 8a
B67: Criterio 25 Periodicidad de los ingresos | C67: 1 | D67: 0.5 | E67: Requerimiento | F67: Debera publicar la información respecto de: Denominación de ingresos, bonos, estimulos y prestaciones económicas. Asimismo, se advierte que en la columna de nota se justifica la ausencia del criterio de primas, sin embargo, si se publica la información. | G67: 8a
B68: Criterio 26 Denominación de los sistemas de compensación | C68: 1 | D68: 0.5 | E68: Requerimiento | F68: Debera publicar la información respecto de: Denominación de ingresos, bonos, estimulos y prestaciones económicas. Asimismo, se advierte que en la columna de nota se justifica la ausencia del criterio de primas, sin embargo, si se publica la información. | G68: 8a
B69: Criterio 27 Monto bruto de los sistemas de compensación | C69: 1 | D69: 0.5 | E69: Requerimiento | F69: Debera publicar la información respecto de: Denominación de ingresos, bonos, estimulos y prestaciones económicas. Asimismo, se advierte que en la columna de nota se justifica la ausencia del criterio de primas, sin embargo, si se publica la información. | G69: 8a
B70: Criterio 28 Monto neto de los sistemas de compensación | C70: 1 | D70: 0.5 | E70: Requerimiento | F70: Debera publicar la información respecto de: Denominación de ingresos, bonos, estimulos y prestaciones económicas. Asimismo, se advierte que en la columna de nota se justifica la ausencia del criterio de primas, sin embargo, si se publica la información. | G70: 8a
B71: Criterio 29 Tipo de moneda de los sistemas de compensación. Por ejemplo: Peso, Dólar, Euro, Libra, Yen | C71: 1 | D71: 0.5 | E71: Requerimiento | F71: Debera publicar la información respecto de: Denominación de ingresos, bonos, estimulos y prestaciones económicas. Asimismo, se advierte que en la columna de nota se justifica la ausencia del criterio de primas, sin embargo, si se publica la información. | G71: 8a
B72: Criterio 30 Periodicidad de los sistemas de compensación | C72: 1 | D72: 0.5 | E72: Requerimiento | F72: Debera publicar la información respecto de: Denominación de ingresos, bonos, estimulos y prestaciones económicas. Asimismo, se advierte que en la columna de nota se justifica la ausencia del criterio de primas, sin embargo, si se publica la información. | G72: 8a
B73: Criterio 31 Denominación de las gratificaciones | C73: 1 | D73: 0.5 | E73: Requerimiento | F73: Debera publicar la información respecto de: Denominación de ingresos, bonos, estimulos y prestaciones económicas. Asimismo, se advierte que en la columna de nota se justifica la ausencia del criterio de primas, sin embargo, si se publica la información. | G73: 8a
B74: Criterio 32 Monto bruto de las gratificaciones | C74: 1 | D74: 0.5 | E74: Requerimiento | F74: Debera publicar la información respecto de: Denominación de ingresos, bonos, estimulos y prestaciones económicas. Asimismo, se advierte que en la columna de nota se justifica la ausencia del criterio de primas, sin embargo, si se publica la información. | G74: 8a
B75: Criterio 33 Monto neto de las gratificaciones | C75: 1 | D75: 0.5 | E75: Requerimiento | F75: Debera publicar la información respecto de: Denominación de ingresos, bonos, estimulos y prestaciones económicas. Asimismo, se advierte que en la columna de nota se justifica la ausencia del criterio de primas, sin embargo, si se publica la información. | G75: 8a
B76: Criterio 34 Tipo de moneda de las gratificaciones. Por ejemplo: Peso, Dólar, Euro, Libra, Yen | C76: 1 | D76: 0.5 | E76: Requerimiento | F76: Debera publicar la información respecto de: Denominación de ingresos, bonos, estimulos y prestaciones económicas. Asimismo, se advierte que en la columna de nota se justifica la ausencia del criterio de primas, sin embargo, si se publica la información. | G76: 8a
B77: Criterio 35 Periodicidad de las gratificaciones | C77: 1 | D77: 0.5 | E77: Requerimiento | F77: Debera publicar la información respecto de: Denominación de ingresos, bonos, estimulos y prestaciones económicas. Asimismo, se advierte que en la columna de nota se justifica la ausencia del criterio de primas, sin embargo, si se publica la información. | G77: 8a
B78: Criterio 36 Denominación de las primas | C78: 1 | D78: 0.5 | E78: Requerimiento | F78: Debera publicar la información respecto de: Denominación de ingresos, bonos, estimulos y prestaciones económicas. Asimismo, se advierte que en la columna de nota se justifica la ausencia del criterio de primas, sin embargo, si se publica la información. | G78: 8a
B79: Criterio 37 Monto bruto de las primas | C79: 1 | D79: 0.5 | E79: Requerimiento | F79: Debera publicar la información respecto de: Denominación de ingresos, bonos, estimulos y prestaciones económicas. Asimismo, se advierte que en la columna de nota se justifica la ausencia del criterio de primas, sin embargo, si se publica la información. | G79: 8a
B80: Criterio 38 Monto neto de las primas | C80: 1 | D80: 0.5 | E80: Requerimiento | F80: Debera publicar la información respecto de: Denominación de ingresos, bonos, estimulos y prestaciones económicas. Asimismo, se advierte que en la columna de nota se justifica la ausencia del criterio de primas, sin embargo, si se publica la información. | G80: 8a
B81: Criterio 39 Tipo de moneda de las primas. Por ejemplo: Peso, Dólar, Euro, Libra, Yen | C81: 1 | D81: 0.5 | E81: Requerimiento | F81: Debera publicar la información respecto de: Denominación de ingresos, bonos, estimulos y prestaciones económicas. Asimismo, se advierte que en la columna de nota se justifica la ausencia del criterio de primas, sin embargo, si se publica la información. | G81: 8a
B82: Criterio 40 Periodicidad de las primas | C82: 1 | D82: 0.5 | E82: Requerimiento | F82: Debera publicar la información respecto de: Denominación de ingresos, bonos, estimulos y prestaciones económicas. Asimismo, se advierte que en la columna de nota se justifica la ausencia del criterio de primas, sin embargo, si se publica la información. | G82: 8a
B83: Criterio 41 Denominación de las comisiones | C83: 1 | D83: 0.5 | E83: Requerimiento | F83: Debera publicar la información respecto de: Denominación de ingresos, bonos, estimulos y prestaciones económicas. Asimismo, se advierte que en la columna de nota se justifica la ausencia del criterio de primas, sin embargo, si se publica la información. | G83: 8a
B84: Criterio 42 Monto bruto de las comisiones | C84: 1 | D84: 0.5 | E84: Requerimiento | F84: Debera publicar la información respecto de: Denominación de ingresos, bonos, estimulos y prestaciones económicas. Asimismo, se advierte que en la columna de nota se justifica la ausencia del criterio de primas, sin embargo, si se publica la información. | G84: 8a
B85: Criterio 43 Monto neto de las comisiones | C85: 1 | D85: 0.5 | E85: Requerimiento | F85: Debera publicar la información respecto de: Denominación de ingresos, bonos, estimulos y prestaciones económicas. Asimismo, se advierte que en la columna de nota se justifica la ausencia del criterio de primas, sin embargo, si se publica la información. | G85: 8a
B86: Criterio 44 Tipo de moneda de las comisiones. Por ejemplo: Peso, Dólar, Euro, Libra, Yen | C86: 1 | D86: 0.5 | E86: Requerimiento | F86: Debera publicar la información respecto de: Denominación de ingresos, bonos, estimulos y prestaciones económicas. Asimismo, se advierte que en la columna de nota se justifica la ausencia del criterio de primas, sin embargo, si se publica la información. | G86: 8a
B87: Criterio 45 Periodicidad de las comisiones | C87: 1 | D87: 0.5 | E87: Requerimiento | F87: Debera publicar la información respecto de: Denominación de ingresos, bonos, estimulos y prestaciones económicas. Asimismo, se advierte que en la columna de nota se justifica la ausencia del criterio de primas, sin embargo, si se publica la información. | G87: 8a
B88: Criterio 46 Denominación de las dietas | C88: 1 | D88: 0.5 | E88: Requerimiento | F88: Debera publicar la información respecto de: Denominación de ingresos, bonos, estimulos y prestaciones económicas. Asimismo, se advierte que en la columna de nota se justifica la ausencia del criterio de primas, sin embargo, si se publica la información. | G88: 8a
B89: Criterio 47 Monto bruto de las dietas | C89: 1 | D89: 0.5 | E89: Requerimiento | F89: Debera publicar la información respecto de: Denominación de ingresos, bonos, estimulos y prestaciones económicas. Asimismo, se advierte que en la columna de nota se justifica la ausencia del criterio de primas, sin embargo, si se publica la información. | G89: 8a
B90: Criterio 48 Monto neto de las dietas | C90: 1 | D90: 0.5 | E90: Requerimiento | F90: Debera publicar la información respecto de: Denominación de ingresos, bonos, estimulos y prestaciones económicas. Asimismo, se advierte que en la columna de nota se justifica la ausencia del criterio de primas, sin embargo, si se publica la información. | G90: 8a
B91: Criterio 49 Tipo de moneda de las dietas. Por ejemplo: Peso, Dólar, Euro, Libra, Yen | C91: 1 | D91: 0.5 | E91: Requerimiento | F91: Debera publicar la información respecto de: Denominación de ingresos, bonos, estimulos y prestaciones económicas. Asimismo, se advierte que en la columna de nota se justifica la ausencia del criterio de primas, sin embargo, si se publica la información. | G91: 8a
B92: Criterio 50 Periodicidad de las dietas | C92: 1 | D92: 0.5 | E92: Requerimiento | F92: Debera publicar la información respecto de: Denominación de ingresos, bonos, estimulos y prestaciones económicas. Asimismo, se advierte que en la columna de nota se justifica la ausencia del criterio de primas, sin embargo, si se publica la información. | G92: 8a
B93: Criterio 51 Denominación de los bonos | C93: 1 | D93: 0.5 | E93: Requerimiento | F93: Debera publicar la información respecto de: Denominación de ingresos, bonos, estimulos y prestaciones económicas. Asimismo, se advierte que en la columna de nota se justifica la ausencia del criterio de primas, sin embargo, si se publica la información. | G93: 8a
B94: Criterio 52 Monto bruto de los bonos | C94: 1 | D94: 0.5 | E94: Requerimiento | F94: Debera publicar la información respecto de: Denominación de ingresos, bonos, estimulos y prestaciones económicas. Asimismo, se advierte que en la columna de nota se justifica la ausencia del criterio de primas, sin embargo, si se publica la información. | G94: 8a
B95: Criterio 53 Monto neto de los bonos | C95: 1 | D95: 0.5 | E95: Requerimiento | F95: Debera publicar la información respecto de: Denominación de ingresos, bonos, estimulos y prestaciones económicas. Asimismo, se advierte que en la columna de nota se justifica la ausencia del criterio de primas, sin embargo, si se publica la información. | G95: 8a
B96: Criterio 54 Tipo de moneda de los bonos. Por ejemplo: Peso, Dólar, Euro, Libra, Yen | C96: 1 | D96: 0.5 | E96: Requerimiento | F96: Debera publicar la información respecto de: Denominación de ingresos, bonos, estimulos y prestaciones económicas. Asimismo, se advierte que en la columna de nota se justifica la ausencia del criterio de primas, sin embargo, si se publica la información. | G96: 8a
B97: Criterio 55 Periodicidad de los bonos | C97: 1 | D97: 0.5 | E97: Requerimiento | F97: Debera publicar la información respecto de: Denominación de ingresos, bonos, estimulos y prestaciones económicas. Asimismo, se advierte que en la columna de nota se justifica la ausencia del criterio de primas, sin embargo, si se publica la información. | G97: 8a
B98: Criterio 56 Denominación de los estímulos | C98: 1 | D98: 0.5 | E98: Requerimiento | F98: Debera publicar la información respecto de: Denominación de ingresos, bonos, estimulos y prestaciones económicas. Asimismo, se advierte que en la columna de nota se justifica la ausencia del criterio de primas, sin embargo, si se publica la información. | G98: 8a
B99: Criterio 57 Monto bruto de los estímulos | C99: 1 | D99: 0.5 | E99: Requerimiento | F99: Debera publicar la información respecto de: Denominación de ingresos, bonos, estimulos y prestaciones económicas. Asimismo, se advierte que en la columna de nota se justifica la ausencia del criterio de primas, sin embargo, si se publica la información. | G99: 8a
B100: Criterio 58 Monto neto de los estímulos | C100: 1 | D100: 0.5 | E100: Requerimiento | F100: Debera publicar la información respecto de: Denominación de ingresos, bonos, estimulos y prestaciones económicas. Asimismo, se advierte que en la columna de nota se justifica la ausencia del criterio de primas, sin embargo, si se publica la información. | G100: 8a
B101: Criterio 59 Tipo de moneda de los estímulos. Por ejemplo: Peso, Dólar, Euro, Libra, Yen | C101: 1 | D101: 0.5 | E101: Requerimiento | F101: Debera publicar la información respecto de: Denominación de ingresos, bonos, estimulos y prestaciones económicas. Asimismo, se advierte que en la columna de nota se justifica la ausencia del criterio de primas, sin embargo, si se publica la información. | G101: 8a
B102: Criterio 60 Periodicidad de los estímulos | C102: 1 | D102: 0.5 | E102: Requerimiento | F102: Debera publicar la información respecto de: Denominación de ingresos, bonos, estimulos y prestaciones económicas. Asimismo, se advierte que en la columna de nota se justifica la ausencia del criterio de primas, sin embargo, si se publica la información. | G102: 8a
B103: Criterio 61 Denominación de los apoyos económicos. Por ejemplo, la asistencia legislativa que cubre a los CC. Diputados en apoyo para el desempeño de las funciones legislativas. | C103: 1 | D103: 0.5 | E103: Requerimiento | F103: Debera publicar la información respecto de: Denominación de ingresos, bonos, estimulos y prestaciones económicas. Asimismo, se advierte que en la columna de nota se justifica la ausencia del criterio de primas, sin embargo, si se publica la información. | G103: 8a
B104: Criterio 62 Monto bruto de los apoyos económicos | C104: 1 | D104: 0.5 | E104: Requerimiento | F104: Debera publicar la información respecto de: Denominación de ingresos, bonos, estimulos y prestaciones económicas. Asimismo, se advierte que en la columna de nota se justifica la ausencia del criterio de primas, sin embargo, si se publica la información. | G104: 8a
B105: Criterio 63 Monto neto de los apoyos económicos | C105: 1 | D105: 0.5 | E105: Requerimiento | F105: Debera publicar la información respecto de: Denominación de ingresos, bonos, estimulos y prestaciones económicas. Asimismo, se advierte que en la columna de nota se justifica la ausencia del criterio de primas, sin embargo, si se publica la información. | G105: 8a
B106: Criterio 64 Tipo de moneda de los apoyos económicos. Por ejemplo: Peso, Dólar, Euro, Libra, Yen | C106: 1 | D106: 0.5 | E106: Requerimiento | F106: Debera publicar la información respecto de: Denominación de ingresos, bonos, estimulos y prestaciones económicas. Asimismo, se advierte que en la columna de nota se justifica la ausencia del criterio de primas, sin embargo, si se publica la información. | G106: 8a
B107: Criterio 65 Periodicidad de los apoyos económicos | C107: 1 | D107: 0.5 | E107: Requerimiento | F107: Debera publicar la información respecto de: Denominación de ingresos, bonos, estimulos y prestaciones económicas. Asimismo, se advierte que en la columna de nota se justifica la ausencia del criterio de primas, sin embargo, si se publica la información. | G107: 8a
B108: Criterio 66 Denominación de las prestaciones económicas. Por ejemplo, prestaciones de seguridad social, seguros y toda cantidad distinta del sueldo que el servidor público reciba en moneda circulante o en divisas, prevista en el nombramiento, en el contrato o en una disposición legal | C108: 1 | D108: 0.5 | E108: Requerimiento | F108: Debera publicar la información respecto de: Denominación de ingresos, bonos, estimulos y prestaciones económicas. Asimismo, se advierte que en la columna de nota se justifica la ausencia del criterio de primas, sin embargo, si se publica la información. | G108: 8a
B109: Criterio 67 Monto bruto de las prestaciones económicas | C109: 1 | D109: 0.5 | E109: Requerimiento | F109: Debera publicar la información respecto de: Denominación de ingresos, bonos, estimulos y prestaciones económicas. Asimismo, se advierte que en la columna de nota se justifica la ausencia del criterio de primas, sin embargo, si se publica la información. | G109: 8a
B110: Criterio 68 Monto neto de las prestaciones económicas | C110: 1 | D110: 0.5 | E110: Requerimiento | F110: Debera publicar la información respecto de: Denominación de ingresos, bonos, estimulos y prestaciones económicas. Asimismo, se advierte que en la columna de nota se justifica la ausencia del criterio de primas, sin embargo, si se publica la información. | G110: 8a
B111: Criterio 69 Tipo de moneda de las prestaciones económicas. Por ejemplo: Peso, Dólar, Euro, Libra, Yen (especificar nombre) | C111: 1 | D111: 0.5 | E111: Requerimiento | F111: Debera publicar la información respecto de: Denominación de ingresos, bonos, estimulos y prestaciones económicas. Asimismo, se advierte que en la columna de nota se justifica la ausencia del criterio de primas, sin embargo, si se publica la información. | G111: 8a
B112: Criterio 70 Periodicidad de las prestaciones económicas | C112: 1 | D112: 0.5 | E112: Requerimiento | F112: Debera publicar la información respecto de: Denominación de ingresos, bonos, estimulos y prestaciones económicas. Asimismo, se advierte que en la columna de nota se justifica la ausencia del criterio de primas, sin embargo, si se publica la información. | G112: 8a
B113: Criterio 71 Descripción de las prestaciones en especie. Éstas podrán ser por ejemplo, todo beneficio que el servidor(a) público(a)reciba en bienes distintos de la moneda circulante. | C113: 1 | D113: 0.5 | E113: Requerimiento | F113: Debera publicar la información respecto de: Denominación de ingresos, bonos, estimulos y prestaciones económicas. Asimismo, se advierte que en la columna de nota se justifica la ausencia del criterio de primas, sin embargo, si se publica la información. | G113: 8a
B114: Criterio 72 Periodicidad de las prestaciones en especie | C114: 1 | D114: 0.5 | E114: Requerimiento | F114: Debera publicar la información respecto de: Denominación de ingresos, bonos, estimulos y prestaciones económicas. Asimismo, se advierte que en la columna de nota se justifica la ausencia del criterio de primas, sin embargo, si se publica la información. | G114: 8a
A115: Se publicará el tabulador de sueldos y salarios de cada sujeto obligado de conformidad con la normatividad aplicable. La clave o nivel y denominación o descripción del puesto registrados en el tabulador deben corresponder con lo solicitado en los criterios 4 y 5, asimismo el tabulador se deberá publicar en un formato con datos abiertos. | B115: Criterio 75 Hipervínculo al/los tabulador/es de sueldos y salarios del sujeto obligado de conformidad con la normatividad aplicable. El tabulador deberá estar en un formato de datos abiertos. | C115: 1 | D115: 0 | E115: Requerimiento | F115: El hipervinculo al tabulador marca error al ingresar | G115: 8b
B116: Criterio 82. Nota. Este criterio se cumple en caso de que sea necesario que el sujeto obligado incluya alguna aclaración relativa a la información publicada y/o explicación por la falta de información | C116: 1 | D116: 0.5 | E116: Requerimiento | F116: Debera publicar la información respecto de: Denominación de ingresos, bonos, estimulos y prestaciones económicas. Asimismo, se advierte que en la columna de nota se justifica la ausencia del criterio de primas, sin embargo, si se publica la información.
A117: Art. 81 - Fracción IX - Los gastos de representación y viáticos, así como el objeto e informe de comisión correspondiente
B118: Criterio | C118: Valor criterio | D118: Valoración | E118: Tipo | F118: Requerimiento
B119: Criterio 3 Tipo de integrante del sujeto obligado (catálogo): (funcionario[a]/servidor[a]público[a]/eventual/integrante/empleado[a]/representante popular/integrante del poder judicial/integrante de órgano autónomo/personal de confianza/prestador [a] de servicios profesionales/otro [especificar denominación]) | C119: 1 | D119: 0 | E119: Requerimiento | F119: Se debera publicar el tipo de integrante del sujeto obligado de conformidad con los LTG. | G119: 9
B120: Criterio 9 Sexo (catálogo): Mujer/Hombre | C120: 1 | D120: 0 | E120: Requerimiento | F120: Se debera publicar el sexo de conformidad con los LTG. | G120: 9
B121: Criterio 27 Hipervínculo a las facturas o comprobantes que soporten las erogaciones realizadas | C121: 1 | D121: 0 | E121: Requerimiento | F121: Se deberá publicar el hipervinculo a las facturas. | G121: 9
A122: Art. 81 - Fracción X - El número total de las plazas y del personal de base y confianza, especificando el total de las vacantes, por nivel de puesto, para cada unidad administrativa **************************************************************************************************************************
B123: Criterio | C123: Valor criterio | D123: Valoración | E123: Tipo | F123: Requerimiento
B124: Criterio 3 Denominación del área (de acuerdo con el catálogo que en su caso regule la actividad del sujeto obligado) | C124: 1 | D124: 0.5 | E124: Requerimiento | F124: La información proporcionada dentro del formato1: puestos y vacantes, no corresponde con el total de plazas vacantes y ocupadas dentro del formato2. Ambos formatos deberán coindicir con el total de plazas vacantes y ocupadas. | G124: 10a
B125: Criterio 4 Denominación del puesto (de acuerdo con el catálogo que en su caso regule la actividad del sujeto obligado). La información deberá estar ordenada de tal forma que sea posible visualizar los niveles de autoridad y sus relaciones de dependencia. La información debe publicarse con perspectiva de género31, en caso de que el catálogo que regule al sujeto obligado no contenga redacción con perspectiva de género, se incluirá la alternativa incluyente y no sexista entre paréntesis o corchetes | C125: 1 | D125: 0.5 | E125: Requerimiento | F125: La información proporcionada dentro del formato1: puestos y vacantes, no corresponde con el total de plazas vacantes y ocupadas dentro del formato2. Ambos formatos deberán coindicir con el total de plazas vacantes y ocupadas. | G125: 10a
B126: Criterio 5 Clave o nivel del puesto (de acuerdo con el catálogo que en su caso regule la actividad del sujeto obligado) | C126: 1 | D126: 0.5 | E126: Requerimiento | F126: La información proporcionada dentro del formato1: puestos y vacantes, no corresponde con el total de plazas vacantes y ocupadas dentro del formato2. Ambos formatos deberán coindicir con el total de plazas vacantes y ocupadas. | G126: 10a
B127: Criterio 6 Tipo de plaza (catálogo): base/confianza/milicia permanente/milicia auxiliar | C127: 1 | D127: 0.5 | E127: Requerimiento | F127: La información proporcionada dentro del formato1: puestos y vacantes, no corresponde con el total de plazas vacantes y ocupadas dentro del formato2. Ambos formatos deberán coindicir con el total de plazas vacantes y ocupadas. | G127: 10a
B128: Criterio 7 Área de adscripción inmediata superior | C128: 1 | D128: 0.5 | E128: Requerimiento | F128: La información proporcionada dentro del formato1: puestos y vacantes, no corresponde con el total de plazas vacantes y ocupadas dentro del formato2. Ambos formatos deberán coindicir con el total de plazas vacantes y ocupadas. | G128: 10a
B129: Criterio 8 Por cada puesto y/o cargo de la estructura especificar el estado (catálogo): ocupado/vacante. | C129: 1 | D129: 0.5 | E129: Requerimiento | F129: La información proporcionada dentro del formato1: puestos y vacantes, no corresponde con el total de plazas vacantes y ocupadas dentro del formato2. Ambos formatos deberán coindicir con el total de plazas vacantes y ocupadas. | G129: 10a
A130: especto de las plazas ocupadas, señalar el sexo de la persona que la ocupa | B130: Criterio 9 Sexo (catálogo): Mujer/Hombre | C130: 1 | D130: 0.5 | E130: Requerimiento | F130: La información proporcionada dentro del formato1: puestos y vacantes, no corresponde con el total de plazas vacantes y ocupadas dentro del formato2. Ambos formatos deberán coindicir con el total de plazas vacantes y ocupadas. | G130: 10a
B131: Criterio 10 Por cada puesto y/o cargo de la estructura vacante se incluirá un hipervínculo a las convocatorias a concursos para ocupar cargos públicos abiertos a la sociedad en general o sólo abiertos a los(as) servidores(as) públicos(as) del sujeto obligado, difundidas en la fracción XIV del artículo 70 de la Ley General. La convocatoria deberá estar redactada con perspectiva de género, es decir, haciendo uso del lenguaje incluyente y no sexista | C131: 1 | D131: 0.5 | E131: Requerimiento | F131: La información proporcionada dentro del formato1: puestos y vacantes, no corresponde con el total de plazas vacantes y ocupadas dentro del formato2. Ambos formatos deberán coindicir con el total de plazas vacantes y ocupadas. | G131: 10a
A132: Respecto al número total de las plazas del personal de base y confianza se especificará lo siguiente: | B132: Criterio 11 Ejercicio | C132: 1 | D132: 0.5 | E132: Requerimiento | F132: La información proporcionada dentro del formato1: puestos y vacantes, no corresponde con el total de plazas vacantes y ocupadas dentro del formato2. Ambos formatos deberán coindicir con el total de plazas vacantes y ocupadas. | G132: 10b
B133: Criterio 12 Periodo que se informa (fecha de inicio y fecha de término con el formato día/mes/año) | C133: 1 | D133: 0.5 | E133: Requerimiento | F133: La información proporcionada dentro del formato1: puestos y vacantes, no corresponde con el total de plazas vacantes y ocupadas dentro del formato2. Ambos formatos deberán coindicir con el total de plazas vacantes y ocupadas. | G133: 10b
B134: Criterio 13 Total de plazas de base | C134: 1 | D134: 0.5 | E134: Requerimiento | F134: La información proporcionada dentro del formato1: puestos y vacantes, no corresponde con el total de plazas vacantes y ocupadas dentro del formato2. Ambos formatos deberán coindicir con el total de plazas vacantes y ocupadas. | G134: 10b
B135: Criterio 14 Total de plazas de base ocupadas | C135: 1 | D135: 0.5 | E135: Requerimiento | F135: La información proporcionada dentro del formato1: puestos y vacantes, no corresponde con el total de plazas vacantes y ocupadas dentro del formato2. Ambos formatos deberán coindicir con el total de plazas vacantes y ocupadas. | G135: 10b
B136: Criterio 15 Total de plazas de base ocupadas por hombres | C136: 1 | D136: 0.5 | E136: Requerimiento | F136: La información proporcionada dentro del formato1: puestos y vacantes, no corresponde con el total de plazas vacantes y ocupadas dentro del formato2. Ambos formatos deberán coindicir con el total de plazas vacantes y ocupadas. | G136: 10b
B137: Criterio 16 Total de plazas de base ocupadas por mujeres | C137: 1 | D137: 0.5 | E137: Requerimiento | F137: La información proporcionada dentro del formato1: puestos y vacantes, no corresponde con el total de plazas vacantes y ocupadas dentro del formato2. Ambos formatos deberán coindicir con el total de plazas vacantes y ocupadas. | G137: 10b
B138: Criterio 17 Total de plazas de base vacantes | C138: 1 | D138: 0.5 | E138: Requerimiento | F138: La información proporcionada dentro del formato1: puestos y vacantes, no corresponde con el total de plazas vacantes y ocupadas dentro del formato2. Ambos formatos deberán coindicir con el total de plazas vacantes y ocupadas. | G138: 10b
B139: Criterio 18 Total de plazas de confianza | C139: 1 | D139: 0.5 | E139: Requerimiento | F139: La información proporcionada dentro del formato1: puestos y vacantes, no corresponde con el total de plazas vacantes y ocupadas dentro del formato2. Ambos formatos deberán coindicir con el total de plazas vacantes y ocupadas. | G139: 10b
B140: Criterio 19 Total de plazas de confianza ocupadas por hombres | C140: 1 | D140: 0.5 | E140: Requerimiento | F140: La información proporcionada dentro del formato1: puestos y vacantes, no corresponde con el total de plazas vacantes y ocupadas dentro del formato2. Ambos formatos deberán coindicir con el total de plazas vacantes y ocupadas. | G140: 10b
B141: Criterio 20 Total de plazas de confianza ocupadas por mujeres | C141: 1 | D141: 0.5 | E141: Requerimiento | F141: La información proporcionada dentro del formato1: puestos y vacantes, no corresponde con el total de plazas vacantes y ocupadas dentro del formato2. Ambos formatos deberán coindicir con el total de plazas vacantes y ocupadas. | G141: 10b
B142: Criterio 21 Total de plazas de confianza ocupadas | C142: 1 | D142: 0.5 | E142: Requerimiento | F142: La información proporcionada dentro del formato1: puestos y vacantes, no corresponde con el total de plazas vacantes y ocupadas dentro del formato2. Ambos formatos deberán coindicir con el total de plazas vacantes y ocupadas. | G142: 10b
B143: Criterio 22 Total de plazas de confianza vacantes | C143: 1 | D143: 0.5 | E143: Requerimiento | F143: La información proporcionada dentro del formato1: puestos y vacantes, no corresponde con el total de plazas vacantes y ocupadas dentro del formato2. Ambos formatos deberán coindicir con el total de plazas vacantes y ocupadas. | G143: 10b
A144: Art. 81 - Fracción XI - Las contrataciones de servicios profesionales por honorarios, señalando los nombres de los prestadores de servicios, los servicios contratados, el monto de los honorarios y el periodo de contratación
A145: Art. 81 - Fracción XII - La información en versión pública de la declaración patrimonial, declaración fiscal y declaración de intereses de todos aquellos servidores públicos que, conforme a la Ley y las disposiciones aplicables en materia, se encuentren obligado a ello.
B146: Criterio | C146: Valor criterio | D146: Valoración | E146: Tipo | F146: Requerimiento
B147: Criterio 11 Hipervínculo a la versión pública de la Declaración de Situación Patrimonial o a los sistemas habilitados que registren y resguarden las bases de datos correspondientes | C147: 1 | D147: 0 | E147: Requerimiento | F147: Se debera fundamentar y motivar de forma breve y clara, la ausencia de información respecto de los hipervínculos | G147: 12
B148: Criterio 13 Hipervínculo a la versión pública de la Declaración Fiscal o a los sistemas habilitados que registren y resguarden las bases de datos correspondientes | C148: 1 | D148: 0 | E148: Requerimiento | F148: Se debera fundamentar y motivar de forma breve y clara, la ausencia de información respecto de los hipervínculos | G148: 12
B149: Criterio 15 Hipervínculo a la versión pública de la Declaración de Intereses o a los sistemas habilitados que registren y resguarden las bases de datos correspondientes | C149: 1 | D149: 0 | E149: Requerimiento | F149: Se debera fundamentar y motivar de forma breve y clara, la ausencia de información respecto de los hipervínculos | G149: 12
A150: Art. 81 - Fracción XIII - El domicilio de la Unidad de Transparencia, además de la dirección electrónica donde podrán recibirse las solicitudes para obtener la información
B151: Criterio | C151: Valor criterio | D151: Valoración | E151: Tipo | F151: Requerimiento
B152: Criterio 1 Ejercicio | C152: 1 | D152: 0 | E152: Requerimiento | F152: Se deberá publicar la información mas reciente, de conformidad con las tablas de actualización y conservación | G152: 13
B153: Criterio 2 Periodo que se informa (fecha de inicio y fecha de término con el formato día/mes/año) | C153: 1 | D153: 0 | E153: Requerimiento | F153: Se deberá publicar la información mas reciente, de conformidad con las tablas de actualización y conservación | G153: 13
B154: Criterio 3 Domicilio oficial de la Unidad de Transparencia (tipo de vialidad [catálogo], nombre de vialidad [calle], número exterior, número interior [en su caso], Tipo de asentamiento humano [catálogo], nombre de asentamiento humano [colonia], Clave de la localidad, nombre de la localidad, clave del municipio, nombre del municipio o delegación, clave de la entidad federativa, nombre de la entidad federativa [catálogo], código postal) | C154: 1 | D154: 0 | E154: Requerimiento | F154: Se deberá publicar la información mas reciente, de conformidad con las tablas de actualización y conservación | G154: 13
B155: Criterio 4 Teléfono(s) oficial(es) y, en su caso, extensión(es) | C155: 1 | D155: 0 | E155: Requerimiento | F155: Se deberá publicar la información mas reciente, de conformidad con las tablas de actualización y conservación | G155: 13
B156: Criterio 5 Horario de atención de la Unidad de Transparencia | C156: 1 | D156: 0 | E156: Requerimiento | F156: Se deberá publicar la información mas reciente, de conformidad con las tablas de actualización y conservación | G156: 13
B157: Criterio 6 Correo electrónico oficial activo de la Unidad de Transparencia mediante el cual se recibirán las solicitudes de información | C157: 1 | D157: 0 | E157: Requerimiento | F157: Se deberá publicar la información mas reciente, de conformidad con las tablas de actualización y conservación | G157: 13
B158: Criterio 7 Nota que indique que se reciben solicitudes de información pública. Ejemplo: “Se reciben solicitudes de información pública respecto a <<sujeto obligado>>, a través del correo electrónico oficial de la Unidad de Transparencia, en el domicilio oficial de ésta, vía telefónica, por correo postal, mensajería, telégrafo, verbalmente ante el personal habilitado que las capturará en el sistema electrónico de solicitudes; o cualquier medio aprobado por el Sistema Nacional” | C158: 1 | D158: 0 | E158: Requerimiento | F158: Se deberá publicar la información mas reciente, de conformidad con las tablas de actualización y conservación | G158: 13
B159: Criterio 8 Hipervínculo a la dirección electrónica del Sistema de solicitudes de acceso a la información | C159: 1 | D159: 0 | E159: Requerimiento | F159: Se deberá publicar la información mas reciente, de conformidad con las tablas de actualización y conservación | G159: 13
B160: Criterio 9 Nombres completos del(la) responsable de la Unidad de Transparencia y del personal habilitado para cumplir con las funciones establecidas en el artículo 45 de la Ley General, independientemente de que su nivel sea menor al de jefatura de departamento u homólogo (nombre[s], primer apellido, segundo apellido) | C160: 1 | D160: 0 | E160: Requerimiento | F160: Se deberá publicar la información mas reciente, de conformidad con las tablas de actualización y conservación | G160: 13
B161: Criterio 10 Sexo (catálogo): Mujer/Hombre | C161: 1 | D161: 0 | E161: Requerimiento | F161: Se deberá publicar la información mas reciente, de conformidad con las tablas de actualización y conservación | G161: 13
B162: Criterio 11 Cargo o puesto que ocupan el(la) responsable de la Unidad de Transparencia y el personal habilitado para cumplir con las funciones establecidas en el artículo 45 de la Ley General en el sujeto obligado | C162: 1 | D162: 0 | E162: Requerimiento | F162: Se deberá publicar la información mas reciente, de conformidad con las tablas de actualización y conservación | G162: 13
B163: Criterio 12 Función que desempeña el personal asignado en la Unidad de Transparencia | C163: 1 | D163: 0 | E163: Requerimiento | F163: Se deberá publicar la información mas reciente, de conformidad con las tablas de actualización y conservación | G163: 13
B164: Criterio 13. Periodo de actualización de la información: trimestral. En su caso, 15 días hábiles después de una modificación | C164: 1 | D164: 0 | E164: Requerimiento | F164: Se deberá publicar la información mas reciente, de conformidad con las tablas de actualización y conservación
B165: Criterio 14. La información publicada deberá estar actualizada al periodo que corresponde de acuerdo con la Tabla de actualización y conservación de la información | C165: 1 | D165: 0 | E165: Requerimiento | F165: Se deberá publicar la información mas reciente, de conformidad con las tablas de actualización y conservación
B166: Criterio 15. Conservar en el sitio de Internet y a través de la Plataforma Nacional la información vigente de acuerdo con la Tabla de actualización y conservación de la información | C166: 1 | D166: 0 | E166: Requerimiento | F166: Se deberá publicar la información mas reciente, de conformidad con las tablas de actualización y conservación
B167: Criterio 16. Área(s) responsable(s) que genera(n), posee(n), publica(n) y/o actualiza(n)la información | C167: 1 | D167: 0 | E167: Requerimiento | F167: Se deberá publicar la información mas reciente, de conformidad con las tablas de actualización y conservación
B168: Criterio 17. Fecha de actualización de la información publicada con el formato día/mes/año | C168: 1 | D168: 0 | E168: Requerimiento | F168: Se deberá publicar la información mas reciente, de conformidad con las tablas de actualización y conservación
B169: Criterio 18. Fecha de validación de la información publicada con el formato día/mes/año | C169: 1 | D169: 0 | E169: Requerimiento | F169: Se deberá publicar la información mas reciente, de conformidad con las tablas de actualización y conservación
B170: Criterio 19. Nota. Este criterio se cumple en caso de que sea necesario que el sujeto obligado incluya alguna aclaración relativa a la información publicada y/o explicación por la falta de información | C170: 1 | D170: 0 | E170: Requerimiento | F170: Se deberá publicar la información mas reciente, de conformidad con las tablas de actualización y conservación
B171: Criterio 20. La información publicada se organiza mediante el formato 13, en el que se incluyen todos los campos especificados en los criterios sustantivos de contenido | C171: 1 | D171: 0 | E171: Requerimiento | F171: Se deberá publicar la información mas reciente, de conformidad con las tablas de actualización y conservación
B172: Criterio 21. El soporte de la información permite su reutilización | C172: 1 | D172: 0 | E172: Requerimiento | F172: Se deberá publicar la información mas reciente, de conformidad con las tablas de actualización y conservación
A173: Art. 81 - Fracción XIV - Las convocatorias a concursos para ocupar cargos públicos y los resultados de los mismos
B174: Criterio | C174: Valor criterio | D174: Valoración | E174: Tipo | F174: Requerimiento
B175: Criterio 1 Ejercicio | C175: 1 | D175: 0 | E175: Requerimiento | F175: El presente formato cuenta con 0 registros, se deberá publicar la información respecto de la Convocatoria para ocupar cargos publicos. | G175: 14
B176: Criterio 2 Periodo que se informa (fecha de inicio y fecha de término con el formato día/mes/año) | C176: 1 | D176: 0 | E176: Requerimiento | F176: El presente formato cuenta con 0 registros, se deberá publicar la información respecto de la Convocatoria para ocupar cargos publicos. | G176: 14
B177: Criterio 3 Tipo de evento (catálogo): concurso/convocatoria/invitación/aviso | C177: 1 | D177: 0 | E177: Requerimiento | F177: El presente formato cuenta con 0 registros, se deberá publicar la información respecto de la Convocatoria para ocupar cargos publicos. | G177: 14
B178: Criterio 4 Alcance del concurso (catálogo): Abierto al público en general/Abierto sólo a servidores(as) públicos(as) del sujeto obligado | C178: 1 | D178: 0 | E178: Requerimiento | F178: El presente formato cuenta con 0 registros, se deberá publicar la información respecto de la Convocatoria para ocupar cargos publicos. | G178: 14
B179: Criterio 5 Tipo de cargo o puesto (catálogo): Confianza/Base/Otro | C179: 1 | D179: 0 | E179: Requerimiento | F179: El presente formato cuenta con 0 registros, se deberá publicar la información respecto de la Convocatoria para ocupar cargos publicos. | G179: 14
B180: Criterio 6 Clave o nivel del puesto (de acuerdo con el catálogo de claves y niveles de puesto de cada sujeto obligado) | C180: 1 | D180: 0 | E180: Requerimiento | F180: El presente formato cuenta con 0 registros, se deberá publicar la información respecto de la Convocatoria para ocupar cargos publicos. | G180: 14
B181: Criterio 7 Denominación del puesto (de acuerdo con el catálogo que en su caso regule la actividad del sujeto obligado). La información debe publicarse con perspectiva de género, en caso de que el catálogo que regule al sujeto obligado no contenga redacción con perspectiva de género, se incluirá la alternativa incluyente y no sexista entre paréntesis o corchetes | C181: 1 | D181: 0 | E181: Requerimiento | F181: El presente formato cuenta con 0 registros, se deberá publicar la información respecto de la Convocatoria para ocupar cargos publicos. | G181: 14
B182: Criterio 8 Denominación del cargo de conformidad con nombramiento otorgado | C182: 1 | D182: 0 | E182: Requerimiento | F182: El presente formato cuenta con 0 registros, se deberá publicar la información respecto de la Convocatoria para ocupar cargos publicos. | G182: 14
B183: Criterio 9 Denominación del Área (de acuerdo con el catálogo que en su caso regule la actividad del sujeto obligado) | C183: 1 | D183: 0 | E183: Requerimiento | F183: El presente formato cuenta con 0 registros, se deberá publicar la información respecto de la Convocatoria para ocupar cargos publicos. | G183: 14
B184: Criterio 10 Salario bruto mensual | C184: 1 | D184: 0 | E184: Requerimiento | F184: El presente formato cuenta con 0 registros, se deberá publicar la información respecto de la Convocatoria para ocupar cargos publicos. | G184: 14
B185: Criterio 11 Salario neto mensual | C185: 1 | D185: 0 | E185: Requerimiento | F185: El presente formato cuenta con 0 registros, se deberá publicar la información respecto de la Convocatoria para ocupar cargos publicos. | G185: 14
B186: Criterio 12 Fecha de publicación del concurso, convocatoria, invitación y/o aviso con el formato día/mes/año | C186: 1 | D186: 0 | E186: Requerimiento | F186: El presente formato cuenta con 0 registros, se deberá publicar la información respecto de la Convocatoria para ocupar cargos publicos. | G186: 14
B187: Criterio 13 Número de la convocatoria | C187: 1 | D187: 0 | E187: Requerimiento | F187: El presente formato cuenta con 0 registros, se deberá publicar la información respecto de la Convocatoria para ocupar cargos publicos. | G187: 14
B188: Criterio 14 Hipervínculo al documento de la convocatoria, invitación y/o aviso en el que se indique la información necesaria para participar, entre otras: funciones a realizar, perfil del puesto, requisitos para participar, documentación solicitada, cómo y dónde registrarse, fases y fechas del proceso de selección, guías para evaluaciones. La convocatoria deberá estar redactada con perspectiva de género, es decir, haciendo uso del lenguaje incluyente y no sexista | C188: 1 | D188: 0 | E188: Requerimiento | F188: El presente formato cuenta con 0 registros, se deberá publicar la información respecto de la Convocatoria para ocupar cargos publicos. | G188: 14
A189: Respecto al estado en el que se encuentra el proceso: | B189: Criterio 15 Estado del proceso del concurso, convocatoria, invitación y/o aviso (catálogo): En proceso/En evaluación/Finalizado/ Cancelado/ Desierto. | C189: 1 | D189: 0 | E189: Requerimiento | F189: El presente formato cuenta con 0 registros, se deberá publicar la información respecto de la Convocatoria para ocupar cargos publicos. | G189: 14
A190: Si está finalizado se publicarán los resultados mediante los siguientes datos: | B190: Criterio 16 Número total de candidato[a]s registrado[a]s | C190: 1 | D190: 0 | E190: Requerimiento | F190: El presente formato cuenta con 0 registros, se deberá publicar la información respecto de la Convocatoria para ocupar cargos publicos. | G190: 14
B191: Criterio 17 Total de candidatos hombres | C191: 1 | D191: 0 | E191: Requerimiento | F191: El presente formato cuenta con 0 registros, se deberá publicar la información respecto de la Convocatoria para ocupar cargos publicos. | G191: 14
B192: Criterio 18 Total de candidatas mujeres | C192: 1 | D192: 0 | E192: Requerimiento | F192: El presente formato cuenta con 0 registros, se deberá publicar la información respecto de la Convocatoria para ocupar cargos publicos. | G192: 14
B193: Criterio 19 Nombre(s), primer apellido, segundo apellido de la persona aceptada/contratada para ocupar la plaza, cargo, puesto o función | C193: 1 | D193: 0 | E193: Requerimiento | F193: El presente formato cuenta con 0 registros, se deberá publicar la información respecto de la Convocatoria para ocupar cargos publicos. | G193: 14
B194: Criterio 20 Sexo (catálogo): Mujer/Hombre | C194: 1 | D194: 0 | E194: Requerimiento | F194: El presente formato cuenta con 0 registros, se deberá publicar la información respecto de la Convocatoria para ocupar cargos publicos. | G194: 14
B195: Criterio 21 Hipervínculo a la versión pública del acta o documento que asigne al(la) ganador(a). La versión pública deberá estar redactada con perspectiva de género, es decir, haciendo uso del lenguaje incluyente y no sexista | C195: 1 | D195: 0 | E195: Requerimiento | F195: El presente formato cuenta con 0 registros, se deberá publicar la información respecto de la Convocatoria para ocupar cargos publicos. | G195: 14
B196: Criterio 22 En su caso, hipervínculo al sistema electrónico de convocatorias y/o concurso correspondiente al sujeto obligado y el hipervínculo al mismo | C196: 1 | D196: 0 | E196: Requerimiento | F196: El presente formato cuenta con 0 registros, se deberá publicar la información respecto de la Convocatoria para ocupar cargos publicos. | G196: 14
B197: Criterio 23. Periodo de actualización de la información: trimestral. En su caso, se actualizará la información, previo a la fecha de vencimiento de las convocatorias para ocupar cargos públicos; de conformidad con la normativa aplicable al sujeto obligado | C197: 1 | D197: 0 | E197: Requerimiento | F197: El presente formato cuenta con 0 registros, se deberá publicar la información respecto de la Convocatoria para ocupar cargos publicos.
B198: Criterio 24. La información publicada deberá estar actualizada al periodo que corresponde de acuerdo con la Tabla de actualización y conservación de la información | C198: 1 | D198: 0 | E198: Requerimiento | F198: El presente formato cuenta con 0 registros, se deberá publicar la información respecto de la Convocatoria para ocupar cargos publicos.
B199: Criterio 25. Conservar en el sitio de Internet y a través de la Plataforma Nacional la información vigente de acuerdo con la Tabla de actualización y conservación de la información | C199: 1 | D199: 0 | E199: Requerimiento | F199: El presente formato cuenta con 0 registros, se deberá publicar la información respecto de la Convocatoria para ocupar cargos publicos.
B200: Criterio 26. Área(s) responsable(s) que genera(n), posee(n), publica(n) y/o actualiza(n)la información | C200: 1 | D200: 0 | E200: Requerimiento | F200: El presente formato cuenta con 0 registros, se deberá publicar la información respecto de la Convocatoria para ocupar cargos publicos.
... 245 more rows

Sheet Total Recomendaciones
A1: Volver al índice | E1: VERIFICACIÒN 1
B2: INFORMACIÒN BASADA EN LAS TABLAS DE APLICABILIDAD, APROBADAS POR EL PLENO 06/07/2023
C4: Requerimientos | F4: FRACCIONES N/A | G4: CS Y CA | I4: AYUNTAMIENTOS | J4: Total Criterios Aplicables 2024 Art. 81, 82, 83 IV | K4: =D18 -> 1843
C5: =SUM(Reporte!C5:C1824) -> 349 | D5: Requerimientos | F5: XLII | G5: 20 | I5: =Resultados!D2 -> Ayuntamiento de Mexicali, Baja California | J5: Total Criterios Verificados Art. 81, 82, 83 IV. Menos las N/A | K5: =K4-K6 -> 1795
F6: XLVII | G6: 28 | J6: Total Criterios No aplicables, según Tabla Aplicabilidad | K6: =G7 -> 48
F7: TOTAL | G7: =SUM(G5:G6) -> 48 | J7: Total de Requerimientos | K7: =C5 -> 349
D14: Criterios X Fracciòn | I14: ='Art. 81'!F2797 -> 1461 | J14: Total de Criterios Justificados 81 | K14: =L14-I14 -> 246 | L14: 1707
C15: 81 | D15: ='Art. 81'!F2797 -> 1461 | I15: ='Art. 82'!F79 -> 45 | J15: Total de Criterios Justificados 82 | K15: =L15-I15 -> 0 | L15: 45
C16: 82 | D16: ='Art. 82'!F79 -> 45 | I16: ='Art. 83 IV'!F754 -> 337 | J16: Total de Criterios Justificados Esp | K16: =L16-I16 -> 62 | L16: 399
C17: 83 IV | D17: ='Art. 83 IV'!F754 -> 337 | I17: ='Art. 81'!F2797+'Art. 82'!F79+'Art. 83 IV'!F754 -> 1843 | J17: Total de Criterios Justificados | K17: =L17-I17 -> 308 | L17: 2151
D18: =SUM(D15:D17) -> 1843
B19: =Resultados!B27:E27 -> Verificador:

Sheet Índices X Fracción
A1: Volver al índice | E1: VERIFICACIÒN 1
B2: ='Aplicabilidad Art. 81'!G3 -> Ayuntamiento de Mexicali, Baja California
B3: ART. 81 | D3: % PENDIENTE | E3: ART. 82 | G3: % PENDIENTE | H3: ESPECIFÍCAS | J3: % PENDIENTE | K3: 81 (XLVIII) | M3: % PENDIENTE
B4: I | C4: ='Art. 81'!E21 -> 1 | D4: =100%-C4 -> 0 | E4: I, II, III, IV, V, VI, VI, VII | F4: ='Art. 82'!E21 -> 0.9166666667 | G4: =100%-F4 -> 0.08333333333 | H4: a) | I4: ='Art. 83 IV'!E21 -> 0.88 | J4: =100%-I4 -> 0.12 | K4: XLVIII | L4: ='Art. 81'!E2725 -> 0.8285714286 | M4: =100%-L4 -> 0.1714285714
B5: II | C5: ='Art. 81'!E59 -> 1 | D5: =100%-C5 -> 0 | H5: b) | I5: ='Art. 83 IV'!E68 -> 1 | J5: =100%-I5 -> 0
B6: III | C6: ='Art. 81'!E106 -> 0.94 | D6: 0.06 | H6: c) | I6: ='Art. 83 IV'!E112 -> 1 | J6: 0
B7: IV | C7: ='Art. 81'!E142 -> 0.925 | D7: 0.075 | H7: d) | I7: ='Art. 83 IV'!E158 -> 0.9769230769 | J7: 0.02307692308
B8: V | C8: ='Art. 81'!E181 -> 0.48 | D8: 0.52 | H8: e) | I8: ='Art. 83 IV'!E206 -> 1 | J8: 0
B9: VI | C9: ='Art. 81'!E227 -> 0.475 | D9: 0.525 | H9: f) | I9: ='Art. 83 IV'!E269 -> 0.95 | J9: 0.05
B10: VII | C10: ='Art. 81'!E274 -> 1 | D10: 0 | H10: g) | I10: ='Art. 83 IV'!E313 -> 0.9142857143 | J10: 0.08571428571
B11: VIII | C11: ='Art. 81'!E316 -> 0.6897777778 | D11: 0.3102222222 | H11: h) | I11: ='Art. 83 IV'!E359 -> 0.75 | J11: 0.25
B12: IX | C12: ='Art. 81'!E422 -> 0.9142857143 | D12: 0.08571428571 | H12: i) | I12: ='Art. 83 IV'!E403 -> 0.97 | J12: 0.03
B13: X | C13: ='Art. 81'!E481 -> 0.7272727273 | D13: 0.2727272727 | H13: j) | I13: ='Art. 83 IV'!E445 -> 1 | J13: 0
B14: XI | C14: ='Art. 81'!E534 -> 1 | D14: 0 | H14: k) | I14: ='Art. 83 IV'!E525 -> 1 | J14: 0
B15: XII | C15: ='Art. 81'!E580 -> 0.88 | D15: 0.12 | H15: l) | I15: ='Art. 83 IV'!E565 -> 1 | J15: 0
B16: XIII | C16: ='Art. 81'!E626 -> 0 | D16: 1 | H16: m) | I16: ='Art. 83 IV'!E609 -> 1 | J16: 0
B17: XIV | C17: ='Art. 81'!E669 -> 0 | D17: 1 | H17: n) | I17: ='Art. 83 IV'!E653 -> 0.8444444444 | J17: 0.1555555556
B18: XV | C18: ='Art. 81'!E722 -> 1 | D18: 0 | H18: Art.71-Frac.I-C | I18: ='Art. 83 IV'!E711 -> 1 | J18: =100%-I18 -> 0
B19: XVI | C19: ='Art. 81'!E830 -> 1 | D19: 0
B20: XVII | C20: ='Art. 81'!E880 -> 0.98 | D20: 0.02
B21: XVIII | C21: ='Art. 81'!E927 -> 0.856 | D21: 0.144
B22: XIX | C22: ='Art. 81'!E983 -> 1 | D22: 0
B23: XX | C23: ='Art. 81'!E1050 -> 0.9896551724 | D23: 0.01034482759
B24: XXI | C24: ='Art. 81'!E1115 -> 1 | D24: 0
B25: XXII | C25: ='Art. 81'!E1169 -> 1 | D25: 0
B26: XXIII | C26: ='Art. 81'!E1226 -> 0.9328947368 | D26: 0.06710526316
B27: XXIV | C27: ='Art. 81'!E1345 -> 0.8846153846 | D27: 0.1153846154
B28: XXV | C28: ='Art. 81'!E1402 -> 1 | D28: 0
B29: XXVI | C29: ='Art. 81'!E1443 -> 1 | D29: 0
B30: XXVII | C30: ='Art. 81'!E1496 -> 0.9625 | D30: 0.0375
B31: XXVIII | C31: ='Art. 81'!E1548 -> 0.9305785124 | D31: 0.0694214876
B32: XXIX | C32: ='Art. 81'!E1702 -> 0.9333333333 | D32: 0.06666666667
B33: XXX | C33: ='Art. 81'!E1742 -> 0.76 | D33: 0.24
B34: XXXI | C34: ='Art. 81'!E1783 -> 1 | D34: 0
B35: XXXII | C35: ='Art. 81'!E1834 -> 0.947826087 | D35: 0.05217391304
B36: XXXIII | C36: ='Art. 81'!E1888 -> 0.7857142857 | D36: 0.2142857143
B37: XXXIV | C37: ='Art. 81'!E1933 -> 0.9884615385 | D37: 0.01153846154
B38: XXXV | C38: ='Art. 81'!E2024 -> 1 | D38: 0
B39: XXXVI | C39: ='Art. 81'!E2107 -> 1 | D39: 0
B40: XXXVII | C40: ='Art. 81'!E2148 -> 1 | D40: 0
B41: XXXVIII | C41: ='Art. 81'!E2208 -> 0.9882352941 | D41: 0.01176470588
B42: XXXIX | C42: ='Art. 81'!E2290 -> 0.5392857143 | D42: 0.4607142857
B43: XL | C43: ='Art. 81'!E2349 -> 1 | D43: 0
B44: XLI | C44: ='Art. 81'!E2391 -> 1 | D44: 0
B45: XLII | C45: ='Art. 81'!E2439 -> NA | D45: NA
B46: XLIII | C46: ='Art. 81'!E2482 -> 0.9052631579 | D46: 0.09473684211
B47: XLIV | C47: ='Art. 81'!E2533 -> 0 | D47: 1
B48: XLV | C48: ='Art. 81'!E2592 -> 0.7857142857 | D48: 0.2142857143
B49: XLVI | C49: ='Art. 81'!E2630 -> 1 | D49: 0
B50: XLVII | C50: ='Art. 81'!E2675 -> NA | D50: NA
B51: Último párrafo del artículo | C51: ='Art. 81'!E2771 -> 0.85 | D51: 0.15
B52: ART. 81 | C52: =AVERAGE(C4:C51) -> 0.8489437766 | D52: =AVERAGE(D4:D51) -> 0.1510562234 | E52: ART. 82 | F52: =AVERAGE(F4:F51) -> 0.9166666667 | G52: =AVERAGE(G4:G51) -> 0.08333333333 | H52: ESPECIFÍCAS | I52: =AVERAGE(I4:I51) -> 0.9523768824 | J52: =AVERAGE(J4:J51) -> 0.04762311762 | K52: 81 (XLVIII) | L52: =AVERAGE(L4:L51) -> 0.8285714286 | M52: =AVERAGE(M4:M51) -> 0.1714285714

Sheet Justificadas
A1: Volver al índice | E1: VERIFICACIÒN 1
B2: ='Índices X Fracción'!B2:M2 -> Ayuntamiento de Mexicali, Baja California
B3: ART. 81 | C3: Criterios SyA | D3: Criterios SyA, menos Just. | E3: criterios Justificados X Fracc | F3: % Informaciòn Publicada X Fracc | G3: ART. 82 | H3: Criterios SyA | I3: Criterios SyA, menos Just. | J3: criterios Justificados | K3: % Informaciòn Publicada X Fracc | L3: ESPECIFÍCAS | M3: Criterios SyA | N3: Criterios SyA, menos Just. | O3: criterios Justificados | P3: % Informaciòn Publicada X Fracc | Q3: 81 (XLVIII) | R3: Criterios SyA | S3: Criterios SyA, menos Just. | T3: criterios Justificados | U3: % Informaciòn Publicada X Fracc
A4: ='Índices X Fracción'!C4 -> 1 | B4: I | C4: 16 | D4: ='Art. 81'!E50 -> 16 | E4: =C4-D4 -> 0 | F4: =D4*1/C4 -> 1 | G4: I, II, III, IV, V,VI,VII | H4: 45 | I4: ='Art. 82'!F79 -> 45 | J4: =H4-I4 -> 0 | K4: =I4*1/H4 -> 1 | L4: a) | M4: 24 | N4: ='Art. 83 IV'!E58 -> 24 | O4: =M4-N4 -> 0 | P4: =N4*1/M4 -> 1 | Q4: XLVIII | R4: 24 | S4: ='Art. 81'!E2762 -> 23 | T4: =R4-S4 -> 1 | U4: =S4*1/R4 -> 0.9583333333
A5: ='Índices X Fracción'!C5 -> 1 | B5: II | C5: 25 | D5: ='Art. 81'!E97 -> 25 | E5: =C5-D5 -> 0 | F5: =D5*1/C5 -> 1 | L5: b) | M5: 21 | N5: ='Art. 83 IV'!E102 -> 19 | O5: 2 | P5: 0.9047619048
A6: ='Índices X Fracción'!C6 -> 0.94 | B6: III | C6: 14 | D6: ='Art. 81'!E133 -> 14 | E6: 0 | F6: 1 | L6: c) | M6: 23 | N6: ='Art. 83 IV'!E148 -> 23 | O6: 0 | P6: 1
A7: ='Índices X Fracción'!C7 -> 0.925 | B7: IV | C7: 17 | D7: ='Art. 81'!E172 -> 17 | E7: 0 | F7: 1 | L7: d) | M7: 25 | N7: ='Art. 83 IV'!E196 -> 22 | O7: 3 | P7: 0.88
A8: ='Índices X Fracción'!C8 -> 0.48 | B8: V | C8: 24 | D8: ='Art. 81'!E218 -> 24 | E8: 0 | F8: 1 | L8: e) | M8: 40 | N8: ='Art. 83 IV'!E259 -> 15 | O8: 25 | P8: 0.375
A9: ='Índices X Fracción'!C9 -> 0.475 | B9: VI | C9: 25 | D9: ='Art. 81'!E265 -> 25 | E9: 0 | F9: 1 | L9: f) | M9: 21 | N9: ='Art. 83 IV'!E303 -> 21 | O9: 0 | P9: 1
A10: ='Índices X Fracción'!C10 -> 1 | B10: VII | C10: 20 | D10: ='Art. 81'!E307 -> 19 | E10: 1 | F10: 0.95 | L10: g) | M10: 23 | N10: ='Art. 83 IV'!E349 -> 23 | O10: 0 | P10: 1
A11: ='Índices X Fracción'!C11 -> 0.6897777778 | B11: VIII | C11: 84 | D11: ='Art. 81'!E413 -> 84 | E11: 0 | F11: 1 | L11: h) | M11: 21 | N11: ='Art. 83 IV'!E393 -> 21 | O11: 0 | P11: 1
A12: ='Índices X Fracción'!C12 -> 0.9142857143 | B12: IX | C12: 37 | D12: ='Art. 81'!E472 -> 37 | E12: 0 | F12: 1 | L12: i) | M12: 19 | N12: ='Art. 83 IV'!E435 -> 19 | O12: 0 | P12: 1
A13: ='Índices X Fracción'!C13 -> 0.7272727273 | B13: X | C13: 31 | D13: ='Art. 81'!E525 -> 31 | E13: 0 | F13: 1 | L13: j) | M13: 57 | N13: ='Art. 83 IV'!E515 -> 55 | O13: 2 | P13: 0.9649122807
A14: ='Índices X Fracción'!C14 -> 1 | B14: XI | C14: 24 | D14: ='Art. 81'!E571 -> 11 | E14: 13 | F14: 0.4583333333 | L14: k) | M14: 17 | N14: ='Art. 83 IV'!E555 -> 17 | O14: 0 | P14: 1
A15: ='Índices X Fracción'!C15 -> 0.88 | B15: XII | C15: 24 | D15: ='Art. 81'!E617 -> 24 | E15: 0 | F15: 1 | L15: l) | M15: 21 | N15: ='Art. 83 IV'!E599 -> 18 | O15: 3 | P15: 0.8571428571
A16: ='Índices X Fracción'!C16 -> 0 | B16: XIII | C16: 21 | D16: ='Art. 81'!E660 -> 21 | E16: 0 | F16: 1 | L16: m) | M16: 21 | N16: ='Art. 83 IV'!E643 -> 11 | O16: 10 | P16: 0.5238095238
A17: ='Índices X Fracción'!C17 -> 0 | B17: XIV | C17: 31 | D17: ='Art. 81'!E713 -> 31 | E17: 0 | F17: 1 | L17: n) | M17: 36 | N17: ='Art. 83 IV'!E701 -> 36 | O17: 0 | P17: 1
A18: ='Índices X Fracción'!C18 -> 1 | B18: XV | C18: 86 | D18: ='Art. 81'!E821 -> 13 | E18: 73 | F18: 0.1511627907 | L18: Art.71-Frac.I-C | M18: 30 | N18: ='Art. 83 IV'!E754 -> 13 | O18: 17 | P18: 0.4333333333
A19: ='Índices X Fracción'!C19 -> 1 | B19: XVI | C19: 28 | D19: ='Art. 81'!E871 -> 26 | E19: 2 | F19: 0.9285714286
A20: ='Índices X Fracción'!C20 -> 0.98 | B20: XVII | C20: 25 | D20: ='Art. 81'!E918 -> 24 | E20: 1 | F20: 0.96
A21: ='Índices X Fracción'!C21 -> 0.856 | B21: XVIII | C21: 34 | D21: ='Art. 81'!E974 -> 34 | E21: 0 | F21: 1
A22: ='Índices X Fracción'!C22 -> 1 | B22: XIX | C22: 45 | D22: ='Art. 81'!E1041 -> 41 | E22: 4 | F22: 0.9111111111
A23: ='Índices X Fracción'!C23 -> 0.9896551724 | B23: XX | C23: 43 | D23: ='Art. 81'!E1106 -> 38 | E23: 5 | F23: 0.8837209302
A24: ='Índices X Fracción'!C24 -> 1 | B24: XXI | C24: 32 | D24: ='Art. 81'!E1160 -> 32 | E24: 0 | F24: 1
A25: ='Índices X Fracción'!C25 -> 1 | B25: XXII | C25: 35 | D25: ='Art. 81'!E1217 -> 32 | E25: 3 | F25: 0.9142857143
A26: ='Índices X Fracción'!C26 -> 0.9328947368 | B26: XXIII | C26: 97 | D26: ='Art. 81'!E1336 -> 85 | E26: 12 | F26: 0.8762886598
A27: ='Índices X Fracción'!C27 -> 0.8846153846 | B27: XXIV | C27: 35 | D27: ='Art. 81'!E1393 -> 35 | E27: 0 | F27: 1
A28: ='Índices X Fracción'!C28 -> 1 | B28: XXV | C28: 19 | D28: ='Art. 81'!E1434 -> 11 | E28: 8 | F28: 0.5789473684
A29: ='Índices X Fracción'!C29 -> 1 | B29: XXVI | C29: 31 | D29: ='Art. 81'!E1487 -> 11 | E29: 20 | F29: 0.3548387097
A30: ='Índices X Fracción'!C30 -> 0.9625 | B30: XXVII | C30: 30 | D30: ='Art. 81'!E1539 -> 25 | E30: 5 | F30: 0.8333333333
A31: ='Índices X Fracción'!C31 -> 0.9305785124 | B31: XXVIII | C31: 132 | D31: ='Art. 81'!E1693 -> 130 | E31: 2 | F31: 0.9848484848
A32: ='Índices X Fracción'!C32 -> 0.9333333333 | B32: XXIX | C32: 18 | D32: ='Art. 81'!E1733 -> 18 | E32: 0 | F32: 1
A33: ='Índices X Fracción'!C33 -> 0.76 | B33: XXX | C33: 19 | D33: ='Art. 81'!E1774 -> 19 | E33: 0 | F33: 1
A34: ='Índices X Fracción'!C34 -> 1 | B34: XXXI | C34: 29 | D34: ='Art. 81'!E1825 -> 13 | E34: 16 | F34: 0.4482758621
A35: ='Índices X Fracción'!C35 -> 0.947826087 | B35: XXXII | C35: 32 | D35: ='Art. 81'!E1879 -> 32 | E35: 0 | F35: 1
A36: ='Índices X Fracción'!C36 -> 0.7857142857 | B36: XXXIII | C36: 23 | D36: ='Art. 81'!E1924 -> 23 | E36: 0 | F36: 1
A37: ='Índices X Fracción'!C37 -> 0.9884615385 | B37: XXXIV | C37: 69 | D37: ='Art. 81'!E2015 -> 61 | E37: 8 | F37: 0.884057971
A38: ='Índices X Fracción'!C38 -> 1 | B38: XXXV | C38: 61 | D38: ='Art. 81'!E2098 -> 15 | E38: 46 | F38: 0.2459016393
A39: ='Índices X Fracción'!C39 -> 1 | B39: XXXVI | C39: 19 | D39: ='Art. 81'!E2139 -> 19 | E39: 0 | F39: 1
A40: ='Índices X Fracción'!C40 -> 1 | B40: XXXVII | C40: 38 | D40: ='Art. 81'!E2199 -> 38 | E40: 0 | F40: 1
A41: ='Índices X Fracción'!C41 -> 0.9882352941 | B41: XXXVIII | C41: 60 | D41: ='Art. 81'!E2281 -> 60 | E41: 0 | F41: 1
A42: ='Índices X Fracción'!C42 -> 0.5392857143 | B42: XXXIX | C42: 37 | D42: ='Art. 81'!E2340 -> 37 | E42: 0 | F42: 1
A43: ='Índices X Fracción'!C43 -> 1 | B43: XL | C43: 20 | D43: ='Art. 81'!E2382 -> 20 | E43: 0 | F43: 1
A44: ='Índices X Fracción'!C44 -> 1 | B44: XLI | C44: 26 | D44: ='Art. 81'!E2430 -> 11 | E44: 15 | F44: 0.4230769231
A45: ='Índices X Fracción'!C45 -> NA | B45: XLII | C45: NA | D45: NA | E45: NA | F45: NA
A46: ='Índices X Fracción'!C46 -> 0.9052631579 | B46: XLIII | C46: 29 | D46: ='Art. 81'!E2524 -> 28 | E46: 1 | F46: 0.9655172414
A47: ='Índices X Fracción'!C47 -> 0 | B47: XLIV | C47: 37 | D47: ='Art. 81'!E2583 -> 37 | E47: 0 | F47: 1
A48: ='Índices X Fracción'!C48 -> 0.7857142857 | B48: XLV | C48: 16 | D48: ='Art. 81'!E2621 -> 16 | E48: 0 | F48: 1
A49: ='Índices X Fracción'!C49 -> 1 | B49: XLVI | C49: 23 | D49: ='Art. 81'!E2666 -> 13 | E49: 10 | F49: 0.5652173913
A50: ='Índices X Fracción'!C50 -> NA | B50: XLVII | C50: NA | D50: NA | E50: NA | F50: NA
A51: ='Índices X Fracción'!C52 -> 0.8489437766 | B51: Último párrafo del artículo | C51: 13 | D51: ='Art. 81'!E2797 -> 13 | E51: 0 | F51: 1
B52: ART. 81 | C52: =SUM(C4:C51) -> 1634 | D52: =SUM(D4:D51) -> 1389 | E52: =SUM(E5:E51) -> 245 | F52: =AVERAGE(F5:F51) -> 0.8737219754 | G52: ART. 82 | H52: =SUM(H4:H47) -> 45 | I52: =SUM(I4:I47) -> 45 | J52: =SUM(J4:J47) -> 0 | K52: =AVERAGE(K4:K47) -> 1 | L52: ESPECIFÍCAS | M52: =SUM(M4:M47) -> 399 | N52: =SUM(N4:N47) -> 337 | O52: =SUM(O4:O47) -> 62 | P52: =AVERAGE(P4:P47) -> 0.8625973266 | Q52: 81 (XLVIII) | R52: =SUM(R4:R47) -> 24 | S52: =SUM(S4:S47) -> 23 | T52: =SUM(T4:T47) -> 1 | U52: =AVERAGE(U4:U47) -> 0.9583333333
B53: =Resultados!B27:E27 -> Verificador: | O53: =SUM(E52,J52,O52) -> 307

Sheet BASE ART.81 (hidden)
A1: Volver al índice | C1: =IF('Aplicabilidad Específicos'!G3="","",'Aplicabilidad Específicos'!G3) -> Ayuntamiento de Mexicali, Baja California
C3: El artículo 81 dice a la letra: Artículo 81. Los sujetos obligados deberán poner a disposición del público y mantengan actualizada conforme a lo establecido por esta Ley, en sus respectivos portales de internet, la información de interés público por lo menos, de los temas, documentos y políticas que a continuación se señalan:
C5: Fecha de inicio de la verificación: | G5: Fecha de término de la verificación
C9: Índice Cumplimiento | E9: =AVERAGE(E19,E38,E57,E116,E136,E176,E313,E638) -> 0
B12: Art. 81 - Fracción I. El marco normativo aplicable al sujeto obligado, en el que deberá incluirse leyes, códigos, reglamentos, decretos de creación, manuales administrativos, reglas de operación, criterios, políticas, entre otros | I12: PARRAFO ORIGINAL
B13: Los sujetos obligados deberán publicar un listado con la normatividad que emplean para el ejercicio de susfunciones. Cada norma deberá estar categorizada y contener un hipervínculo al documento correspondiente. De existir normatividad que de ser publicada vulneraría el ejercicio de atribuciones relevantes dedeterminados sujetos obligados, éstos integrarán a su listado las versiones públicas de tales documentosaclarando a las personas que consulten la información de esta fracción, mediante leyenda fundamentada,motivada y actualizada al periodo que corresponda, las razones por las cuales se incluye un documento conla característica de versión pública. Los sujetos obligados bajo ese supuesto considerarán lo establecido enlas disposiciones generales de los Lineamientos respecto de las versiones públicas. Cuando exista alguna reforma, adición, derogación o abrogación de alguna norma aplicable al sujetoobligado, ésta deberá actualizarse en el sitio de Internet y en la Plataforma Nacional en un plazo no mayor a 15 días hábiles a partir de su publicación. Para mayor claridad y accesibilidad, la información deberá organizarse mediante un catálogo con los tipos denormatividad siguientes:  Constitución Política de los Estados Unidos Mexicanos -  Tratados internacionales1 -  Constitución Política de la entidad federativa -  Leyes: generales, federales y locales -  Códigos -  Reglamentos -  Decreto de creación -  Manuales: administrativos, de integración, organizacionales -  Reglas de operación -  Criterios -  Políticas -  Otros documentos normativos: condiciones, circulares, normas, bandos, resoluciones,lineamientos, acuerdos, convenios, contratos, estatutos sindicales, estatutos universitarios,estatutos de personas morales, memorandos de entendimiento, entre otros aplicables alsujeto obligado de conformidad con sus facultades y atribuciones. Desde cada tipo de normatividad se deberá desplegar un listado con la denominación de cada uno de losdocumentos aplicables al sujeto obligado, la fecha de publicación en el Diario Oficial de la Federación (DOF),órganos oficiales de difusión o los medios institucionales correspondientes, la fecha de última modificación dela norma en el formato día/mes/año (por ej. 31/Marzo/2016) y un hipervínculo al texto completo de cadanorma. Respecto de los tratados internacionales, deberán publicarse por lo menos los siguientes: Pacto Internacionalde Derechos Civiles y Políticos, Convención Interamericana de Derechos Humanos, Pacto Internacional deDerechos Económicos, Sociales y Culturales. Además se incluirán los tratados internacionales relativos a lamateria específica de cada sujeto obligado. Los sujetos obligados incluirán una leyenda fundamentada, motivada y actualizada al periodo quecorresponda, respecto de tratados internacionales y demás normatividad que consideren relevante adicionara lo requerido. En caso de que el sujeto obligado no cuente con ninguna norma del tipo: Manuales: administrativos, deintegración, organizacionales; Reglas de operación, Criterios, Políticas, Otros documentos normativos: normas, circulares, bandos, resoluciones, lineamientos, acuerdos, estatutos; deberá incluir una leyendaactualizada al periodo que corresponda que lo aclare, por ejemplo: “No existen manuales de organizaciónaplicables a la Secretaría de Turismo.” Todos los sujetos obligados deberán incluir la Constitución Política de los Estados UnidosMexicanos, así como la normatividad en materia de transparencia, acceso a la información yprotección de datos personales que les corresponda. En cuanto a las políticas que se incluirán como parte de la normatividad, se publicarán aquellos documentos normativos que tienen como objetivo orientar y establecer directrices de acción relativas a cada sujetoobligado, las cuales deben ser acatadas por los miembros del mismo y se han emitido mediante avisos,circulares u otras comunicaciones oficiales. Nota: Los documentos normativos publicados en formato PDF deberán considerar una versión o formato que permita su reutilización.
K14: Lineamientos Técnicos Generales
K15: Otro (protocolo, principios,)
B17: Art. 81 - Fracción II. Su estructura orgánica completa, en un formato que permita vincular cada parte de la estructura, las atribuciones y responsabilidades que le corresponden a cada servidor público, prestador de servicios profesionales o miembro de los sujetos obligados de conformidad con las disposiciones aplicables | I17: PARRAFO ORIGINAL
B18: El sujeto obligado incluirá la estructura orgánica que da cuenta de la distribución y orden de las funciones que se establecen para el cumplimiento de sus objetivos conforme a criterios de jerarquía y especialización, ordenados y codificados cuando así corresponda, mediante los catálogos de Áreas y de clave o nivel del puesto, de tal forma que sea posible visualizar los niveles jerárquicos y sus relaciones de dependencia de acuerdo con el estatuto orgánico u otro ordenamiento que le aplique. Se deberá publicar la estructura vigente, es decir, la que está en operación en el sujeto obligado y ha sido aprobada y/o dictaminada por la autoridad competente. En aquellos casos en los que dicha estructura no corresponda con la funcional, deberá especificarse cuáles puestos se encuentran en tránsito de aprobación por parte de las autoridades competentes. Si la estructura aprobada se modifica, los sujetos obligados deberán aclarar mediante leyenda fundamentada, motivada y actualizada al periodo que corresponda, cuáles son las áreas de reciente creación, las que cambiaron de denominación (anterior y actual) y aquéllas que desaparecieron. Esta leyenda se conservará durante un trimestre, el cual empezará a contar a partir de la actualización de la fracción. Los sujetos obligados que no tengan estructura orgánica autorizada deberán incluir una leyenda fundamentada, motivada y actualizada al periodo que corresponda, que explique la situación del sujeto obligado. La estructura orgánica deberá incluir al titular del sujeto obligado y todos los servidores públicos adscritos a las unidades administrativas, áreas, institutos o los que correspondan, incluido el personal de gabinete de apoyo u homólogo, prestadores de servicios profesionales, miembros de los sujetos obligados, así como los respectivos niveles de adjunto, homólogo o cualquier otro equivalente, según la denominación que se le dé. Asimismo, se publicará la estructura orgánica de la administración paramunicipal, desconcentrada y de los diversos institutos con que cuentan los municipios, ayuntamientos o delegaciones. En cada nivel de estructura el sujeto obligado deberá incluir, en su caso, a los prestadores de servicios profesionales contratados y/o a los miembros integrados de conformidad con las disposiciones aplicables (por ejemplo, en puestos honoríficos o que realicen actos de autoridad). Todos los sujetos obligados deberán incluir una leyenda que especifique claramente que los prestadores de servicios profesionales reportados no forman parte de la estructura orgánica en virtud de que fungen como apoyo para el desarrollo de las actividades de los puestos que sí conforman la estructura orgánica. Cada nivel de la estructura deberá desplegar un listado de las áreas que le están subordinadas jerárquicamente, así como las atribuciones, responsabilidades y/o funciones conferidas por las disposiciones aplicables a los(as) servidores(as) públicos(as) y/o toda persona que desempeñe un empleo, cargo o comisión y/o ejerza actos de autoridad, además de los(as) prestadores(as) de servicios profesionales contratados en cada una de esas áreas. Además, se publicará un hipervínculo al organigrama completo, con el objetivo de visualizar la representación gráfica de la estructura orgánica, desde el puesto del titular del sujeto obligado hasta el nivel de jefatura de departamento u homólogo y, en su caso, los prestadores de servicios profesionales y/o cualquier otro tipo de personal adscrito3. Respecto de los sujetos obligados que no forman parte de los organismos gubernamentales la estructura orgánica hará referencia a los cargos equivalentes conforme a su normatividad interna. La información a que se refiere esta fracción deberá guardar coherencia con lo publicado en las fracciones III (facultades de cada área), VI (indicadores de objetivos y resultados), VII (directorio), VIII (remuneración), IX(gastos de representación y viáticos), X (número total de plazas), XI (servicios profesionales por honorarios), XII (declaraciones patrimoniales), XIII (unidad de transparencia) XIV (convocatorias a concursos) XVII (información curricular y sanciones) y XVIII (servidores Públicos con sanciones) del artículo 70 de la Ley General. Los catálogos de clave o nivel del puesto y el de la denominación de los puestos serán las llaves que enlacen con el resto de la información.
C19: Índice Cumplimiento | E19: =IF('Aplicabilidad Art. 81'!$E$12="NO","NA",SUM(E23:E31)/SUM(D23:D31)) -> 0 | K19: SINDICATURA PROCURADORA
K20: CONSEJERÍA JURÍDICA MUNICIPAL
K21: TESORERÍA MUNICIPAL
C22: Criterio | D22: Valor criterio | E22: Valoración | F22: Tipo | G22: Requerimiento | K22: SECRETARÍA DE DESARROLLO TERRITORIAL, URBANO Y AMBIENTAL
C23: I. Gobierno Municipal; | D23: =IF(E23="Justificado",0,1) -> 1 | K23: SECRETARÍA DE BIENESTAR
C24: II. Tesorería Municipal; | D24: 1 | K24: SECRETARÍA DE DESARROLLO ECONÓMICO
C25: III. Oficialía Mayor; | D25: 1 | K25: SECRETARÍA DE EDUCACIÓN PÚBLICA
C26: IV. Seguridad y Protección Ciudadana; | D26: 1 | K26: SECRETARÍA DE MOVILIDAD URBANA SUSTENTABLE
C27: V. Desarrollo Territorial, Urbano y Ambiental; | D27: 1 | K27: TRIBUNAL UNITARIO CONTENCIOSO ADMINISTRATIVO
C28: VI. Bienestar | D28: 1
C29: VII. Desarrollo Económico; | D29: 1
C30: VIII. Educación Pública Municipal; | D30: 1
C31: IX. Movilidad Urbana Sustentable Municipal. | D31: 1
E33: =SUM(D23:D31) -> 9
B36: Art. 81 - Fracción III - Facultades de cada Área | I36: PARRAFO ORIGINAL
B37: En cumplimiento a esta fracción, los sujetos obligados publicarán las facultades respecto de cada una de las áreas previstas en el reglamento interior, estatuto orgánico o normatividad equivalente respectiva, entendidas éstas como las aptitudes o potestades que les otorga la ley para para llevar a cabo actos administrativos y/o legales válidos, de los cuales surgen obligaciones, derechos y atribuciones. Esta fracción guarda relación directa con la estructura orgánica publicada por los sujetos obligados en cumplimiento de la fracción II, toda vez que deben describirse las facultades de cada una de las áreas que la conforman. También guarda correspondencia con lo publicado en las fracciones IV (metas y objetivos), V (indicadores de interés), VI (indicadores de resultados) y XIII (unidad de transparencia) del artículo 70 de la Ley General. | K37: PRESIDENCIA MUNICIPAL
C38: Índice Cumplimiento | E38: =IF('Aplicabilidad Art. 81'!$E$14="NO","NA",SUM(E42:E50)/SUM(D42:D50)) -> 0 | K38: SINDICATURA PROCURADORA
K39: OFICIAL MAYOR
K40: TESORERÍA MUNICIPAL
C41: Criterio | D41: Valor criterio | E41: Valoración | F41: Tipo | G41: Requerimiento | K41: SECRETARÍA DE DESARROLLO TERRITORIAL, URBANO Y AMBIENTAL
C42: I. Gobierno Municipal; | D42: =IF(E42="Justificado",0,1) -> 1 | K42: SECRETARÍA DE BIENESTAR
C43: II. Tesorería Municipal; | D43: =IF(E43="Justificado",0,1) -> 1 | K43: SECRETARÍA DE DESARROLLO ECONÓMICO
C44: III. Oficialía Mayor; | D44: 1
C45: IV. Seguridad y Protección Ciudadana; | D45: 1
C46: V. Desarrollo Territorial, Urbano y Ambiental; | D46: 1
C47: VI. Bienestar | D47: 1
C48: VII. Desarrollo Económico; | D48: 1
C49: VIII. Educación Pública Municipal; | D49: 1
C50: IX. Movilidad Urbana Sustentable Municipal. | D50: 1 | K50: SECRETARÍA DE EDUCACIÓN PÚBLICA
E52: =SUM(D42:D50) -> 9
B55: Art. 81 - Fracción IV. Las metas y objetivos de las Áreas de conformidad con sus programas operativos | I55: PARRAFO ORIGINAL
B56: Para el cumplimiento de esta fracción se deberá entender como meta la cuantificación y/o expresión numérica del o los objetivos y/o indicadores que planea o busca alcanzar el sujeto obligado a través de cada una de las áreas o unidades responsables ejecutoras del gasto o concentradoras que consoliden las actividades, según corresponda, en el tiempo especificado y con los recursos necesarios en los términos de la normatividad que le sea aplicable. La información publicada en esta fracción deberá ser correspondiente con las áreas o unidades ejecutoras del gasto y guardar relación con las especificadas en la estructura orgánica del sujeto obligado (fracción II). Para cada una de estas áreas se publicarán sus metas y objetivos vinculados a los programas operativos, presupuestarios, sectoriales, regionales institucionales, especiales, de trabajo y/o anuales en términos de la normatividad que le sean aplicables. También deberá haber congruencia con lo señalado en las fracciones III (las facultades de cada área) y VI (indicadores).La información deberá publicarse de tal forma que se posibilite la consulta por año y por área o unidad responsable, en cuyo caso se deberá incluir el reglamento interior, estatuto orgánico, manual de organización, o el documento similar que contenga las áreas o unidades responsables, si así corresponde. Desde cada área o unidad responsable se brindará la posibilidad de consultar sus objetivos, indicadores, así como las metas propuestas. Se deberá incluir un hipervínculo al o los programas operativos, presupuestarios, sectoriales, regionales, institucionales, especiales, de trabajo y/o anuales, o secciones de éstos, en los que se establecerá la meta u objetivo del ejercicio en curso y el correspondiente a los seis ejercicios anteriores cuando la normatividad de contabilidad gubernamental así lo establezca. | K56: PRESIDENCIA MUNICIPAL
C57: Índice Cumplimiento | E57: =IF('Aplicabilidad Art. 81'!$E$16="NO","NA",SUM(E61:E69)/SUM(D61:D69)) -> 0 | K57: SINDICATURA PROCURADORA
K58: OFICIAL MAYOR
K59: TESORERÍA MUNICIPAL
C60: Criterio | D60: Valor criterio | E60: Valoración | F60: Tipo | G60: Requerimiento | K60: SECRETARÍA DE DESARROLLO TERRITORIAL, URBANO Y AMBIENTAL
C61: I. Gobierno Municipal; | D61: =IF(E61="Justificado",0,1) -> 1 | K61: SECRETARÍA DE BIENESTAR
C62: II. Tesorería Municipal; | D62: 1 | K62: SECRETARÍA DE DESARROLLO ECONÓMICO
C63: III. Oficialía Mayor; | D63: 1
C64: IV. Seguridad y Protección Ciudadana; | D64: 1
C65: V. Desarrollo Territorial, Urbano y Ambiental; | D65: 1 | K65: SECRETARÍA DE EDUCACIÓN PÚBLICA
C66: VI. Bienestar | D66: 1 | K66: SECRETARÍA DE MOVILIDAD URBANA SUSTENTABLE
C67: VII. Desarrollo Económico; | D67: 1 | K67: TRIBUNAL UNITARIO CONTENCIOSO ADMINISTRATIVO
C68: VIII. Educación Pública Municipal; | D68: 1
C69: IX. Movilidad Urbana Sustentable Municipal. | D69: 1
E71: =SUM(D61:D69) -> 9
B74: Art. 81 - Fracción V. Los indicadores relacionados con temas de interés público o trascendencia social que conforme a sus funciones, deban establecer | I74: PARRAFO ORIGINAL
B75: Se entiende por temas de interés público o trascendencia social, de acuerdo con lo establecido en el artículo 3, fracción XII de la Ley General, aquellos temas que son relevantes o beneficiosos para la sociedad y cuya divulgación resulta útil para que el público comprenda las actividades que llevan a cabo los sujetos obligados. Los sujetos obligados publicarán y actualizarán la información relativa a los indicadores que valoren los resultados del sujeto obligado en su conjunto, de acuerdo con su misión, objetivos y/o atribuciones previstas en las disposiciones que los regulen. En el caso de los sujetos obligados que se regulen por la Ley General de Contabilidad Gubernamental así como por las disposiciones que emita el Consejo Nacional de Armonización Contable que no cuenten con tales indicadores, los elaborarán observando lo establecido en los Lineamientos para la construcción y diseño de indicadores de desempeño mediante la Metodología de Marco Lógico emitidos por el Consejo Nacional de Armonización Contable antes citado, publicados en el Diario Oficial de la Federación el 16 de mayo de 2013 o sus subsecuentes modificaciones y podrán hacer uso de las Guías para la construcción de la MIR y para el diseño de indicadores que se encuentran disponibles en las páginas de Internet de la Secretaría de Hacienda y Crédito Público y el CONEVAL. Para ello, desde el sitio de Internet de cada sujeto obligado se brindará la información de los indicadores relacionados con temas de interés público o trascendencia social, de tal forma que se posibilite la consulta por sujeto obligado, año y objetivos, en relación con los planes de desarrollo nacional, estatal o municipal o programas que deriven de estos; la misión institucional, entre otros. La información deberá incluir al menos los siguientes datos: nombre del indicador, dimensión a medir, definición del indicador, método de cálculo, unidad de medida, frecuencia de medición, sentido del indicador, línea base, metas programadas y ajustadas, cuando corresponda, así como el avance de las mismas. Los sujetos obligados que no estén regulados por la Ley General de Contabilidad Gubernamental así como por las disposiciones emitidas por el Consejo Nacional de Armonización Contable referidas en el presente apartado, podrán sujetarse a éstas para efecto de dar cumplimiento a los presentes Lineamientos. | K75: PRESIDENCIA MUNICIPAL
C76: Índice Cumplimiento | E76: =IF('Aplicabilidad Art. 81'!$E$18="NO","NA",SUM(E80:E88)/SUM(D80:D88)) -> 0 | K76: SINDICATURA PROCURADORA
K77: OFICIAL MAYOR
K78: TESORERÍA MUNICIPAL
C79: Criterio | D79: Valor criterio | E79: Valoración | F79: Tipo | G79: Requerimiento | K79: SECRETARÍA DE DESARROLLO TERRITORIAL, URBANO Y AMBIENTAL
D80: =IF(E80="Justificado",0,1) -> 1 | K80: SECRETARÍA DE BIENESTAR
D81: 1
D82: 1
D83: 1
D84: 1
D85: 1
D86: 1
D87: 1
D88: 1
E91: =SUM(D80:D89) -> 9
B94: Art. 81 - Fracción VI. Los indicadores que permitan rendir cuenta de sus objetivos y resultados | I94: PARRAFO ORIGINAL
B95: Los sujetos obligados que se regulen por la Ley General de Contabilidad Gubernamental así como por las disposiciones que emita el Consejo Nacional de Armonización Contable publicarán la información de los indicadores de desempeño observando lo establecido en los Lineamientos para la construcción y diseño de indicadores de desempeño mediante la Metodología de Marco Lógico emitidos por el Consejo antes citado, publicados en el Diario Oficial de la Federación el 16 de mayo de 2013 o sus subsecuentes modificaciones y podrán hacer uso de las Guías para la construcción de la MIR y para el diseño de indicadores que se encuentran disponibles en las páginas de Internet de la Secretaría de Hacienda y Crédito Público y el CONEVAL. La información deberá publicarse de tal forma que sea posible la consulta por sujeto obligado, año y área o unidad responsable del programa. La información relacionada con los indicadores de desempeño deberá incluir por lo menos: nombre del indicador, dimensión a medir, definición del indicador, método de cálculo, unidad de medida, frecuencia de medición, sentido del indicador, línea base, metas programadas, metas ajustadas y avance de metas. Los sujetos obligados que no estén regulados por la Ley General de Contabilidad Gubernamental así como por las disposiciones emitidas por el Consejo Nacional de Armonización Contable referidas en el presente apartado, podrán sujetarse a éstas para efecto de dar cumplimiento a los presentes Lineamientos. La información publicada en cumplimiento de la presente fracción deberá guardar correspondencia con lo publicado en las fracciones IV (metas y objetivos), V (indicadores de interés público), XV (programas de subsidios, estímulos y apoyos) y XXXVIII (programas y trámites ofrecidos) del artículo 70 de la Ley General. | K95: PRESIDENCIA MUNICIPAL
C96: Índice Cumplimiento | E96: =IF('Aplicabilidad Art. 81'!$E$20="NO","NA",SUM(E100:E108)/SUM(D100:D108)) -> 0 | K96: SINDICATURA PROCURADORA
K97: OFICIAL MAYOR
K98: TESORERÍA MUNICIPAL
C99: Criterio | D99: Valor criterio | E99: Valoración | F99: Tipo | G99: Requerimiento | K99: SECRETARÍA DE DESARROLLO TERRITORIAL, URBANO Y AMBIENTAL
D100: =IF(E100="Justificado",0,1) -> 1 | K100: SECRETARÍA DE BIENESTAR
D101: 1 | K101: SECRETARÍA DE DESARROLLO ECONÓMICO
D102: 1 | K102: SECRETARÍA DE EDUCACIÓN PÚBLICA
D103: 1 | K103: SECRETARÍA DE MOVILIDAD URBANA SUSTENTABLE
D104: 1 | K104: TRIBUNAL UNITARIO CONTENCIOSO ADMINISTRATIVO
D105: 1
D106: 1
D107: 1
D108: 1
E111: =SUM(D100:D109) -> 9
B114: Art. 81 - Fracción VII. El directorio de todos los servidores públicos, a partir del nivel de jefe de departamento o su equivalente, o de menor nivel, cuando se brinde atención al público; manejen o apliquen recursos públicos; realicen actos de autoridad, o presten servicios profesionales bajo el régimen de confianza u honorarios y personal de base. El directorio deberá incluir al menos el nombre, cargo o nombramiento asignado, nivel del puesto en la estructura orgánica, fecha de alta en el cargo, número telefónico, domicilio para recibir correspondencia y dirección de correo electrónico oficiales | I114: PARRAFO ORIGINAL
B115: Para el cumplimiento de la presente fracción los sujetos obligados deberán integrar el directorio con los datos básicos para establecer contacto con sus servidores(as) públicos(as), integrantes y/o miembros, así como toda persona que desempeñe un empleo, cargo o comisión y/o ejerza actos de autoridad en los mismos. Se publicará la información correspondiente desde el nivel de jefe de departamento o equivalente, hasta el titular del sujeto obligado; y de menor nivel en caso de que brinden atención al público, manejen o apliquen recursos públicos, realicen actos de autoridad o presten servicios profesionales bajo el régimen de honorarios, confianza y personal de base7. Respecto de los prestadores de servicios profesionales reportados se incluirá una leyenda que especifique que éstos no forman parte de la estructura orgánica del sujeto obligado toda vez que fungen como apoyo para el desarrollo de las actividades de los puestos que sí conforman la estructura. La información que se publique en cumplimiento de la presente fracción guardará correspondencia con lo publicado en las fracciones II (estructura orgánica), III (facultades de cada área), VIII (remuneración), IX (gastos de representación y viáticos), X (total de plazas y personal de base y confianza), XII (declaraciones patrimoniales), XIII (Unidad de Transparencia), XIV (convocatorias a concursos para ocupar cargos públicos) y XVII (información curricular de servidores[as] públicos[as]) del artículo 70 de la Ley General. | K115: PRESIDENCIA MUNICIPAL
C116: Índice Cumplimiento | E116: =IF('Aplicabilidad Art. 81'!$E$22="NO","NA",SUM(E120:E128)/SUM(D120:D128)) -> 0 | K116: SINDICATURA PROCURADORA
K117: OFICIAL MAYOR
K118: TESORERÍA MUNICIPAL
C119: Criterio | D119: Valor criterio | E119: Valoración | F119: Tipo | G119: Requerimiento | K119: SECRETARÍA DE DESARROLLO TERRITORIAL, URBANO Y AMBIENTAL
C120: I. Gobierno Municipal; | D120: =IF(E120="Justificado",0,1) -> 1 | K120: SECRETARÍA DE BIENESTAR
C121: II. Tesorería Municipal; | D121: 1 | K121: SECRETARÍA DE DESARROLLO ECONÓMICO
C122: III. Oficialía Mayor; | D122: 1 | K122: SECRETARÍA DE EDUCACIÓN PÚBLICA
C123: IV. Seguridad y Protección Ciudadana; | D123: 1 | K123: SECRETARÍA DE MOVILIDAD URBANA SUSTENTABLE
C124: V. Desarrollo Territorial, Urbano y Ambiental; | D124: 1 | K124: TRIBUNAL UNITARIO CONTENCIOSO ADMINISTRATIVO
C125: VI. Bienestar | D125: 1
C126: VII. Desarrollo Económico; | D126: 1
C127: VIII. Educación Pública Municipal; | D127: 1
C128: IX. Movilidad Urbana Sustentable Municipal. | D128: 1
E131: =SUM(D120:D129) -> 9
B134: Art. 81 - Fracción VIII. La remuneración bruta y neta de todos los Servidores Públicos de base o de confianza, de todas las percepciones, incluyendo sueldos, prestaciones, gratificaciones, primas, comisiones, dietas, bonos, estímulos, ingresos y sistemas de compensación, señalando la periodicidad de dicha remuneración | I134: PARRAFO ORIGINAL
B135: Con base en lo establecido en el artículo 3, fracción XVIII de la Ley General, los servidores públicos son: “Los mencionados en el párrafo primero del artículo 108 de la Constitución Política de los Estados Unidos Mexicanos y sus correlativos de las Entidades Federativas y municipios que establezcan las Constituciones de los Estados y el Estatuto de Gobierno del Distrito Federal”. Asimismo, la Constitución Política de los Estados Unidos Mexicanos establece en el párrafo primero del artículo 108 lo siguiente: “…a los representantes de elección popular, a los miembros del Poder Judicial Federal y del Poder Judicial del Distrito Federal, los funcionarios y empleados y, en general, a toda persona que desempeñe un empleo, cargo o comisión de cualquier naturaleza en el Congreso de la Unión, en la Asamblea Legislativa del Distrito Federal o en la Administración Pública Federal o en el Distrito Federal, así como a los servidores públicos de los organismos a los que esta Constitución otorgue autonomía, quienes serán responsables por los actos u omisiones en que incurran en el desempeño de sus respectivas funciones.” (...) Lo anterior permite a cada sujeto obligado identificar claramente cuál información deberá publicar en este rubro a fin de cumplir con el principio de máxima publicidad y proporcionar, a través de su sitio de transparencia y de la Plataforma Nacional, la información de todos(as) los(as) servidores(as) públicos(as) de base, de confianza, integrantes, miembros del sujeto obligado y/o toda persona que desempeñe un empleo, cargo o comisión y/o ejerza actos de autoridad, relativa a: la remuneración bruta y neta, todas las percepciones en efectivo o en especie, sueldos, prestaciones, gratificaciones, primas, comisiones, dietas, bonos, estímulos, apoyos económicos, ingresos sistemas de compensación, entre otros, señalando la periodicidad de dicha remuneración10. En caso de que no sea asignado alguno de los rubros anteriores de acuerdo con la normativa correspondiente, se deberá indicar mediante una leyenda fundamentada, motivada y actualizada al periodo que corresponda. La información deberá guardar coherencia con lo publicado en cumplimiento de las fracciones II (estructura orgánica), III (facultades de cada área), VII (directorio), IX (gastos de representación y viáticos), X (número total de plazas y del personal de base y confianza), XIII (información de la unidad de transparencia), XIV (convocatorias a concursos para ocupar cargos públicos) y XVII (información curricular) del artículo 70 de la Ley General. | K135: PRESIDENCIA MUNICIPAL
C136: Índice Cumplimiento | E136: =IF('Aplicabilidad Art. 81'!$E$24="NO","NA",SUM(E140:E148)/SUM(D140:D148)) -> 0 | K136: SINDICATURA PROCURADORA
K137: OFICIAL MAYOR
K138: TESORERÍA MUNICIPAL
C139: Criterio | D139: Valor criterio | E139: Valoración | F139: Tipo | G139: Requerimiento | K139: SECRETARÍA DE DESARROLLO TERRITORIAL, URBANO Y AMBIENTAL
C140: I. Gobierno Municipal; | D140: =IF(E140="Justificado",0,1) -> 1 | K140: SECRETARÍA DE BIENESTAR
C141: II. Tesorería Municipal; | D141: 1 | K141: SECRETARÍA DE DESARROLLO ECONÓMICO
C142: III. Oficialía Mayor; | D142: 1
C143: IV. Seguridad y Protección Ciudadana; | D143: 1
C144: V. Desarrollo Territorial, Urbano y Ambiental; | D144: 1
C145: VI. Bienestar | D145: 1
C146: VII. Desarrollo Económico; | D146: 1
C147: VIII. Educación Pública Municipal; | D147: 1
C148: IX. Movilidad Urbana Sustentable Municipal. | D148: 1
E151: =SUM(D140:D149) -> 9
B154: Art. 81 - Fracción IX - Los gastos de representación y viáticos, así como el objeto e informe de comisión correspondiente | I154: PARRAFO ORIGINAL
B155: El Clasificador por Objeto del Gasto emitido por el Consejo Nacional de Armonización Contable define a los servicios de traslado y viáticos como las “asignaciones destinadas a cubrir los servicios de traslado, instalación y viáticos del personal, cuando por el desempeño de sus labores propias o comisiones de trabajo, requieran trasladarse a lugares distintos al de su adscripción”. Los sujetos obligados deberán difundir en su respectivo sitio de Internet y en la Plataforma Nacional, la información sobre los gastos erogados y asignados a las partidas que conforman el concepto 3700 Servicios de Traslado y Viáticos: gastos de pasajes (aéreos, terrestres, marítimos, lacustres y fluviales), servicios integrales de traslado, y otros servicios de traslado (partidas genéricas 371 a 373, 375,376, 378y 379)11 o las partidas que sean equiparables12. Asimismo, el Clasificador por Objeto del Gasto referido define los gastos de representación como las “asignaciones destinadas a cubrir gastos autorizados a los(as) servidores(as) públicos(as) de mandos medios y superiores por concepto de atención a actividades institucionales originadas por el desempeño de las funciones encomendadas para la consecución de los objetivos de los entes públicos a los que estén adscritos” y los cataloga mediante la partida 385 Gastos de representación, la cual deberá hacerse pública también. En esta fracción se difundirá además la información relativa a este concepto respecto de los integrantes, miembros y/o toda persona que desempeñe un empleo, cargo o comisión en los sujetos obligados o ejerza actos de autoridad en los mismos. Todos los sujetos obligados publicarán la información relativa a las partidas antes mencionadas o las que sean equivalentes, organizada mediante dos opciones: viáticos y gastos de representación, de tal forma que en cada una se enlisten los nombres completos y cargos de los(as) servidores(as) públicos(as), integrantes, miembros y/o toda persona que desempeñe un empleo, cargo o comisión en los sujetos obligados y/o ejerza actos de autoridad en ellos y que hayan ejercido estos tipos de gastos13 , con las excepciones previstas en la Ley General14. Cuando así corresponda, se incluirá una leyenda fundamentada, motivada y actualizada al periodo correspondiente, especificando las razones por la cuales no se publica o no se cuenta con la información requerida. La información se actualizará trimestralmente y se deberá poder relacionar con los datos de los(as) servidores(as) públicos(as), integrantes, miembros y/o toda persona que desempeñe un empleo, cargo o comisión en los sujetos obligados y/o ejerza actos de autoridad en ellos, difundidos en las fracciones II (estructura orgánica), VII (directorio) y VIII (remuneración) del artículo 70 de la Ley General. | K155: PRESIDENCIA MUNICIPAL
C156: Índice Cumplimiento | E156: =IF('Aplicabilidad Art. 81'!$E$26="NO","NA",SUM(E160:E168)/SUM(D160:D168)) -> 0 | K156: SINDICATURA PROCURADORA
K157: OFICIAL MAYOR
K158: TESORERÍA MUNICIPAL
C159: Criterio | D159: Valor criterio | E159: Valoración | F159: Tipo | G159: Requerimiento | K159: SECRETARÍA DE DESARROLLO TERRITORIAL, URBANO Y AMBIENTAL
D160: =IF(E160="Justificado",0,1) -> 1 | K160: SECRETARÍA DE DESARROLLO ECONÓMICO
D161: 1 | K161: SECRETARÍA DE EDUCACIÓN PÚBLICA
D162: 1
D163: 1
D164: 1
D165: 1
D166: 1
D167: 1
D168: 1
E171: =SUM(D160:D169) -> 9
B174: Art. 81 - Fracción X - El número total de las plazas y del personal de base y confianza, especificando el total de las vacantes, por nivel de puesto, para cada unidad administrativa | I174: PARRAFO ORIGINAL
B175: En este apartado los sujetos obligados publicarán información con base en su estructura orgánica vigente, aprobada y registrada por el órgano competente. Desde cada nivel de estructura se deberá incluir el listado de las áreas que le están subordinadas jerárquicamente y desde cada área se desplegará el listado con el total de plazas tanto de base como de confianza17, sean de carácter permanente o eventual, de tal forma que se señale cuáles están ocupadas y cuáles vacantes, así como los totales. La información a que se refiere esta fracción deberá guardar coherencia con lo publicado en las fracciones II (estructura orgánica), III (facultades de cada área), VII (directorio), VIII (remuneración) y XIV (convocatorias a concursos para ocupar cargos públicos y los resultados de los mismos) del artículo 70 de la Ley General. Los catálogos de clave o nivel del puesto y denominación de los mismos serán las llaves que enlacen con el resto de la información. | K175: PRESIDENCIA MUNICIPAL
C176: Índice Cumplimiento | E176: =IF('Aplicabilidad Art. 81'!$E$28="NO","NA",SUM(E180:E188)/SUM(D180:D188)) -> 0 | K176: SINDICATURA PROCURADORA
K177: OFICIAL MAYOR
K178: TESORERÍA MUNICIPAL
C179: Criterio | D179: Valor criterio | E179: Valoración | F179: Tipo | G179: Requerimiento | K179: SECRETARÍA DE DESARROLLO TERRITORIAL, URBANO Y AMBIENTAL
C180: I. Gobierno Municipal; | D180: =IF(E180="Justificado",0,1) -> 1 | K180: SECRETARÍA DE BIENESTAR
C181: II. Tesorería Municipal; | D181: 1 | K181: SECRETARÍA DE DESARROLLO ECONÓMICO
C182: III. Oficialía Mayor; | D182: 1 | K182: SECRETARÍA DE EDUCACIÓN PÚBLICA
C183: IV. Seguridad y Protección Ciudadana; | D183: 1 | K183: SECRETARÍA DE MOVILIDAD URBANA SUSTENTABLE
C184: V. Desarrollo Territorial, Urbano y Ambiental; | D184: 1 | K184: TRIBUNAL UNITARIO CONTENCIOSO ADMINISTRATIVO
C185: VI. Bienestar | D185: 1
C186: VII. Desarrollo Económico; | D186: 1
C187: VIII. Educación Pública Municipal; | D187: 1
C188: IX. Movilidad Urbana Sustentable Municipal. | D188: 1
E191: =SUM(D180:D189) -> 9
B194: Art. 81 - Fracción XI - Las contrataciones de servicios profesionales por honorarios, señalando los nombres de los prestadores de servicios, los servicios contratados, el monto de los honorarios y el periodo de contratación | I194: PARRAFO ORIGINAL
B195: En cumplimiento de la presente fracción, los sujetos obligados publicarán información de las personas contratadas bajo el régimen de servicios profesionales por honorarios y servicios profesionales por honorarios asimilados a salarios; entendiéndose éstos como los servicios que se contratan y/o prestan a cambio de una retribución por ellos18. En el caso de los sujetos obligados de la Federación, la información publicada tendrá relación con lo establecido en la Ley Federal de Presupuesto y Responsabilidad Hacendaria, su Reglamento, las disposiciones en las materias de Recursos Humanos y del Servicio Profesional de Carrera, y demás normas aplicables a la materia. Por su parte, los sujetos obligados de entidades federativas y municipios se sujetarán a la normatividad en la materia que les resulte aplicable. En el periodo en el que los sujetos obligados no cuenten con personal contratado bajo este régimen, deberán aclararlo mediante una leyenda debidamente fundamentada y motivada por cada periodo que así sea. La información a que se refiere esta fracción deberá guardar coherencia con lo publicado en la fracción VII (directorio) del artículo 70 de la Ley General. | K195: PRESIDENCIA MUNICIPAL
C196: Índice Cumplimiento | E196: =IF('Aplicabilidad Art. 81'!$E$30="NO","NA",SUM(E200:E208)/SUM(D200:D208)) -> 0 | K196: SINDICATURA PROCURADORA
K197: OFICIAL MAYOR
K198: TESORERÍA MUNICIPAL
C199: Criterio | D199: Valor criterio | E199: Valoración | F199: Tipo | G199: Requerimiento | K199: SECRETARÍA DE DESARROLLO TERRITORIAL, URBANO Y AMBIENTAL
D200: =IF(E200="Justificado",0,1) -> 1 | K200: SECRETARÍA DE BIENESTAR
D201: 1 | K201: TRIBUNAL UNITARIO CONTENCIOSO ADMINISTRATIVO
D202: 1
D203: 1
D204: 1
D205: 1
D206: 1
D207: 1
D208: 1
E211: =SUM(D200:D209) -> 9
B214: Art. 81 - Fracción XII - La información en versión pública de la Declaración patrimonial, declaración fiscal y declaración de intereses de todos aquellos servidores públicos que, conforme a la Ley y las disposiciones aplicables en materia, se encuentren obligado a ello. | I214: PARRAFO ORIGINAL
A215: LTL | B215: Los sujetos obligados deberán publicar la versión pública20 de la declaración de situación patrimonial de los(as) servidores(as) públicos(as), integrantes, miembros del sujeto obligado y/o toda persona que desempeñe un empleo, cargo o comisión y/o ejerza actos de autoridad, y que tiene la obligación de presentar declaración de situación patrimonial21 en sus tres modalidades: inicio, modificación y de conclusión, de conformidad con la normatividad que resulte aplicable en la materia. La publicación de la información de esta fracción se hará siempre y cuando los sujetos obligados cuenten con la autorización previa y específica del servidor público de que se trate, es decir, que haya otorgado su consentimiento informado, expreso, previo y por escrito; de conformidad con lo previsto en el artículo 40, párrafo tercero de la Ley Federal de Responsabilidades Administrativas de los Servidores Públicos. La información que se publique en la presente fracción deberá ser coherente con lo señalado en las fracciones II (estructura orgánica) y VII (directorio) del artículo 70 de la Ley General. | K215: PRESIDENCIA MUNICIPAL
C216: Índice Cumplimiento | E216: =IF('Aplicabilidad Art. 81'!$E$32="NO","NA",SUM(E220:E228)/SUM(D220:D228)) -> 0 | K216: SINDICATURA PROCURADORA
K217: OFICIAL MAYOR
K218: TESORERÍA MUNICIPAL
C219: Criterio | D219: Valor criterio | E219: Valoración | F219: Tipo | G219: Requerimiento | K219: SECRETARÍA DE DESARROLLO TERRITORIAL, URBANO Y AMBIENTAL
D220: =IF(E220="Justificado",0,1) -> 1 | K220: SECRETARÍA DE BIENESTAR
D221: 1 | K221: SECRETARÍA DE DESARROLLO ECONÓMICO
D222: 1 | K222: SECRETARÍA DE EDUCACIÓN PÚBLICA
D223: 1 | K223: TRIBUNAL UNITARIO CONTENCIOSO ADMINISTRATIVO
D224: 1
D225: 1
D226: 1
D227: 1
D228: 1
E230: =SUM(D220:D228) -> 9
B233: Art. 81 - Fracción XIII - El domicilio de la Unidad de Transparencia, además de la dirección electrónica donde podrán recibirse las solicitudes para obtener la información | I233: PARRAFO ORIGINAL
B234: Todos los sujetos obligados publicarán la información necesaria para que las personas puedan establecer contacto y comunicación con su respectiva Unidad de Transparencia y, si así lo requieren, auxiliarlos en la elaboración de solicitudes de acceso a la información y en su caso orientarlos sobre los sujetos obligados competentes conforme a la normatividad aplicable, tal como lo establece el artículo 45, fracción III, de la Ley General; además, si se requiere, deberán orientarlos al sistema de solicitudes de acceso a la información que corresponda. Por tal motivo, de forma complementaria al domicilio oficial y dirección electrónica, se incluirán los números telefónicos oficiales, horario de atención, nombre del(la) responsable de la Unidad de Transparencia, así como los nombres del personal habilitado para cumplir con las funciones establecidas en el referido artículo y sus correos electrónicos oficiales activos --independientemente de que su nivel sea menor al de jefe de departamento u homólogo--, los cuales deberán guardar correspondencia con los publicados en la fracción VII (directorio) del artículo 70 de la Ley General, para lo cual se podrá establecer un hipervínculo. Además, los sujetos obligados deberán publicar una leyenda en la que se indique que las solicitudes de información pública que se reciben a través del correo electrónico ya señalado en las oficinas designadas para ello, vía telefónica, correo postal, mensajería, telégrafo, verbalmente o cualquier medio aprobado por el Sistema Nacional, podrán presentarse mediante los requisitos22 máximos que indica la Ley General y un hipervínculo al Sistema de solicitudes de acceso a la información, que formará parte del Sistema Nacional.23 La información que se publique en cumplimiento de la presente fracción deberá ser coherente con lo señalado en las fracciones II (estructura orgánica), VII (directorio), VIII (remuneración) y XVII (información curricular).
C235: Índice Cumplimiento | E235: =IF('Aplicabilidad Art. 81'!$I$10="NO","NA",SUM(E239:E247)/SUM(D239:D247)) -> 0
C238: Criterio | D238: Valor criterio | E238: Valoración | F238: Tipo | G238: Requerimiento
D239: =IF(E239="Justificado",0,1) -> 1
D240: 1
D241: 1
D242: 1
D243: 1
D244: 1
D245: 1
D246: 1
D247: 1
E250: =SUM(D239:D248) -> 9
B253: Art. 81 - Fracción XIV - Las convocatorias a concursos para ocupar cargos públicos y los resultados de los mismos | I253: PARRAFO ORIGINAL
B254: El sujeto obligado publicará los avisos, invitaciones y/o convocatorias que emita para ocupar cualquier tipo de cargo, puesto o equivalente y sólo cuando sea sometido a concurso, público o cerrado, de acuerdo con su naturaleza jurídica, la normatividad que le aplique, sus necesidades institucionales y su presupuesto autorizado. Asimismo, se deberá publicar el estado y/o etapa en el que se encuentra el proceso de selección y los resultados del mismo. La información generada deberá corresponder con la manera en que cada sujeto obligado realice el reclutamiento de personal y su mecanismo de selección, de conformidad con las disposiciones que le sean aplicables y, cuando así corresponda, de acuerdo con sus propios sistemas de servicio profesional de carrera. Cabe mencionar que en caso de que el sujeto obligado publique actas o documentos en los que se asigne al(a) ganador(a) del proceso de selección que incluyan datos personales éstos se deberán difundir en versión pública25. Los datos respecto a los avisos, invitaciones y/o convocatorias que emita deberán estar publicados de igual manera en la fracción I (marco normativo). Respecto a las plazas, puestos, cargos o funciones a ocupar, éstas deberán corresponder con la información publicada en cumplimiento de las fracciones II (estructura orgánica), VII (directorio), VIII (remuneración) y X (número total de las plazas y del personal de base y confianza) del artículo 70 de la Ley General, y en su caso con las vacantes que el sujeto obligado publique; así como con los sistemas electrónicos de información gubernamental26 correspondientes a convocatorias y/o concursos que el sujeto obligado desarrolle y/o administre. | K254: PRESIDENCIA MUNICIPAL
... 570 more rows

Sheet BASE ART.82 (hidden)
A1: Volver al índice | C1: =IF('Aplicabilidad Específicos'!G3="","",'Aplicabilidad Específicos'!G3) -> Ayuntamiento de Mexicali, Baja California
C3: El artículo 82 dice a la letra: Artículo 82. Todos los sujetos obligados deberán publicar lo relacionado con los gastos de publicidad oficial, que deberá contener:
C5: Fecha de inicio de la verificación: | G5: Fecha de término de la verificación
A9: =IF('Aplicabilidad Art. 81'!G3="","",'Aplicabilidad Art. 81'!G3) -> Ayuntamiento de Mexicali, Baja California | C9: Índice Cumplimiento | E9: =AVERAGE(E12) -> 0
B10: Artículo 82.- Todos los sujetos obligados deberán publicar lo relacionado con los gastos de publicidad oficial, que deberá contener: I. Presupuesto aprobado por partida y ejercido; II. Contrato, monto y factura; III. Fecha de inicio y fecha de término; IV. Dependencia o dirección que la solicita; V. Tipo de medio de comunicación; VI. Costo por centímetro de las publicaciones impresas y por segundo o minuto según sea el caso de la difusión en medios electrónicos; y VII. Padrón de proveedores. | I10: PARRAFO ORIGINAL
B11: Los sujetos obligados deberán publicar y actualizar la información relacionada con los gastos de publicidad oficial que genere durante su ejercicio, que de acuerdo con la normatividad aplicable deban elaborar. En relación con el presupuesto aprobado por partida y ejercido se presentará de manera detallada en los términos y formato en el que fue aprobado, agrupándolo por programas, grupos, partidas de gastos, informes sobres su ejecución; así como de la situación financiera, respecto a los gastos de publicidad oficial. También deberá hacerse pública una relación que incluya los contratos celebrados de publicidad oficial, donde se especifique el monto pactado, se incluya un hipervínculo a la factura de los servicios contratados, incluir la fecha de inicio y de término del contrato celebrado, además será necesario precisar el tipo de medio de comunicación por el que se contrató el servicio. En otro apartado se deberá publicar el costo por centímetro de las publicaciones impresas y por segundo o minuto, según sea el caso de la difusión en medios electrónicos; y en relación a todo lo anterior deberá ser público el padrón de proveedores. En caso de que el sujeto obligado, de acuerdo con la normatividad aplicable, no genere dicha información, deberá especificarlo por medio de una leyenda fundamentada, motivada y actualizada al periodo que corresponda. | K11: PRESIDENCIA MUNICIPAL
C12: Índice Cumplimiento | E12: =IF(SUM(D16:D24)=0,"NA",SUM(E16:E24)/SUM(D16:D24)) -> 0 | K12: SINDICATURA PROCURADORA
K13: OFICIAL MAYOR
K14: TESORERÍA MUNICIPAL
C15: Criterio | D15: Valor criterio | E15: Valoración | F15: Tipo | G15: Requerimiento | K15: SECRETARÍA DE DESARROLLO TERRITORIAL, URBANO Y AMBIENTAL
D16: =IF(E16="Justificado",0,1) -> 1 | K16: SECRETARÍA DE BIENESTAR
D17: 1 | K17: SECRETARÍA DE EDUCACIÓN PÚBLICA
D18: 1
D19: 1
D20: 1
D21: 1
D22: 1
D23: 1
D24: 1
E26: =SUM(D16:D24) -> 9 | F26: =SUM(D16:D24) -> 9

Sheet BASE ART.83 IV (hidden)
A1: Volver al índice | C1: =IF('Aplicabilidad Específicos'!G3="","",'Aplicabilidad Específicos'!G3) -> Ayuntamiento de Mexicali, Baja California
C3: El artículo 83 dice a la letra: Artículo 83. Además de lo señalado en el artículo anterior, los sujetos obligados deberán publicar y actualizar en sus portales de internet, la siguiente información: IV. Municipios:
C5: Fecha de inicio de la verificación: | G5: Fecha de término de la verificación
C9: Índice Cumplimiento | E9: =AVERAGE(E13,E32,E52,E71,E90,E109,E128,E147,E166,E185,E204,E223,E242,E261,E280) -> 0
B11: Art. 83 - Fracción IV - Inciso A - El Plan Municipal de Desarrollo, así como los planes y programas operativos anuales que se deriven de éste y de la Ley de Planeación para el Estado de Baja California. | I11: PARRAFO ORIGINAL
A12: LTL | B12: Esta información contribuye a que la ciudadanía pueda evaluar los actos del Poder Ejecutivo del ámbito municipal respecto de los compromisos adquiridos. Asimismo, los Planes de Desarrollo representan en su elaboración procesos de participación que deben darse a conocer y ser usados por la ciudadanía en periodos específicos. Es importante señalar que con el objetivo de ofrecer a las personas información oportuna y verificable, así como facilitar el acceso a la misma, sobre todo cuando se trata de sujetos obligados específicos y únicos quienes la generan y la difunden, todos los sujetos obligados que integran el Poder Ejecutivo en el ámbito municipal: dependencias, órganos administrativos desconcentrados, entidades, organismos descentralizados, fideicomisos, empresas productivas del estado, subsidiarias, filiales y empresas de participación estatal que conforman la Administración Pública Municipal, según corresponda y en términos de la correspondiente ley orgánica de la administración pública y demás normatividad aplicable, deberán incluir una nota aclaratoria e informativa como la siguiente: “La publicación y actualización de la información está a cargo de <>.” Asimismo, deberán agregar un hipervínculo que dirija a la ruta específica hacia la información del sujeto obligado que hayan referido. | K12: PRESIDENCIA MUNICIPAL
C13: Índice Cumplimiento | E13: =IF(SUM(D17:D25)=0,"NA",SUM(E17:E25)/SUM(D17:D25)) -> 0 | K13: SINDICATURA PROCURADORA
K14: OFICIAL MAYOR
K15: TESORERÍA MUNICIPAL
C16: Criterio | D16: Valor criterio | E16: Valoración | F16: Tipo | G16: Requerimiento | K16: SECRETARÍA DE DESARROLLO TERRITORIAL, URBANO Y AMBIENTAL
D17: =IF(E17="Justificado",0,1) -> 1 | K17: SECRETARÍA DE BIENESTAR
D18: 1 | K18: SECRETARÍA DE DESARROLLO ECONÓMICO
D19: 1
D20: 1
D21: 1
D22: 1
D23: 1
D24: 1
D25: 1
E27: =SUM(D17:D25) -> 9
B30: Art. 83 - Fracción IV - Inciso B - El Presupuesto de Egresos Municipal y de las entidades paramunicipales, así como las fórmulas de distribución de los recursos otorgados. | I30: PARRAFO ORIGINAL
A31: LTL | B31: La publicación global y específica (por gasto) del presupuesto de egresos por parte del Poder Ejecutivo de los municipios, así como la manera en que será asignado (fórmulas) permitirá a la ciudadanía conocer cuánto y cómo será gastado el presupuesto asignado en cada uno de los rubros de la administración pública durante un ejercicio fiscal y mediante ello estimar la relevancia de cada una de las políticas públicas y la disciplina de gastos emprendida por el Poder Ejecutivo municipal. Para todos los casos se deberá exponer la información en por lo menos tres rubros: 1. Gasto programable: son las erogaciones destinadas para cubrir el costo directo de la administración, servicios personales, compra de recursos materiales y servicios, entre otros. 2. Gasto no programable: recursos destinados para la construcción de obras públicas, así como de bienes adquiridos para su conservación y los utilizados en inversiones financieras y que no corresponden directamente a los programas para proveer bienes y servicios públicos a la población. 3. Deuda pública: es decir recursos destinados al cumplimiento de los compromisos financieros obtenidos bajo cualquier operación, ya sea durante la administración presente o administraciones anteriores. Por lo anterior, la información a reportar sobre el Presupuesto de Egresos y las fórmulas de distribución se organizará en dos apartados, el primero corresponderá a todos los sujetos obligados que integran el Poder Ejecutivo la información correspondiente a los Presupuestos de Egresos. En el caso de los Ayuntamientos deberá ser la Presidencia municipal (apoyada por la Comisión de Hacienda, Tesorero Municipal y/o Contralor Municipal). | K31: PRESIDENCIA MUNICIPAL
C32: Índice Cumplimiento | E32: =IF(SUM(D36:D44)=0,"NA",SUM(E36:E44)/SUM(D36:D44)) -> 0 | K32: SINDICATURA PROCURADORA
K33: OFICIAL MAYOR
K34: TESORERÍA MUNICIPAL
C35: Criterio | D35: Valor criterio | E35: Valoración | F35: Tipo | G35: Requerimiento | K35: SECRETARÍA DE DESARROLLO TERRITORIAL, URBANO Y AMBIENTAL
D36: =IF(E36="Justificado",0,1) -> 1 | K36: SECRETARÍA DE BIENESTAR
D37: 1 | K37: SECRETARÍA DE DESARROLLO ECONÓMICO
D38: 1 | K38: SECRETARÍA DE EDUCACIÓN PÚBLICA
D39: 1 | K39: SECRETARÍA DE MOVILIDAD URBANA SUSTENTABLE
D40: 1 | K40: TRIBUNAL UNITARIO CONTENCIOSO ADMINISTRATIVO
D41: 1
D42: 1
D43: 1
D44: 1
E47: =SUM(D36:D45) -> 9
B50: Art. 83 - Fracción IV - Inciso C - Los ingresos por concepto de participaciones federales y estatales; así como por la recaudación fiscal que se integre a la hacienda pública, incluyendo la de entidades paramunicipales. | I50: PARRAFO ORIGINAL
A51: LTL | B51: De conformidad con lo que establece la Ley de Coordinación Fiscal del Estado de Baja California, los sujetos obligados deberán publicar en su portal de transparencia y en la plataforma nacional, las participaciones que le corresponde a cada municipio. | K51: PRESIDENCIA MUNICIPAL
C52: Índice Cumplimiento | E52: =IF(SUM(D56:D64)=0,"NA",SUM(E56:E64)/SUM(D56:D64)) -> 0 | K52: SINDICATURA PROCURADORA
K53: OFICIAL MAYOR
K54: TESORERÍA MUNICIPAL
C55: Criterio | D55: Valor criterio | E55: Valoración | F55: Tipo | G55: Requerimiento | K55: SECRETARÍA DE DESARROLLO TERRITORIAL, URBANO Y AMBIENTAL
D56: =IF(E56="Justificado",0,1) -> 1 | K56: SECRETARÍA DE BIENESTAR
D57: 1 | K57: SECRETARÍA DE DESARROLLO ECONÓMICO
D58: 1 | K58: SECRETARÍA DE EDUCACIÓN PÚBLICA
D59: 1 | K59: SECRETARÍA DE MOVILIDAD URBANA SUSTENTABLE
D60: 1
D61: 1
D62: 1
D63: 1
D64: 1
E66: =SUM(D56:D64) -> 9
B69: Art. 83 - Fracción IV - Inciso D - Inventario de sus bienes inmuebles, el cual deberá incluir fotografía de los mismos. | I69: PARRAFO ORIGINAL
A70: No se publica en LLT, Y LGT 2018, solo en la 2017 | B70: La información será publicada atendiendo lo dispuesto en la Ley de Hacienda Municipal del Estado de Baja California, así como a los ordenamientos legales que resulten necesarios. | K70: PRESIDENCIA MUNICIPAL
C71: Índice Cumplimiento | E71: =IF(SUM(D75:D83)=0,"NA",SUM(E75:E83)/SUM(D75:D83)) -> 0 | K71: SINDICATURA PROCURADORA
K72: CONSEJERÍA JURÍDICA MUNICIPAL
K73: TESORERÍA MUNICIPAL
C74: Criterio | D74: Valor criterio | E74: Valoración | F74: Tipo | G74: Requerimiento | K74: SECRETARÍA DE DESARROLLO TERRITORIAL, URBANO Y AMBIENTAL
D75: =IF(E75="Justificado",0,1) -> 1 | K75: SECRETARÍA DE BIENESTAR
D76: 1 | K76: SECRETARÍA DE DESARROLLO ECONÓMICO
D77: 1 | K77: SECRETARÍA DE EDUCACIÓN PÚBLICA
D78: 1 | K78: SECRETARÍA DE MOVILIDAD URBANA SUSTENTABLE
D79: 1 | K79: TRIBUNAL UNITARIO CONTENCIOSO ADMINISTRATIVO
D80: 1
D81: 1
D82: 1
D83: 1
E85: =SUM(D75:D83) -> 9
B88: Art. 83 - Fracción IV - Inciso E - El nombre, denominación o razón social y clave del registro federal de los contribuyentes a los que se les hubiera cancelado o condonado algún crédito fiscal, así como los montos respectivos. Asimismo, la información estadística sobre las exenciones previstas en las disposiciones fiscales. | I88: PARRAFO ORIGINAL
A89: No se publica en LLT, Y LGT 2018, solo en la 2017 | B89: La información será publicada atendiendo lo dispuesto en el Código Fiscal del Estado de Baja California, así como a los ordenamientos legales que resulten necesarios. | K89: PRESIDENCIA MUNICIPAL
C90: Índice Cumplimiento | E90: =IF(SUM(D94:D102)=0,"NA",SUM(E94:E102)/SUM(D94:D102)) -> 0 | K90: SINDICATURA PROCURADORA
K91: OFICIAL MAYOR
K92: TESORERÍA MUNICIPAL
C93: Criterio | D93: Valor criterio | E93: Valoración | F93: Tipo | G93: Requerimiento | K93: SECRETARÍA DE DESARROLLO TERRITORIAL, URBANO Y AMBIENTAL
D94: =IF(E94="Justificado",0,1) -> 1 | K94: SECRETARÍA DE BIENESTAR
D95: 1 | K95: SECRETARÍA DE DESARROLLO ECONÓMICO
D96: 1 | K96: SECRETARÍA DE EDUCACIÓN PÚBLICA
D97: 1 | K97: SECRETARÍA DE MOVILIDAD URBANA SUSTENTABLE
D98: 1 | K98: TRIBUNAL UNITARIO CONTENCIOSO ADMINISTRATIVO
D99: 1
D100: 1
D101: 1
D102: 1
E104: =SUM(D94:D102) -> 9
A107: 71 III | B107: Art. 83 - Fracción IV - Inciso F - El contenido de las gacetas municipales, las cuales deberán comprender los resolutivos y acuerdos aprobados por los ayuntamientos | I107: PARRAFO ORIGINAL
A108: ltg | K108: PRESIDENCIA MUNICIPAL
C109: Índice Cumplimiento | E109: =IF(SUM(D113:D121)=0,"NA",SUM(E113:E121)/SUM(D113:D121)) -> 0 | K109: SINDICATURA PROCURADORA
K110: OFICIAL MAYOR
K111: TESORERÍA MUNICIPAL
C112: Criterio | D112: Valor criterio | E112: Valoración | F112: Tipo | G112: Requerimiento | K112: SECRETARÍA DE DESARROLLO TERRITORIAL, URBANO Y AMBIENTAL
D113: =IF(E113="Justificado",0,1) -> 1 | K113: SECRETARÍA DE BIENESTAR
D114: 1 | K114: SECRETARÍA DE DESARROLLO ECONÓMICO
D115: 1 | K115: SECRETARÍA DE EDUCACIÓN PÚBLICA
D116: 1 | K116: SECRETARÍA DE MOVILIDAD URBANA SUSTENTABLE
D117: 1
D118: 1
D119: 1
D120: 1
D121: 1
E123: =SUM(D113:D121) -> 9
B126: Art. 83 - Fracción IV - Inciso G - Las actas de sesiones de cabildo, los controles de asistencia de los integrantes del Ayuntamiento a las sesiones de cabildo y el sentido de votación de los miembros del cabildo sobre las iniciativas o acuerdos. | I126: PARRAFO ORIGINAL
A127: ltg | K127: PRESIDENCIA MUNICIPAL
C128: Índice Cumplimiento | E128: =IF(SUM(D132:D140)=0,"NA",SUM(E132:E140)/SUM(D132:D140)) -> 0 | K128: SINDICATURA PROCURADORA
K129: OFICIAL MAYOR
K130: TESORERÍA MUNICIPAL
C131: Criterio | D131: Valor criterio | E131: Valoración | F131: Tipo | G131: Requerimiento | K131: SECRETARÍA DE DESARROLLO TERRITORIAL, URBANO Y AMBIENTAL
D132: =IF(E132="Justificado",0,1) -> 1 | K132: SECRETARÍA DE BIENESTAR
D133: 1 | K133: SECRETARÍA DE DESARROLLO ECONÓMICO
D134: 1 | K134: SECRETARÍA DE EDUCACIÓN PÚBLICA
D135: 1 | K135: SECRETARÍA DE MOVILIDAD URBANA SUSTENTABLE
D136: 1
D137: 1
D138: 1
D139: 1
D140: 1
E142: =SUM(D132:D140) -> 9
B145: Art. 83 - Fracción IV - Inciso H - Las iniciativas de reglamentos o acuerdos, así como el estado que guardan. | I145: PARRAFO ORIGINAL
A146: LTL | B146: Los municipios publicarán lo referente a las iniciativas de reglamentos o acuerdos, además de informar sobre el estado que guardan, lo anterior con la finalidad de dar a conocer a cualquier persona las decisiones tomadas por las autoridades competentes. La información deberá publicarse al día siguiente (hábil) de la fecha de presentación de alguna iniciativa de reglamento o acuerdo. | K146: PRESIDENCIA MUNICIPAL
C147: Índice Cumplimiento | E147: =IF(SUM(D151:D159)=0,"NA",SUM(E151:E159)/SUM(D151:D159)) -> 0 | K147: SINDICATURA PROCURADORA
K148: OFICIAL MAYOR
K149: TESORERÍA MUNICIPAL
C150: Criterio | D150: Valor criterio | E150: Valoración | F150: Tipo | G150: Requerimiento | K150: SECRETARÍA DE DESARROLLO TERRITORIAL, URBANO Y AMBIENTAL
D151: =IF(E151="Justificado",0,1) -> 1 | K151: SECRETARÍA DE BIENESTAR
D152: 1 | K152: SECRETARÍA DE DESARROLLO ECONÓMICO
D153: 1 | K153: SECRETARÍA DE EDUCACIÓN PÚBLICA
D154: 1 | K154: SECRETARÍA DE MOVILIDAD URBANA SUSTENTABLE
D155: 1 | K155: TRIBUNAL UNITARIO CONTENCIOSO ADMINISTRATIVO
D156: 1
D157: 1
D158: 1
D159: 1
E161: =SUM(D151:D159) -> 9
B164: Art. 83 - Fracción IV - Inciso I - Dictámenes y acuerdos aprobados por el Cabildo. | I164: PARRAFO ORIGINAL
A165: LTL | B165: Se publicará la información de acuerdo a lo señalado en la Ley de Régimen Municipal para el Estado de Baja California y demás ordenamientos legales aplicables. | K165: PRESIDENCIA MUNICIPAL
C166: Índice Cumplimiento | E166: =IF(SUM(D170:D178)=0,"NA",SUM(E170:E178)/SUM(D170:D178)) -> 0 | K166: SINDICATURA PROCURADORA
K167: OFICIAL MAYOR
K168: TESORERÍA MUNICIPAL
C169: Criterio | D169: Valor criterio | E169: Valoración | F169: Tipo | G169: Requerimiento | K169: SECRETARÍA DE DESARROLLO TERRITORIAL, URBANO Y AMBIENTAL
D170: =IF(E170="Justificado",0,1) -> 1 | K170: SECRETARÍA DE BIENESTAR
D171: 1 | K171: SECRETARÍA DE DESARROLLO ECONÓMICO
D172: 1 | K172: SECRETARÍA DE EDUCACIÓN PÚBLICA
D173: 1 | K173: TRIBUNAL UNITARIO CONTENCIOSO ADMINISTRATIVO
D174: 1
D175: 1
D176: 1
D177: 1
D178: 1
E180: =SUM(D170:D178) -> 9
B183: Art. 83 - Fracción IV - Inciso J - La información detallada que contengan los planes de desarrollo urbano, ordenamiento territorial y ecológico, los tipos y usos de suelo, licencias de uso y construcción otorgadas. | I183: PARRAFO ORIGINAL
A184: No se publica en LLT, Y LGT 2018, solo en la 2017 | B184: Se publicará la información atendiendo lo dispuesto en la Ley de Protección al Ambiente para el Estado de Baja California, donde faculta a los municipios para realizar acciones relacionadas con el medio ambiente, por tanto, los requerimientos de esta fracción serán atendidos con lo señalado en la Ley en cita. | K184: PRESIDENCIA MUNICIPAL
C185: Índice Cumplimiento | E185: =IF(SUM(D189:D197)=0,"NA",SUM(E189:E197)/SUM(D189:D197)) -> 0 | K185: SINDICATURA PROCURADORA
K186: OFICIAL MAYOR
K187: TESORERÍA MUNICIPAL
C188: Criterio | D188: Valor criterio | E188: Valoración | F188: Tipo | G188: Requerimiento | K188: SECRETARÍA DE DESARROLLO TERRITORIAL, URBANO Y AMBIENTAL
D189: =IF(E189="Justificado",0,1) -> 1 | K189: SECRETARÍA DE BIENESTAR
D190: 1 | K190: SECRETARÍA DE DESARROLLO ECONÓMICO
D191: 1 | K191: TRIBUNAL UNITARIO CONTENCIOSO ADMINISTRATIVO
D192: 1
D193: 1
D194: 1
D195: 1
D196: 1
D197: 1
E199: =SUM(D189:D197) -> 9
B202: Art. 83 - Fracción IV - Inciso K - Las disposiciones administrativas, directamente o a través de la autoridad competente, con el plazo de anticipación que prevean las disposiciones aplicables al sujeto obligado de que se trate, salvo que su difusión pueda comprometer los efectos Que se pretenden lograr con la disposición o se trate de situaciones de emergencia, de conformidad con dichas disposiciones. | I202: PARRAFO ORIGINAL
A203: No se publica en LLT, Y LGT 2018, solo en la 2017 | B203: Se consideran disposiciones administrativas las emitidas por las entidades administrativas de los Poderes Ejecutivos que cuenten con atribuciones para ello, por medio de las cuales se establecen y regulan las acciones y decisiones para el cumplimiento de sus facultades legales. Para fines del cumplimiento de este inciso se deberá centrar la atención en aquella información relativa a las disposiciones que contenga una vinculación con la ciudadanía, ya sea por su aplicación directa o por la modificación de algún trámite, servicio o regulación accesible para cualquier persona. En los casos que así corresponda se incluirá la vigencia de las disposiciones, señalado la fecha de inicio y la de término. | K203: PRESIDENCIA MUNICIPAL
C204: Índice Cumplimiento | E204: =IF(SUM(D208:D216)=0,"NA",SUM(E208:E216)/SUM(D208:D216)) -> 0 | K204: SINDICATURA PROCURADORA
K205: OFICIAL MAYOR
K206: TESORERÍA MUNICIPAL
C207: Criterio | D207: Valor criterio | E207: Valoración | F207: Tipo | G207: Requerimiento | K207: SECRETARÍA DE DESARROLLO TERRITORIAL, URBANO Y AMBIENTAL
D208: =IF(E208="Justificado",0,1) -> 1 | K208: SECRETARÍA DE BIENESTAR
D209: 1 | K209: SECRETARÍA DE DESARROLLO ECONÓMICO
D210: 1 | K210: SECRETARÍA DE EDUCACIÓN PÚBLICA
D211: 1
D212: 1 | K212: SECRETARÍA DE MOVILIDAD URBANA SUSTENTABLE
D213: 1 | K213: TRIBUNAL UNITARIO CONTENCIOSO ADMINISTRATIVO
D214: 1
D215: 1
D216: 1
E218: =SUM(D208:D216) -> 9
B221: Art. 83 - Fracción IV - Inciso L - La iniciativa de Ley de ingreso, así como la aprobada. | I221: PARRAFO ORIGINAL
A222: LTL | B222: El sujeto obligado del ámbito municipal, con la atribución reconocida en el artículo 85 de la Constitución Política del Estado Libre y Soberano del Estado de Baja California, deberá hacer público el documento que informe la iniciativa de Ley de Ingresos así como la versión aprobada. | K222: PRESIDENCIA MUNICIPAL
C223: Índice Cumplimiento | E223: =IF(SUM(D227:D235)=0,"NA",SUM(E227:E235)/SUM(D227:D235)) -> 0 | K223: SINDICATURA PROCURADORA
K224: OFICIAL MAYOR
K225: TESORERÍA MUNICIPAL
C226: Criterio | D226: Valor criterio | E226: Valoración | F226: Tipo | G226: Requerimiento | K226: SECRETARÍA DE DESARROLLO TERRITORIAL, URBANO Y AMBIENTAL
D227: =IF(E227="Justificado",0,1) -> 1 | K227: SECRETARÍA DE BIENESTAR
D228: 1 | K228: SECRETARÍA DE DESARROLLO ECONÓMICO
D229: 1 | K229: SECRETARÍA DE EDUCACIÓN PÚBLICA
D230: 1
D231: 1
D232: 1
D233: 1
D234: 1
D235: 1
E237: =SUM(D227:D235) -> 9
B240: Art. 83 - Fracción IV - Inciso M - Resultados de estudios o programas que sustenten políticas públicas, reglamentos o bandos de aplicación municipal. | I240: PARRAFO ORIGINAL
A241: LTL | B241: En este apartado se deberá publicar un catálogo con todos los estudios o programas que los sujetos obligados hayan financiado total o parcialmente con recursos públicos, como parte de su naturaleza, sus atribuciones y funciones y de acuerdo con su programación presupuestal. Además, se proporcionarán los hipervínculos que permitan la consulta de los documentos que conforman tales estudios y programas. En caso de que el sujeto obligado no realice estudios o programas con recursos públicos de acuerdo con su propia naturaleza, atribuciones, funciones o de acuerdo con su programación presupuestal, se deberá especificar mediante una nota fundamentada, motivada y actualizada al periodo correspondiente la falta de información. | K241: PRESIDENCIA MUNICIPAL
C242: Índice Cumplimiento | E242: =IF(SUM(D246:D254)=0,"NA",SUM(E246:E254)/SUM(D246:D254)) -> 0 | K242: SINDICATURA PROCURADORA
K243: OFICIAL MAYOR
... 44 more rows

Sheet comparativo (hidden)
B2: file:///C:/Users/Dell/Desktop/DISPOSICIONES%20GENERALES%20-%20LTL.pdf | D2: http://www.itaipbc.org.mx/files/mxl/LINEAMIENTOS.pdf
B3: LINEAMIENTOS TÉCNICOS LOCALES Para la publicación, homologación y estandarización de la información de las obligaciones establecidas en el Título Quinto Capítulo II de la Ley de Transparencia y Acceso a la Información Pública para el Estado de Baja California | D3: Catálogo de Formatos de los Lineamientos Técnicos Locales para la publicación, homologación y estandarización de la información de las obligaciones establecidas en el Título Quinto Capítulo II de la Ley de Transparencia y Acceso a la Información Pública para el Estado de Baja California, que deben de difundir los sujetos obligados en los portales de Internet y en la Plataforma Nacional de Transparencia
B5: 2018 | D5: 2017
B6: Artículo 81 | C6: CRITERIOS | D6: Artículo 81 | E6: CRITERIOS
B7: XII.- La información en versión pública de la declaración patrimonial, declaración fiscal y declaración de intereses de todos aquellos servidores públicos que, conforme a la Ley y las disposiciones aplicables en materia, se encuentren obligado a ello. | C7: 23 | D7: XII La información en versión pública de la declaración patrimonial, declaración fiscal y declaración de intereses de todos aquellos servidores públicos que conforme a la Ley y las disposiciones aplicables en la materia, se encuentren obligado a ello. | E7: 0
B8: XXI.- El proyecto de presupuesto de egresos, la información financiera sobre el presupuesto asignado, así como los informes del ejercicio trimestral del gasto, en términos de la Ley General de Contabilidad Gubernamental y demás normatividad aplicable. | C8: 32 | D8: XXI.- El proyecto de presupuesto de egresos, la información financiera sobre el presupuesto asignado, así como los informes del ejercicio trimestral del gasto, en términos de la Ley General de Contabilidad Gubernamental y demás normatividad aplicable. | E8: 17
B10: Artículo 82 | D10: Artículo 82
B11: Artículo 82.- Todos los sujetos obligados deberán publicar lo relacionado con los gastos de publicidad oficial, que deberá contener: I. Presupuesto aprobado por partida y ejercido; II. Contrato, monto y factura; III. Fecha de inicio y fecha de término; IV. Dependencia o dirección que la solicita; V. Tipo de medio de comunicación; VI. Costo por centímetro de las publicaciones impresas y por segundo o minuto según sea el caso de la difusión en medios electrónicos; y VII. Padrón de proveedores. | C11: 45 | D11: Artículo 82.- Todos los sujetos obligados deberán publicar lo relacionado con los gastos de publicidad oficial,que deberá contener: I. Presupuesto aprobado por partida y ejercido; II. Contrato, monto y factura; III. Fecha de inicio y fecha de término; IV. Dependencia o dirección que la solicita; V. Tipo de medio de comunicación; VI. Costo por centímetro de las publicaciones impresas y por segundo o minuto según sea el caso de la difusión en medios electrónicos; y, VII. Padrón de proveedores | E11: 77
B13: Artículo 83 | D13: Artículo 83
B14: I.- Poder Ejecutivo | D14: I.- Poder Ejecutivo
B15: c) Los ingresos por concepto de participaciones federales, así como por la recaudación fiscal que se integre a la hacienda pública. | C15: 23 | D15: c).- Los ingresos por concepto de participaciones federales, así como por la recaudación fiscal que se integre a la hacienda pública | E15: 11
B16: ELIMINADO | D16: d).- El listado de expropiaciones decretadas y ejecutadas que incluya, cuando menos, el monto de las cantidades entregadas al afectado, la fecha de expropiación, el domicilio y la causa de utilidad pública y las ocupaciones superficiales. | E16: 21
B17: ELIMINADO | D17: e).- El nombre, denominación o razón social y clave del registro federal de los contribuyentes a los que se les hubiera cancelado o condonado algún crédito fiscal, así como el monto y razón que motivó dicha cancelación o condonación. Asimismo, la información estadística sobre las exenciones previstas en las disposiciones fiscales. | E17: 26
B18: h) Las aportaciones estatales a los Municipios. | C18: 21 | D18: h).- Las aportaciones estatales a los Municipios. | E18: 8
B19: i) Las estadísticas e indicadores de gestión relativos a la procuración de justicia | C19: 25 | D19: i).- Las estadísticas e indicadores de gestión relativos a la procuración de justicia. | E19: 8
B20: j) Las solicitudes de evaluación de impacto ambiental y los resolutivos emitidos por la autoridad | C20: 20 | D20: j) Las solicitudes de evaluación de impacto ambiental y los resolutivos emitidos por la autoridad | E20: 11
B21: k) Las opiniones técnicas en materia de impacto ambiental emitidas en evaluaciones realizadas por las autoridades competentes. | C21: 19 | D21: k) Las opiniones técnicas en materia de impacto ambiental emitidas en evaluaciones realizadas por las autoridades competentes. | E21: 11
B22: l) Las factibilidades de uso de suelo emitidas durante los cinco años previos | C22: 24 | D22: l) Las factibilidades de uso de suelo emitidas durante los cinco años previos | E22: 9
B23: m) Los resultados de estudios de calidad del aire por Municipio | C23: 22 | D23: m) Los resultados de estudios de calidad del aire por Municipio | E23: 10
B24: ELIMINADO | D24: n) El programa de ordenamiento territorial estatal | E24: 7
B25: o) El listado de personas físicas y morales registrados como microgeneradores de residuos sólidos y peligrosos | C25: 23 | D25: o) El listado de personas físicas y morales registrados como microgeneradores de residuos sólidos y peligrosos. | E25: 9
B27: Artículo 83 | D27: Artículo 83
B28: II.- Poder Legislativo | D28: II.- Poder Legislativo
B29: a) El Plan de Desarrollo Legislativo, así como las agendas legislativas correspondientes a los Grupos Parlamentarios y Diputados que cuenten con un escaño en el Congreso del Estado | C29: 23 | D29: a).- El Plan de Desarrollo Legislativo, así como las agendas legislativas correspondientes a los Grupos Parlamentarios y Diputados que cuenten con un escaño en el Congreso del Estado. | E29: 18
B30: o) Programas, metas y objetivos de los órganos de apoyo parlamentario y administrativo | C30: 20 | D30: o).- Programas, metas y objetivos de los órganos de apoyo parlamentario y administrativo. | E30: 10
B31: p) Viajes en comisiones oficiales de Diputados y titulares de los órganos de apoyo parlamentario y administrativo así como de Directivos y demás personal de los Institutos del Congreso del Estado | C31: 28 | D31: p).- Viajes en comisiones oficiales de Diputados y titulares de los órganos de apoyo parlamentario y administrativo así como de Directivos y demás personal de los Institutos del Congreso del Estado | E31: 14
B32: q) La dirección donde se encuentre ubicado su módulo de atención ciudadana y, en su caso, las oficinas de gestión de cada uno de los Diputados, así como el tipo y número de gestiones que realicen. | C32: 27 | D32: q).- La dirección donde se encuentre ubicado su módulo de atención ciudadana y, en su caso, las oficinas de gestión de cada uno de los Diputados, así como el tipo y número de gestiones que realicen. | E32: 12
B33: r) Registro individual de votaciones en pleno y comisiones | C33: 22 | D33: r) Registro individual de votaciones en pleno y comisiones. | E33: 12
B34: ELIMINADO | D34: s) Registro de asistencia de cada legislador a cada una de sus sesiones del Pleno y de las Comisiones y Comités. | E34: 8
B35: t) Lista actualizada de los legisladores con datos biográficos y fotografía; grupo parlamentario, información sobre el método de elección; Municipio, distrito; trayectoria legislativa, política, académica, administrativa y actividades en el sector privado; datos de contacto; así como el nombre de su suplente. | C35: 27 | D35: t) Lista actualizada de los legisladores con datos biográficos y fotografía; grupo parlamentario, información sobre el método de elección; Municipio, distrito; trayectoria legislativa, política, académica, administrativa y actividades en el sector privado; datos de contacto; así como el nombre de su suplente. | E35: 19
B36: u) Los informes anuales de actividades de los legisladores, las comisiones legislativas y los órganos de gobierno. | C36: 18 | D36: u) Los informes anuales de actividades de los legisladores, las comisiones legislativas y los órganos de gobierno. | E36: 9
B37: v) El domicilio del módulo de atención, orientación o vinculación ciudadana de cada legislador, con la información estadística con el nombre, tipo y número de gestiones solicitadas y realizadas. | C37: 23 | D37: v) El domicilio del módulo de atención, orientación o vinculación ciudadana de cada legislador, con la información estadística con el nombre, tipo y número de gestiones solicitadas y realizadas. | E37: 11
B38: w) El informe sobre el monto de los recursos financieros recibidos por los legisladores en lo individual por concepto de dietas, bonos, apoyos extraordinarios, apoyos para informes legislativos, compensaciones y gastos relacionados con los viajes, viáticos y gastos de representación de los legisladores y sus acompañantes. | C38: 42 | D38: w) El informe sobre el monto de los recursos financieros recibidos por los legisladores en lo individual por concepto de dietas, bonos, apoyos extraordinarios, apoyos para informes legislativos, compensaciones y gastos relacionados con los viajes, viáticos y gastos de representación de los legisladores y sus acompañantes. | E38: 21
B40: Artículo 83 | D40: Artículo 83
B41: III.- Poder Judicial | D41: III.- Poder Judicial
B42: a).- El Plan de Desarrollo Judicial. | C42: 16 | D42: a).- El Plan de Desarrollo Judicial. | E42: 9
B43: b) Los principales indicadores sobre la actividad jurisdiccional que deberán incluir, al menos, los asuntos iniciados, en trámite y resueltos. | C43: 18 | D43: b).- Los principales indicadores sobre la actividad jurisdiccional que deberán incluir, al menos, los asuntos iniciados, en trámite y resueltos. | E43: 14
B44: ELIMINADO | D44: c).- La relacionada con los procesos por medio de los cuales fueron designados los magistrados y jueces | E44: 13
B45: d) Opiniones, informes y dictámenes efectuados con motivo de la evaluación de los servidores públicos que, por disposición de Ley, sean sujetos a procesos de ratificación, una vez que concluya dicho proceso | C45: 19 | D45: d).- Opiniones, informes y dictámenes efectuados con motivo de la evaluación de los servidores públicos que, por disposición de Ley, sean sujetos a procesos de ratificación, una vez que concluya dicho proceso | E45: 9
B46: e) Los ingresos y aplicación del Fondo Auxiliar para la Administración de la Justicia. | C46: 25 | D46: e).- Los ingresos y aplicación del Fondo Auxiliar para la Administración de la Justicia. | E46: 17
B47: f) Los datos estadísticos relativos al desempeño de los órganos jurisdiccionales y el Consejo de la Judicatura. Los principales indicadores sobre la actividad jurisdiccional deberán incluir, al menos, asuntos radicados, concluidos y en trámite, de primera y segunda instancia, indicando el sentido de la resolución. | C47: 21 | D47: f).- Los datos estadísticos relativos al desempeño de los órganos jurisdiccionales y el Consejo de la Judicatura. Los principales indicadores sobre la actividad jurisdiccional deberán incluir, al menos, asuntos radicados, concluidos y en trámite, de primera y segunda instancia, indicando el sentido de la resolución. | E47: 9
B48: ELIMINADO | D48: g).- Las versiones públicas de las sentencias que sean de interés público | E48: 12
B49: ELIMINADO | D49: h).- Las versiones estenográficas de las sesiones públicas. | E49: 8
B50: ELIMINADO | D50: i).- La lista de acuerdos que diariamente se publiquen. | E50: 8
B51: j) Las actas de sesión del pleno del Tribunal Superior de Justicia y del Consejo de la Judicatura y sus comisiones. | C51: 18 | D51: j).- Las actas de sesión del pleno del Tribunal Superior de Justicia y del Consejo de la Judicatura y sus comisiones. | E51: 9
B53: Artículo 83 | D53: Artículo 83
B54: IV.- Municipios | D54: IV.- Municipios
B55: a) El Plan Municipal de Desarrollo, así como los planes y programas operativos anuales que se deriven de éste y de la Ley de Planeación para el Estado de Baja California. | C55: 24 | D55: a).- El Plan Municipal de Desarrollo, así como los planes y programas operativos anuales que se deriven de éste y de la Ley de Planeación para el Estado de Baja California. | E55: 8
B56: b) El Presupuesto de Egresos Municipal y de las entidades paramunicipales, así como las fórmulas de distribución de los recursos otorgados. | C56: 21 | D56: b).- El Presupuesto de Egresos Municipal y de las entidades paramunicipales, así como las fórmulas de distribución de los recursos otorgados. | E56: 9
